Workbook

Sheet Dash-1
O4: Impact on Nominal Incomes
O8: Impact of Initial Tax Relief on Nominal1/Incomes
D9: Step 1: Specify the parameters of the initial tax relief.
D11: Weekly Income | H11: Annual Income Brackets | K11: Tax Rate | L11: 2
D12: 160 | H12: 0 | I12: =D12*52 -> 8320 | K12: 0
D13: 300 | H13: =I12+0.01 -> 8320.01 | I13: =D13*52 -> 15600 | K13: 0.08
D14: 500 | H14: =I13+0.01 -> 15600.01 | I14: =D14*52 -> 26000 | K14: 0.12
H15: above | I15: =I14 -> 26000 | K15: 0.16
D17: =IF(MIN(K12:K15)=0,"In the initial relief, only taxpayers with a weekly income of "&TEXT(D12,"$0")&" or less will be exempt from income taxes and eligible to a tax-free threshold.","") -> In the initial relief, only taxpayers with a weekly income of $160 or less will be exempt from income taxes and eligible to a tax-free threshold.
D24: Step 2: Define the details of the comprehensive tax package.
D26: Proposed Consumption Tax Rate: | I26: 0.1
D28: Second-round Income Tax Adjustments: | O28: Impact of the Second-Round Income Tax Reform on Nominal Incomes
H30: Annual Income Brackets | K30: Tax Rate
H31: 0 | I31: =IF(Wage!M2=1,I12,D31*52) -> 8320 | K31: 0
H33: =I31+0.01 -> 8320.01 | I33: =I13 -> 15600 | K33: 0.08
H34: =I33+0.01 -> 15600.01 | I34: =I15 -> 26000 | K34: 0.12
H35: above | I35: =I34 -> 26000 | K35: 0.16
D37: =IF(MIN(K31:K35)=0,"In the comprehensive tax reform, all taxpayers are eligible to a tax-free threshold of "&TEXT(I31,"$0,000")&".","") -> In the comprehensive tax reform, all taxpayers are eligible to a tax-free threshold of $8,320.
D41: Business Profits Tax Rate | I41: 0.16 | K41: =IF(I45="Yes","","Effective Consumption Tax Rate") -> 
I42: 100000
D43: Business Profit Tax Threshold | I43: 100000
I44: Yes
D45: Are Local Governments MICT-registered? | I45: Yes | K45: =IF(I45="Yes",I26,(1-Summary!G38-Summary!G39)*I26) -> 0.1
Q52: Note: 1/ Nominal income refers to income not adjusted for inflation.

Sheet Dash-2
D2: Overall Macroeconomic Impact
D8: Share to Overall Tax Burden by Institutional Sector
P9: National Government Revenue Collection (in million US Dollars)
R11: FY22 Actual | U11: Reform | V11: Difference
P12: Wages Tax | S12: =TaxEst!C11*Factor -> 16.7130003 | U12: =TaxEst!D11*Factor -> 10.4378504 | V12: =U12-S12 -> -6.275149901
P13: Marshall Islands Consumption Tax | S13: 0 | U13: =TaxEst!D23*Factor -> 12.23010405 | V13: 12.23010405
P14: Business Profit Tax | S14: 0 | U14: =TaxEst!D14*Factor -> 5.977698022 | V14: 5.977698022
P15: Gross Revenue Tax | S15: =(TaxEst!C13+TaxEst!C21)*Factor -> 7.148000054 | U15: =TaxEst!D13*Factor -> 0.2969432735 | V15: -6.851056781
P16: General Import Taxes4/ | S16: =TaxEst!C17*Factor -> 5.146958434 | U16: 0 | V16: -5.146958434
P17: Other Import Taxes | S17: =(TaxEst!C20+TaxEst!C18+TaxEst!C19)*Factor -> 4.958041406 | U17: 0 | V17: -4.958041406
P18: Excise Taxes | S18: =TaxEst!C22*Factor -> 0 | U18: =TaxEst!D22*Factor -> 4.958041406 | V18: 4.958041406
P19: Miscellaneous Taxes4/ | S19: =TaxEst!C29*Factor -> 1.010000005 | U19: =TaxEst!D29*Factor -> 1.010000005
P20: Transfers to Local Governments | S20: =TaxEst!C24 -> 0 | U20: =TaxEst!D24*Factor -> -4.280536418 | V20: =U20-S20 -> -4.280536418
S21: =SUM(S12:T19) -> 34.9760002 | U21: =SUM(U12:U20) -> 30.63010074 | V21: =U21-S21 -> -4.345899462
P22: Gains from Efficiency5/ | S22: 0 | U22: =U13*0.3 -> 3.669031215 | V22: =U22-S22 -> 3.669031215
P23: Total Collection | T23: =SUM(S21:T22) -> 34.9760002 | U23: =SUM(T21:U22) -> 34.29913195 | V23: =U23-T23 -> -0.6768682466
P26: MALGOV+KALGOV Revenue Collection (in million US Dollars)
R28: FY22 Actual | U28: Reform | V28: Difference
D30: Impact of Overall Wage Tax Reductions on Household Real Incomes Incomes3/ | P30: Sales Tax | S30: =-SUM(Summary!G25:G26) -> 3.99936439 | U30: =IF('Dash-1'!$I$45="Yes",0,S30) -> 0 | V30: =U30-S30 -> -3.99936439
P31: MICT Revenue Shares | S31: 0 | U31: =IF('Dash-1'!$I$45="Yes",SUM(Summary!G38:G39)*Summary!G11,0) -> 4.280536418 | V31: 4.280536418
P32: MICT Payments | S32: 0 | U32: =IF('Dash-1'!I45="Yes",0,-Summary!O15) -> 0 | V32: =U32-S32 -> 0
P33: Total Collection | S33: =SUM(S30:T32) -> 3.99936439 | U33: =SUM(U30:U32) -> 4.280536418 | V33: =U33-S33 -> 0.2811720276
P35: General Government (National+Local) | S35: =S33+T23 -> 38.97536459 | U35: =SUM(U33+U23) -> 38.57966837 | V35: =SUM(V33,V23) -> -0.395696219
O39: =IFERROR("On average, real incomes of Marshallese wage earners are estimated to "&IF(AVERAGE(Wage!T51:T9938)>0,"increase by ","decrease by ")&TEXT(ABS(AVERAGE(Wage!T51:T9938)),"0.0%")&" due to the tax reform.","") -> On average, real incomes of Marshallese wage earners are estimated to increase by 4.9% due to the tax reform.

Sheet TaxEst
B2: RMI Tax Reform Revenue Estimates (in US Dollars)
B4: A. National Government Revenues
C5: FY2022
C6: Actual Revenue | D6: User-Choice Scenario | E6: Tax Reform Difference
B7: Income Tax- Wages and Salaries Taxation
B8: Income Tax- Wages and Salaries Tax (Marshallese employees on Marshallese tax rates) | C8: =Data!G62*1000000 -> 11649000.17 | D8: =Wage!J41 -> 6312859.978 | E8: =D8-C8 -> -5336140.19
B9: Income Tax- Wages and Salaries Tax (Expatriates on Marshallese tax rates) | C9: =Wage!J34 -> 3259308.175 | D9: =Wage!J42 -> 2320298.464 | E9: =D9-C9 -> -939009.7113
B10: Income Tax- Wages and Salaries Tax (Expatriates on reduced 5 percent tax rates in Kwajelein) | C10: =(Data!G63*1000000)-C9 -> 1804691.955 | D10: =C10 -> 1804691.955 | E10: =D10-C10 -> 0
B11: sub-total | C11: =SUM(C8:C10) -> 16713000.3 | D11: =D10+D9+D8 -> 10437850.4 | E11: =E10+E9+E8 -> -6275149.901
B12: Income Tax- Business Taxation
B13: Gross Revenue Tax (GRT) | C13: =Data!G51*1000000 -> 7065000.057 | D13: ='Profits Tax'!S18 -> 296943.2735 | E13: =D13-C13 -> -6768056.784
B14: Business Profit Tax | C14: 0 | D14: ='Profits Tax'!S12 -> 5977698.022 | E14: =D14-C14 -> 5977698.022
B15: sub-total | C15: =SUM(C13:C14) -> 7065000.057 | D15: =SUM(D13:D14) -> 6274641.295 | E15: -790358.7622
B16: Indirect Taxes
B17: General Import Tax (food and non-food) | C17: =(Data!G56+Data!G57)*1000000 -> 5146958.434 | D17: 0 | E17: =D17-C17 -> -5146958.434
B18: Fuel Tax | C18: =Data!G60*1000000 -> 591000.0205 | E18: -591000.0205
B19: Alcohol and Cigarrete Taxes | C19: =Data!G58*1000000 -> 1465000.033 | E19: -1465000.033
B20: Miscellaneous Import Taxes | C20: =Data!G59*1000000 -> 2902041.352 | E20: -2902041.352
B21: Hotel and Resort Tax | C21: =Data!G53*1000000 -> 82999.99684 | D21: 0 | E21: -82999.99684
B22: Excise Taxes | C22: 0 | D22: =SUM(C18:C20) -> 4958041.406 | E22: 4958041.406
B23: Marshall Islands Consumption Tax (MICT) | C23: 0 | D23: =IF('Dash-1'!I45="Yes",Summary!G11*1000000,Summary!O11/Factor) -> 12230104.05 | E23: 12230104.05
B24: Transfers to Local Governments | D24: =IF('Dash-1'!I45="Yes",-(SUM(Summary!F38:F39))*D23,0) -> -4280536.418 | E24: -4280536.418
B25: sub-total | C25: =SUM(C17:C23) -> 10187999.84 | D25: =SUM(D17:D24) -> 12907609.04 | E25: =SUM(E17:E24) -> 2719609.201
B26: Other Taxes
B27: Immovable Property Tax | C27: =1000000*0.112000003457069 -> 112000.0035 | D27: =C27 -> 112000.0035 | E27: =D27-C27 -> 0
B28: Business Non-Resident Gross Revenue Tax | C28: =Data!G52*1000000 -> 898000.0019 | D28: =C28 -> 898000.0019 | E28: =D28-C28 -> 0
B29: sub-total | C29: =SUM(C27:C28) -> 1010000.005 | D29: =SUM(D27:D28) -> 1010000.005 | E29: =SUM(E27:E28) -> 0
B30: Total Tax and Customs Revenue | C30: =SUM(C29,C25,C15,C11) -> 34976000.2 | D30: =SUM(D29,D25,D15,D11) -> 30630100.74 | E30: =D30-C30 -> -4345899.462
B31: ="Note: Assumes that Local Governments are "&IF('Dash-1'!I45="Yes","MICT-registered.","MICT non-registered.") -> Note: Assumes that Local Governments are MICT-registered.
B33: B. MALGOV and KALGOV Revenues
C35: Actual Revenue | D35: User-Choice Scenario | E35: Tax Reform Difference
B36: Sales Taxes
B37: Majuro Atoll Local Government | C37: =-Summary!G25/Factor -> 2834449.43 | D37: =IF('Dash-1'!I45="Yes",0,C37) -> 0 | E37: =D37-C37 -> -2834449.43
B38: Kwajalein Atoll Local Government | C38: =-Summary!G26/Factor -> 1164914.96 | D38: =IF('Dash-1'!I45="Yes",0,C38) -> 0 | E38: =D38-C38 -> -1164914.96
B39: sub-total | C39: =SUM(C37:C38) -> 3999364.39 | D39: =SUM(D37:D38) -> 0 | E39: =D39-$C39 -> -3999364.39
B40: MICT Revenue Shares
B41: Majuro Atoll Local Government | C41: =0 -> 0 | D41: =IF('Dash-1'!$I$45="Yes",$D$23*Summary!G38,0) -> 3057526.013 | E41: =D41-C41 -> 3057526.013
B42: Kwajalein Atoll Local Government | C42: =0 -> 0 | D42: =IF('Dash-1'!$I$45="Yes",$D$23*Summary!G39,0) -> 1223010.405 | E42: =D42-C42 -> 1223010.405
B43: sub-total | C43: =SUM(C41:C42) -> 0 | D43: =SUM(D41:D42) -> 4280536.418 | E43: =D43-$C43 -> 4280536.418
B44: MICT Payments
B45: MICT Payments on Local Government Purchases | C45: 0 | D45: =IF('Dash-1'!$I$45="Yes",-Summary!G15/Factor,-Summary!O15/Factor) -> 0 | E45: =D45-C45 -> 0
B46: sub-total | C46: =SUM(C45) -> 0 | D46: =SUM(D45) -> 0 | E46: =D46-$C46 -> 0
B47: Total Revenues | C47: =C46+C43+C39 -> 3999364.39 | D47: =D46+D43+D39 -> 4280536.418 | E47: =D47-C47 -> 281172.0276
B48: ="Note: Assumes that Local Governments are "&IF('Dash-1'!I45="Yes","MICT-registered.","MICT non-registered.") -> Note: Assumes that Local Governments are MICT-registered.

Sheet WageImp
C3: Impact of Wage Tax Reductions on Household Incomes
E5: Decile 1 | F5: Decile 2 | G5: Decile 3 | H5: Decile 4 | I5: Decile 5 | J5: Decile 6 | K5: Decile 7 | L5: Decile 8 | M5: Decile 9 | N5: Decile 10
D6: Annual Gross Wage | E6: =Wage!U31 -> 850 | F6: =Wage!V31 -> 1986.8 | G6: =Wage!W31 -> 3600 | H6: =Wage!X31 -> 5760 | I6: =Wage!Y31 -> 7521.33 | J6: =Wage!Z31 -> 9779.83 | K6: =Wage!AA31 -> 12954.67 | L6: =Wage!AB31 -> 17187.47 | M6: =Wage!AC31 -> 24009.48 | N6: =Wage!AD31 -> 181246.68
C7: Initial Tax Relief
D8: Nominal Gain/Loss | E8: =Wage!U24 -> 0 | F8: =Wage!V24 -> 34.144 | G8: =Wage!W24 -> 163.2 | H8: =Wage!X24 -> 460.8 | I8: =Wage!Y24 -> 601.7064 | J8: =Wage!Z24 -> 0 | K8: =Wage!AA24 -> 102.1868 | L8: =Wage!AB24 -> 208.0012 | M8: =Wage!AC24 -> 208.0012 | N8: =Wage!AD24 -> -6001.8656
D9: Nominal Bi-weekly Gains/Losses | E9: =E8/26 -> 0 | F9: =F8/26 -> 1.313230769 | G9: 6.276923077 | H9: 17.72307692 | I9: 23.14255385 | J9: 0 | K9: 3.930261538 | L9: 8.000046154 | M9: 8.000046154 | N9: -230.8409846
C10: Second Round Income Tax Adjustments
D11: Nominal Gain/Loss | E11: =Wage!U36 -> 0 | F11: =Wage!V36 -> 0 | G11: =Wage!W36 -> 0 | H11: =Wage!X36 -> 0 | I11: =Wage!Y36 -> 0 | J11: =Wage!Z36 -> 665.6008 | K11: =Wage!AA36 -> 665.6008 | L11: =Wage!AB36 -> 665.6 | M11: =Wage!AC36 -> 665.6 | N11: =Wage!AD36 -> 665.6
D12: Nominal Bi-weekly Gains/Losses | E12: =E11/26 -> 0 | F12: =F11/26 -> 0 | G12: 0 | H12: 0 | I12: 0 | J12: 25.60003077 | K12: 25.60003077 | L12: 25.6 | M12: 25.6 | N12: 25.6
C13: Overall Impact
D14: After-Tax Income (Pre-Reform) | E14: =Wage!U46 -> 850 | F14: =Wage!V46 -> 1952.656 | G14: =Wage!W46 -> 3436.8 | H14: =Wage!X46 -> 5299.2 | I14: =Wage!Y46 -> 6919.6236 | J14: =Wage!Z46 -> 8997.4436 | K14: =Wage!AA46 -> 11816.1096 | L14: =Wage!AB46 -> 15540.9736 | M14: =Wage!AC46 -> 21544.3424 | N14: =Wage!AD46 -> 159913.0784
D15: After-Tax Income (Post-Reform) | E15: =Wage!U47 -> 850 | F15: =Wage!V47 -> 1986.8 | G15: =Wage!W47 -> 3600 | H15: =Wage!X47 -> 5760 | I15: =Wage!Y47 -> 7521.33 | J15: =Wage!Z47 -> 9663.0444 | K15: =Wage!AA47 -> 12583.8972 | L15: =Wage!AB47 -> 16414.5748 | M15: =Wage!AC47 -> 22417.9436 | N15: =Wage!AD47 -> 154576.8128
D16: Real Tax Savings | E16: =Wage!U41 -> 10.73965191 | F16: =Wage!V41 -> 61.96842526 | G16: =Wage!W41 -> 196.4492701 | H16: =Wage!X41 -> 501.1394593 | I16: =Wage!Y41 -> 599.2833986 | J16: =Wage!Z41 -> 642.471283 | K16: =Wage!AA41 -> 734.4952248 | L16: =Wage!AB41 -> 816.5916751 | M16: =Wage!AC41 -> 712.9576288 | N16: =Wage!AD41 -> -6727.170406
D17: Change in Real Incomes | E17: =Wage!U42 -> 0.0126348846 | F17: =Wage!V42 -> 0.0317354543 | G17: =Wage!W42 -> 0.05716051852 | H17: =Wage!X42 -> 0.09456888952 | I17: =Wage!Y42 -> 0.08660635799 | J17: =Wage!Z42 -> 0.07140598058 | K17: =Wage!AA42 -> 0.06216049526 | L17: =Wage!AB42 -> 0.05254443487 | M17: =Wage!AC42 -> 0.0330925686 | N17: =Wage!AD42 -> -0.04206766872
D18: Bi-weekly Gain/Loss | E18: =Wage!U43 -> 0.4130635349 | F18: =Wage!V43 -> 2.383400971 | G18: =Wage!W43 -> 7.555741156 | H18: =Wage!X43 -> 19.27459459 | I18: =Wage!Y43 -> 23.04936149 | J18: =Wage!Z43 -> 24.71043396 | K18: =Wage!AA43 -> 28.24981634 | L18: =Wage!AB43 -> 31.40737212 | M18: =Wage!AC43 -> 27.42144726 | N18: =Wage!AD43 -> -258.7373233
C19: Note: Real incomes (tax savings) refer to incomes (tax savings) adjusted for inflation. Meanwhile, nominal values are unadjusted for inflation.
C24: Impact of the Tax Reforms on the Price of Each Decile's Consumption Basket | E24: =CPI!Y15 -> -0.01247723616 | F24: =CPI!Z15 -> -0.01381122204 | G24: =CPI!AA15 -> -0.009151386978 | H24: =CPI!AB15 -> -0.006954672155 | I24: =CPI!AC15 -> 0.000322254468 | J24: =CPI!AD15 -> 0.002399348676 | K24: =CPI!AE15 -> 0.002652651063 | L24: =CPI!AF15 -> 0.003485208462 | M24: =CPI!AG15 -> 0.007217567766 | N24: =CPI!AH15 -> 0.009079848296

Sheet 

Sheet Summary
A2: Tax Reform Fact Sheet
B4: Case A: Local Governments are MICT-registered and share revenue with National Government | K4: Case B: Local Governments are MICT non-registered
F6: Revenue Neutral | G6: User Choice | N6: =F6 -> Revenue Neutral | O6: =G6 -> User Choice
C7: ="VAT at "&VAT!G2*100&"%" -> VAT at 10% | D7: ="VAT at "&VAT!H2*100&"%" -> VAT at 12.5% | E7: ="VAT at "&VAT!I2*100&"%" -> VAT at 15% | F7: ="VAT at "&ROUND(VAT!J2*100,1)&"%" -> VAT at 12.7% | G7: ="VAT at "&ROUND(IF('Dash-1'!I45="Yes",'Dash-1'!I26,'Dash-1'!K45)*100,1)&"%" -> VAT at 10% | K7: =C7 -> VAT at 10% | L7: =D7 -> VAT at 12.5% | M7: =E7 -> VAT at 15% | N7: =F7 -> VAT at 12.7% | O7: =G7 -> VAT at 10%
C9: Millions | D9: Millions | E9: Millions | F9: Millions | G9: Millions | K9: Millions | L9: Millions | M9: Millions | N9: Millions | O9: Millions
B10: Gains
B11: MICT Collections | C11: =SUM(C12:C15) -> 12.23010405 | D11: 15.28763006 | E11: 18.34515608 | F11: 15.4937709 | G11: =SUM(G12:G15) -> 12.23010405 | K11: =SUM(K12:K15) -> 13.11667338 | L11: 16.39584173 | M11: 19.67501007 | N11: 16.61692586 | O11: =SUM(O12:O15) -> 13.11667338
B12: Households | C12: =VAT!G13+VAT!G16 -> 11.71835538 | D12: =VAT!H13+VAT!H16 -> 14.64794423 | E12: =VAT!I13+VAT!I16 -> 17.57753307 | F12: =VAT!J13+VAT!J16 -> 14.84545944 | G12: =VAT!F13+VAT!F16 -> 11.71835538 | K12: =C12 -> 11.71835538 | L12: =D12 -> 14.64794423 | M12: =E12 -> 17.57753307 | N12: =F12 -> 14.84545944 | O12: =G12 -> 11.71835538
B13: Tourists | C13: =VAT!G31 -> 0.1556069946 | D13: =VAT!H31 -> 0.1945087433 | E13: =VAT!I31 -> 0.233410492 | F13: =VAT!J31 -> 0.1971315301 | G13: =VAT!F31 -> 0.1556069946 | K13: =C13 -> 0.1556069946 | L13: 0.1945087433 | M13: 0.233410492 | N13: 0.1971315301 | O13: 0.1556069946
B14: Import (consumed by non MICT registered taxpayers) | C14: =VAT!G35 -> 0.3561416739 | D14: =VAT!H35 -> 0.4451770924 | E14: =VAT!I35 -> 0.5342125108 | F14: =VAT!J35 -> 0.451179931 | G14: =VAT!F35 -> 0.3561416739 | K14: 0.3561416739 | L14: 0.4451770924 | M14: 0.5342125108 | N14: 0.451179931 | O14: 0.3561416739
B15: Local Governments | C15: =0 -> 0 | D15: =0 -> 0 | E15: =0 -> 0 | F15: =0 -> 0 | G15: =IF('Dash-1'!I45="Yes",0,VAT!F9) -> 0 | K15: =VAT!G9 -> 0.886569333 | L15: =VAT!H9 -> 1.108211666 | M15: =VAT!I9 -> 1.329854 | N15: =VAT!J9 -> 1.123154968 | O15: =VAT!F9 -> 0.886569333
B16: Net Profit Tax | C16: ='Profits Tax'!$S12/1000000 -> 5.977698022 | D16: ='Profits Tax'!$S12/1000000 -> 5.977698022 | E16: ='Profits Tax'!$S12/1000000 -> 5.977698022 | F16: ='Profits Tax'!$S12/1000000 -> 5.977698022 | G16: ='Profits Tax'!$S12/1000000 -> 5.977698022 | K16: =C16 -> 5.977698022 | L16: =D16 -> 5.977698022 | M16: 5.977698022 | N16: 5.977698022 | O16: 5.977698022
B17: ="GRT at "&'Profits Tax'!S17*100&" percent for businesses with turnover between $10,000 and "&TEXT('Dash-1'!I43,"$0,000") -> GRT at 3 percent for businesses with turnover between $10,000 and $100,000 | C17: ='Profits Tax'!$S18/1000000 -> 0.2969432735 | D17: ='Profits Tax'!$S18/1000000 -> 0.2969432735 | E17: ='Profits Tax'!$S18/1000000 -> 0.2969432735 | F17: ='Profits Tax'!$S18/1000000 -> 0.2969432735 | G17: ='Profits Tax'!$S18/1000000 -> 0.2969432735 | K17: =C17 -> 0.2969432735 | L17: 0.2969432735 | M17: 0.2969432735 | N17: 0.2969432735 | O17: 0.2969432735
B19: Losses
B20: GRT Loss (including Hotel GRT) | C20: =-VAT!$B49 -> -7.148000054 | D20: =-VAT!$B49 -> -7.148000054 | E20: =-VAT!$B49 -> -7.148000054 | F20: =-VAT!$B49 -> -7.148000054 | G20: =-VAT!$B49 -> -7.148000054 | K20: =C20 -> -7.148000054 | L20: =D20 -> -7.148000054 | M20: -7.148000054 | N20: -7.148000054 | O20: -7.148000054
B21: Import Tax | C21: =-VAT!$B52-VAT!$B55 -> -5.146958434 | D21: =-VAT!$B52-VAT!$B55 -> -5.146958434 | E21: =-VAT!$B52-VAT!$B55 -> -5.146958434 | F21: =-VAT!$B52-VAT!$B55 -> -5.146958434 | G21: =-VAT!$B52-VAT!$B55 -> -5.146958434 | K21: =C21 -> -5.146958434 | L21: =D21 -> -5.146958434 | M21: =E21 -> -5.146958434 | N21: =F21 -> -5.146958434 | O21: =G21 -> -5.146958434
B22: Wage Taxes | C22: =-Wage!$K$43/1000000 -> -6.275149901 | D22: =-Wage!$K$43/1000000 -> -6.275149901 | E22: =-Wage!$K$43/1000000 -> -6.275149901 | F22: =-Wage!$K$43/1000000 -> -6.275149901 | G22: =TaxEst!E11/1000000 -> -6.275149901 | K22: -6.275149901 | L22: -6.275149901 | M22: -6.275149901 | N22: -6.275149901 | O22: -6.275149901
B24: Sales Tax (2022) | C24: -3.99936439 | D24: -3.99936439 | E24: -3.99936439 | F24: -3.99936439 | G24: -3.99936439
B25: MALGOV | C25: =-2834.44943/1000 -> -2.83444943 | D25: =-2834.44943/1000 -> -2.83444943 | E25: -2.83444943 | F25: -2.83444943 | G25: -2.83444943
B26: KALGOV | C26: =C24-C25 -> -1.16491496 | D26: =D24-D25 -> -1.16491496 | E26: -1.16491496 | F26: -1.16491496 | G26: -1.16491496
B28: Net Tax Yields
B29: National Government | C29: =C11*(1-C38-C39)+SUM(C16:C22) -> -4.345899462 | D29: =D11*(1-D38-D39)+SUM(D16:D22) -> -2.358507554 | E29: =E11*(1-E38-E39)+SUM(E16:E22) -> -0.3711156453 | F29: =F11*(1-F38-F39)+SUM(F16:F22) -> -2.224516012 | G29: =IF('Dash-1'!I45="Yes",G11*(1-G38-G39)+SUM(G16:G22),G11+SUM(G16:G22)) -> -4.345899462 | K29: =SUM(K12:K22) -> 0.8212062889 | L29: =SUM(L12:L24) -> 4.100374635 | M29: 7.379542981 | N29: 4.32145877 | O29: 0.8212062889
K30: =-K15 -> -0.886569333 | L30: =-L15 -> -1.108211666 | M30: -1.329854 | N30: -1.123154968 | O30: =-O15 -> -0.886569333
B33: Percent of GDP | C33: =C29/Data!$G$47 -> -0.01679415816 | D33: =D29/Data!$G$47 -> -0.009114142933 | E33: =E29/Data!$G$47 -> -0.00143412771 | F33: =F29/Data!$G$47 -> -0.008596350204 | G33: =G29/Data!$G$47 -> -0.01679415816 | K33: =K29/Data!$G$47 -> 0.003173443937 | L33: =L29/Data!$G$47 -> 0.01584535968 | M33: =M29/Data!$G$47 -> 0.02851727543 | N33: =N29/Data!$G$47 -> 0.01669971031 | O33: =O29/Data!$G$47 -> 0.003173443937
B36: Revenue Sharing Arrangements
B38: MALGOV | C38: 0.25 | D38: 0.25 | E38: 0.25 | F38: 0.25 | G38: 0.25 | O38: 0
B39: KAL | C39: 0.1 | D39: 0.1 | E39: 0.1 | F39: 0.1 | G39: 0.1 | O39: 0
B42: Total Change in NG Revenue Collection | G42: =TEXT(G29,"$0.0")&" million" -> -$4.3 million
B43: Total Cost to NG | G43: =TEXT(-G29,"$0.0")&" million" -> $4.3 million

Sheet Inst_Impact
A2: Tax Incidence by Institutional Group
D3: Pre-Reform | F3: Reform | J3: For Graphing | L3: Post | M3: Pre
E4: Share | G4: Share | K4: Marshallese HHs | L4: =G6 -> 0.5415078098 | M4: =E6 -> 0.6661127868
C5: Households | D5: =SUM(C25:I25) -> 32.02384799 | E5: =D5/$D$14 -> 0.8216498262 | F5: =SUM(C41:K41) -> 25.96948803 | G5: =F5/$F$14 -> 0.7438846766 | K5: Non-Marshallese HHs | L5: =G7 -> 0.2023768668 | M5: =E7 -> 0.1555370395
C6: Marshallese HH | D6: =D5*MI_ratio -> 25.96178317 | E6: 0.6661127868 | F6: =SUM(C42:K42) -> 18.90438266 | G6: 0.5415078098 | K6: Businesses | L6: =G8 -> 0.2042166898 | M6: =E8 -> 0.1094058519
C7: Non-Marshallese HHs | D7: =D5-D6 -> 6.062064824 | E7: 0.1555370395 | F7: 7.065105365 | G7: 0.2023768668 | K7: Local Governments | L7: =G9 -> 0 | M7: =E9 -> 0.00661540822
C8: Businesses | D8: =SUM(C28:I28) -> 4.264099205 | E8: 0.1094058519 | F8: 7.129334757 | G8: 0.2042166898 | K8: Others | L8: =SUM(G10:G13) -> 0.05189863361 | M8: =SUM(E10:E13) -> 0.06232891365
C9: Local Governments | D9: =SUM(C33:I33) -> 0.2578359059 | E9: 0.00661540822 | F9: =SUM(C49:K49) -> 0 | G9: 0
C10: National Government | D10: =SUM(C32:I32) -> 0.9583384687 | E10: 0.0245885078 | F10: =SUM(C48:K48) -> 0 | G10: 0
C11: NGOs | D11: =SUM(C29:I29) -> 0.1588035292 | E11: 0.004074491368 | F11: =SUM(C45:J45) -> 0.4937378623 | G11: 0.01414290608
C12: Tourists | D12: =SUM(C30:I30) -> 0.302130897 | E12: 0.007751904114 | F12: =SUM(C46:K46) -> 0.3080764992 | G12: 0.008824717172
C13: Others | D13: =SUM(C31:I31) -> 1.010000005 | E13: 0.02591401037 | F13: =SUM(C47:K47) -> 1.010000005 | G13: 0.02893101037
C14: Total | D14: =SUM(D6:D13) -> 38.97505601 | F14: =SUM(F6:F13) -> 34.91063715
B19: Scaling Factor | C19: =1/1000000 -> 1e-06
A23: Pre-Reform
C24: GRT+ gen and food imp | D24: Income Tax | E24: Alcohol | F24: Fuel | G24: Other Excise | H24: Other Taxes | I24: Local Sales Tax
B25: Households | C25: =VAT!D13+VAT!D19*VAT!B67 -> 8.895578985 | D25: =TaxEst!C11*Factor -> 16.7130003 | E25: =Data!G58 -> 1.465000033 | F25: =F36*Data!B217 -> 0.2955000103 | G25: =$G$36*C25/(SUM($C$26:$C$31)) -> 2.245580211 | I25: =VAT!Q13+VAT!Q19*VAT!B67 -> 2.409188457
B26: MI HHs | C26: =C25*MI_ratio -> 7.211659661 | D26: =TaxEst!C8*Factor -> 11.64900017 | E26: =E25*MI_ratio -> 1.187677796 | F26: =F25*MI_ratio -> 0.239562316 | G26: =$G$36*C26/(SUM($C$26:$C$31)) -> 1.820495355 | I26: =I25*MI_ratio -> 1.953132814
B27: Non-MI HHs | C27: =C25-C26 -> 1.683919324 | D27: =D25-D26 -> 5.06400013 | E27: =E25-E26 -> 0.2773222372 | F27: =F25-F26 -> 0.05593769424 | G27: 0.4250848558 | I27: =I25-I26 -> 0.4560556433
B28: Businesses | C28: =VAT!D19*(1-VAT!B67)+VAT!D21+VAT!D27+VAT!D29+VAT!D30+VAT!D32 -> 2.390092803 | F28: =F36*Data!B219 -> 0.1773000062 | G28: 0.6033497211 | I28: =VAT!Q19*(1-VAT!B67)+VAT!Q21+VAT!Q27+VAT!Q29+VAT!Q30+VAT!Q32 -> 1.093356676
B29: NGO | C29: =VAT!D16 -> 0.08947872289 | G29: 0.02258781017 | I29: =VAT!Q16 -> 0.04673699619
B30: Tourists | C30: =VAT!D31 -> 0.1209153789 | F30: =F36*Data!B218 -> 0.1182000041 | G30: 0.03052360981 | I30: =VAT!Q31 -> 0.0324919042
B31: Others | C31: 0 | G31: 0 | H31: =SUM(TaxEst!C27:C28)*Factor -> 1.010000005 | I31: 0
B32: National Government | C32: =VAT!D6-VAT!D9 -> 0.6295228103 | I32: =VAT!Q6-VAT!Q9 -> 0.3288156584
B33: Local Government | C33: =VAT!D9 -> 0.1693697888 | I33: =VAT!Q9 -> 0.08846611706
B35: Total | C35: =SUM(C26:C33) -> 12.29495849 | D35: =SUM(D26:D33) -> 16.7130003 | E35: 1.465000033 | F35: 0.5910000205 | G35: =SUM(G26:G33) -> 2.902041352 | H35: 1.010000005 | I35: =SUM(I26:I33) -> 3.999055808
B36: net GRT/Control | C36: =VAT!D44 -> 12.29495849 | D36: =TaxEst!C11*Factor -> 16.7130003 | E36: =TaxEst!C19*Factor -> 1.465000033 | F36: =Data!G60 -> 0.5910000205 | G36: =Data!G59 -> 2.902041352 | H36: =SUM(TaxEst!C27:C28)*Factor -> 1.010000005 | I36: =VAT!P49 -> 3.99936439
C37: =C35-C36 -> 0 | D37: =D35-D36 -> 0 | E37: 0 | F37: 0 | G37: =G35-G36 -> 0 | H37: =H35-H36 -> 0 | I37: -0.0003085817021
A39: Post Reform (User Choice)
C40: VAT | D40: Income Tax | E40: Alcohol | F40: Fuel | G40: Other Excise | H40: Other Taxes | I40: Business Taxes | J40: VAT on Imports | K40: Local Sales Taxes
B41: Households | C41: =VAT!F13+VAT!F19*VAT!B67 -> 11.24997733 | D41: =SUM(D42:D43) -> 10.4378504 | E41: =E25 -> 1.465000033 | F41: =F25 -> 0.2955000103 | G41: =$G$51*C25/SUM($C$26:$C$31) -> 2.245580211 | H41: =H25 -> 0 | J41: =VAT!$F$35*C25/SUM($C$26:$C$31) -> 0.275580048 | K41: =IF('Dash-1'!$I$45="Yes",0,I25) -> 0
B42: MI HHs | C42: =C41*MI_ratio -> 9.120374047 | D42: =TaxEst!D8*Factor -> 6.312859978 | E42: =E26 -> 1.187677796 | F42: =F26 -> 0.239562316 | G42: 1.820495355 | H42: =H26 -> 0 | J42: =VAT!$F$35*C26/SUM($C$26:$C$31) -> 0.2234131718 | K42: =IF('Dash-1'!$I$45="Yes",0,I26) -> 0
B43: Non-MI HHs | C43: =C41-C42 -> 2.129603284 | D43: =SUM(TaxEst!D9:D10)*Factor -> 4.124990418 | E43: =E27 -> 0.2773222372 | F43: =F27 -> 0.05593769424 | G43: 0.4250848558 | H43: =H27 -> 0 | J43: =VAT!$F$35*C27/SUM($C$26:$C$31) -> 0.05216687625 | K43: =IF('Dash-1'!$I$45="Yes",0,I27) -> 0
B44: Businesses | C44: =VAT!F19*(1-VAT!B67)+VAT!F21+VAT!F27+VAT!F29+VAT!F30+VAT!F32 -> 0 | F44: =F28 -> 0.1773000062 | G44: 0.6033497211 | H44: =H28 -> 0 | I44: =SUM('Profits Tax'!S12,'Profits Tax'!S18)*Factor -> 6.274641295 | J44: =VAT!$F$35*C28/SUM($C$26:$C$31) -> 0.07404373458 | K44: =IF('Dash-1'!$I$45="Yes",0,I28) -> 0
B45: NGO | C45: =VAT!F16 -> 0.4683780515 | G45: 0.02258781017 | J45: =VAT!$F$35*C29/SUM($C$26:$C$31) -> 0.002772000653 | K45: =IF('Dash-1'!$I$45="Yes",0,I29) -> 0
B46: Tourists | C46: =VAT!F31 -> 0.1556069946 | F46: =F30 -> 0.1182000041 | G46: 0.03052360981 | H46: =H30 -> 0 | J46: =VAT!$F$35*C30/SUM($C$26:$C$31) -> 0.003745890625 | K46: =IF('Dash-1'!$I$45="Yes",0,I30) -> 0
B47: Others | C47: 0 | F47: =F31 -> 0 | G47: 0 | H47: =H31 -> 1.010000005 | J47: =VAT!$F$35*C31/SUM($C$26:$C$31) -> 0 | K47: =IF('Dash-1'!$I$45="Yes",0,I31) -> 0
B48: National Govt | K48: =IF('Dash-1'!$I$45="Yes",0,I32) -> 0
B49: Local Govt | C49: =IF('Dash-1'!I45="Yes",0,VAT!F9) -> 0 | K49: =IF('Dash-1'!$I$45="Yes",0,I33) -> 0
B50: Total | C50: =SUM(C42:C49) -> 11.87396238 | D50: =SUM(D42:D47) -> 10.4378504 | E50: 1.465000033 | F50: 0.5910000205 | G50: 2.902041352 | H50: 1.010000005 | I50: 6.274641295 | J50: =SUM(J42:J49) -> 0.3561416739 | K50: =SUM(K42:K49) -> 0
B51: net GRT/Control | C51: =IF('Dash-1'!I45="Yes",VAT!F46,VAT!F45)-J51 -> 11.87396238 | D51: =TaxEst!D11*Factor -> 10.4378504 | E51: =E36 -> 1.465000033 | F51: =F36 -> 0.5910000205 | G51: =G36 -> 2.902041352 | H51: =H36 -> 1.010000005 | I51: =TaxEst!D15*Factor -> 6.274641295 | J51: =VAT!$F$35 -> 0.3561416739 | K51: =-Summary!G24 -> 3.99936439
D52: =D50-D51 -> 0 | E52: 0 | F52: 0 | G52: 0 | H52: =H50-H51 -> 0 | I52: =I50-I51 -> 0 | J52: =J50-J51 -> 0 | K52: =K50-K51 -> -3.99936439

Sheet VAT
A1: Expenditure on GDP | B1: FY22 | C1: less non -taxable items | D1: less GRT & import duties | E1: VAT base | F1: Selected VAT | G1: VAT | J1: Revenue neutral rate | K1: GRT | L1: GRT allocated | M1: Food | N1: General | O1: Total | P1: Local Sales Tax | Q1: Local Sales Tax Allocated | W1: HFCE | X1: GRT | Y1: Allocated GRT | Z1: Food Duty | AA1: General
F2: =IF('Dash-1'!I45="Yes",'Dash-1'!I26,'Dash-1'!K45) -> 0.1 | G2: 0.1 | H2: 0.125 | I2: 0.15 | J2: 0.1266855199
A3: Final Consumption Expenditure | B3: =B4+B12+B16 -> 334.0824599 | U3: Total HFCE-Acquisition | W3: =SUM(W4:W52) -> 153.6743204 | X3: =SUM(X4:X52) -> 4.470477004 | Y3: =X3/(K44-K13+X3)*B49 -> 4.497349937 | Z3: =W37/SUM(W37,B31)*B52 -> 2.704661273 | AA3: =SUM(W40:W41,W45:W49,W51)/(SUM(W40:W41,W45:W49,W51)+B19+B21+B27+SUM(B29:B32))*B55 -> 0.2780752114
A4: Government Final Consumption Expenditure (GFCE) | B4: =B5+B6+B11 -> 148.5988007 | U4: BusPriv_Fishing | V4: Pr1_11Af_Fish | W4: 0.1945039221 | X4: =W4*$B$50*0.5 -> 0.002917558831
A5: Compensation of Employees | B5: =INDEX(Data!$B5:$G5,MATCH($B$1,Data!$B$1:$G$1,0)) -> 82.64885712 | U5: BusPriv_Manufacturing | V5: Pr1_11CC_Manuf | W5: 0.7344740977 | X5: =W5*$B$50 -> 0.02203422293
A6: Purchases of goods and services | B6: =INDEX(Data!$B6:$G6,MATCH($B$1,Data!$B$1:$G$1,0)) -> 52.94126515 | D6: =O6 -> 0.7988925991 | E6: =B6-D6-C6 -> 52.14237255 | F6: =$E6*F$2*(1-$B$60-$B$61) -> 4.181818279 | G6: 4.181818279 | H6: 5.227272848 | I6: 6.272727418 | J6: 5.297758226 | K6: =B6*$B$50*0.5 -> 0.7941189773 | L6: =K6*($B$49/$K$44) -> 0.7988925991 | O6: =SUM(L6:N6) -> 0.7988925991 | P6: =B6*$P$50*0.5 -> 1.588237955 | Q6: =P6/$P$44*$P$49 -> 0.4172817755 | U6: BusPriv_Transport | V6: Pr1_11HA_Transport | W6: 0.3086125635 | X6: =W6*$B$50 -> 0.009258376905
A7: National Government | B7: =INDEX(Data!$B243:$G243,MATCH($B$1,Data!$B$1:$G$1,0)) -> 38.45099854 | D7: =O7 -> 0.5802320379 | E7: =B7-D7-C7 -> 37.87076651 | F7: 3.037235474 | G7: 3.037235474 | H7: 3.796544342 | I7: 4.555853211 | J7: 3.84773755 | K7: =B7*$B$50*0.5 -> 0.5767649782 | L7: =K7*($B$49/$K$44) -> 0.5802320379 | O7: =SUM(L7:N7) -> 0.5802320379 | P7: =B7*$P$50*0.5 -> 1.153529956 | Q7: =P7/$P$44*$P$49 -> 0.3030698435 | U7: BusPriv_Taxis | V7: Pr1_11HB_Taxis | W7: 0.9627822559 | X7: 0.02888346768
A8: Government Agencies | B8: =INDEX(Data!$B244:$G244,MATCH($B$1,Data!$B$1:$G$1,0)) -> 3.061738014 | D8: =O8 -> 0.04620214181 | E8: 3.015535872 | F8: 0.241845977 | G8: 0.241845977 | H8: 0.3023074712 | I8: 0.3627689655 | J8: 0.3063838332 | K8: =B8*$B$50*0.5 -> 0.04592607021 | L8: 0.04620214181 | O8: 0.04620214181 | P8: =B8*$P$50*0.5 -> 0.09185214043 | Q8: =P8/$P$44*$P$49 -> 0.02413254521 | U8: BusPriv_Hotels | V8: Pr1_11IA_Hotel | W8: 0.6607189327 | X8: 0.01982156798
A9: Local Government | B9: =INDEX(Data!$B245:$G245,MATCH($B$1,Data!$B$1:$G$1,0)) -> 11.22385025 | D9: 0.1693697888 | E9: 11.05448046 | F9: 0.886569333 | G9: 0.886569333 | H9: 1.108211666 | I9: 1.329854 | J9: 1.123154968 | K9: =B9*$B$50*0.5 -> 0.1683577538 | L9: 0.1693697888 | O9: 0.1693697888 | P9: =B9*$P$50*0.5 -> 0.3367155075 | Q9: =P9/$P$44*$P$49 -> 0.08846611706 | U9: BusPriv_Restaurants | V9: Pr1_11IB_Rest | W9: 1.174124166 | X9: 0.03522372498
A10: Social Security Funds | B10: =INDEX(Data!$B246:$G246,MATCH($B$1,Data!$B$1:$G$1,0)) -> 0.2438286394 | D10: 0.003679415195 | E10: =B10-D10-C10 -> 0.2401492242 | F10: 0.01925996778 | G10: 0.01925996778 | H10: 0.02407495973 | I10: 0.02888995167 | J10: 0.02439959031 | K10: 0.003657429591 | L10: 0.003679415195 | O10: 0.003679415195 | P10: =B10*$P$50*0.5 -> 0.007314859182 | Q10: =P10/$P$44*$P$49 -> 0.001921851457 | U10: BusPriv_Real estate | V10: Pr1_11LA_RealEst | W10: 0.5995218158 | X10: 0.01798565447
A11: less sales | B11: =INDEX(Data!$B7:$G7,MATCH($B$1,Data!$B$1:$G$1,0)) -> 13.00867839 | U11: BusPriv_Professional | V11: Pr1_11MA_Prof | W11: 0.03895392679 | X11: 0.001168617804
A12: Household Final Consumption Expenditure (HFCE) | B12: =B13+B14+B15 -> 179.5540552 | O12: =SUM(L12:N12) -> 0 | U12: BusPriv_Administrative | V12: Pr1_11NA_Admin | W12: 0.0981234911 | X12: 0.002943704733
A13: Households' acquisition | B13: =INDEX(Data!$B9:$G9,MATCH($B$1,Data!$B$1:$G$1,0)) -> 153.6743164 | C13: =INDEX(Data!$B87:$G87,MATCH($B$1,Data!$B$1:$G$1,0)) -> 4.6584203 | D13: =O13 -> 8.741864557 | E13: =B13-D13-C13 -> 140.2740315 | F13: =$E13*F$2*(1-$B$60-$B$61) -> 11.24997733 | G13: =$E13*G$2*(1-$B$60-$B$61) -> 11.24997733 | H13: =$E13*H$2*(1-$B$60-$B$61) -> 14.06247166 | I13: =$E13*I$2*(1-$B$60-$B$61) -> 16.874966 | J13: =$E13*J$2*(1-$B$60-$B$61) -> 14.25209227 | K13: =(B13-C13)*B50 -> 4.470476883 | L13: =K13*($B$49/$K$44) -> 4.497349892 | M13: =$B$52*(B13-C13)/($B$13-$C$13+$B$31) -> 2.734660024 | N13: =$B$55*(B13-C13)/($B$13-$C$13+$B$19+$B$21+$B$27+$B$29+$B$30+$B$31+$B$32) -> 1.509854641 | O13: =SUM(L13:N13) -> 8.741864557 | P13: =(B13-C13)*P50 -> 8.940953766 | Q13: =P13/$P$44*$P$49 -> 2.349079401 | S13: =E13/Data!G47 -> 0.5420705867 | U13: BusPriv_Health | V13: Pr1_11QA_Health | W13: 0.04888915926 | X13: 0.001466674778
A14: Dwellings | B14: =INDEX(Data!$B10:$G10,MATCH($B$1,Data!$B$1:$G$1,0)) -> 14.36909676 | O14: 0 | U14: BusPriv_Other services to HH | V14: Pr1_11RS_ServHH | W14: 0.2891716838 | X14: 0.008675150514
A15: Other (non-market on production) | B15: =INDEX(Data!$B11:$G11,MATCH($B$1,Data!$B$1:$G$1,0)) -> 11.51064205 | O15: 0 | U15: BusSOE_MEC(U) | V15: Pr1_12DA_MEC(U) | W15: 7.497435191 | X15: 0.2249230557
A16: NGOs | B16: =INDEX(Data!$B12:$G12,MATCH($B$1,Data!$B$1:$G$1,0)) -> 5.929604053 | D16: =O16 -> 0.08947872289 | E16: =B16-D16-C16 -> 5.840125331 | F16: =$E16*F$2*(1-$B$60-$B$61) -> 0.4683780515 | G16: =$E16*G$2*(1-$B$60-$B$61) -> 0.4683780515 | H16: =$E16*H$2*(1-$B$60-$B$61) -> 0.5854725644 | I16: =$E16*I$2*(1-$B$60-$B$61) -> 0.7025670773 | J16: =$E16*J$2*(1-$B$60-$B$61) -> 0.5933671695 | K16: =B16*B50*0.5 -> 0.0889440608 | L16: =K16*($B$49/$K$44) -> 0.08947872289 | O16: 0.08947872289 | P16: =B16*$P$50*0.5 -> 0.1778881216 | Q16: =P16/$P$44*$P$49 -> 0.04673699619 | U16: BusSOE_Kajur | V16: Pr1_12DB_Kajur | W16: 4.553621055 | X16: 0.1366086316
O17: 0 | U17: BusSOE_MWSC | V17: Pr1_12EA_MWSC | W17: 0.6064309548 | X17: 0.01819292864
A18: Investment and inventories | B18: =SUM(B19:B24) -> 52.01061523 | O18: 0 | U18: BusSOE_AMI | V18: Pr1_12HB_AMI | W18: 2.405133191 | X18: 0.07215399572
A19: Construction: Other | B19: =INDEX(Data!$B15:$G15,MATCH($B$1,Data!$B$1:$G$1,0)) -> 11.43921089 | D19: =O19 -> 0.4611432828 | K19: =B19*B50 -> 0.3431763268 | L19: =K19*($B$49/$K$44) -> 0.3452392343 | N19: =$B$55*(B19-C19)/($B$13-$C$13+$B$19+$B$21+$B$27+$B$29+$B$30+$B$31+$B$32) -> 0.1159040486 | O19: 0.4611432828 | P19: =B19*$P$50 -> 0.6863526535 | Q19: =P19/$P$44*$P$49 -> 0.1803271689 | U19: BusSOE_MISC | V19: Pr1_12HC_MISC | W19: 0.4282315318 | X19: 0.01284694595
A20: Construction: REPMAR | B20: =INDEX(Data!$B16:$G16,MATCH($B$1,Data!$B$1:$G$1,0)) -> 7.589000225 | U20: BusSOE_PO | V20: Pr1_12HD_PO | W20: 0.2041179738 | X20: 0.006123539214
A21: Equipment: other | B21: =INDEX(Data!$B17:$G17,MATCH($B$1,Data!$B$1:$G$1,0)) -> 26.94236374 | D21: =O21 -> 0.2729846547 | N21: =$B$55*(B21-C21)/($B$13-$C$13+$B$19+$B$21+$B$27+$B$29+$B$30+$B$31+$B$32) -> 0.2729846547 | O21: 0.2729846547 | P21: =B21*$P$50 -> 1.616541824 | Q21: =P21/$P$44*$P$49 -> 0.4247181228 | U21: BusSOE_MIR | V21: Pr1_12IA_MIR | W21: 1.092669373 | X21: 0.0327800812
A22: Equipment: REPMAR | B22: =INDEX(Data!$B18:$G18,MATCH($B$1,Data!$B$1:$G$1,0)) -> 5.368000031 | U22: BusSOE_NTA | V22: Pr1_12JB_NTA | W22: 2.606689754 | X22: 0.07820069262
A23: Ships, Aircraft | B23: =INDEX(Data!$B19:$G19,MATCH($B$1,Data!$B$1:$G$1,0)) -> 0 | T23: Exempt | U23: BankCom | V23: Pr1_21KA_BankCom | W23: 0.5848979502
A24: Changes in inventories | B24: =INDEX(Data!$B20:$G20,MATCH($B$1,Data!$B$1:$G$1,0)) -> 0.6720403433 | O24: 0 | T24: Exempt | U24: BankDev | V24: Pr1_22KB_BankDev | W24: 0.7429034344
O25: 0 | T25: Exempt | U25: FinOth_Insurance agents | V25: Pr1_23KC_FinIns | W25: 0.3334577133
A26: Exports of goods and services | B26: =SUM(B27:B33) -> 119.7417185 | O26: 0 | T26: Exempt | U26: FinOth_Financial Auxiliaries | V26: Pr1_23KD_FinAux | W26: 0.6473157025
A27: Re-Exports - Goods | B27: =INDEX(Data!$B23:$G23,MATCH($B$1,Data!$B$1:$G$1,0)) -> 20.20346451 | D27: =O27 -> 0.8144523286 | K27: =B27*$B$50 -> 0.6061039352 | L27: =K27*($B$49/$K$44) -> 0.6097473578 | N27: =$B$55*(B27-C27)/($B$13-$C$13+$B$19+$B$21+$B$27+$B$29+$B$30+$B$31+$B$32) -> 0.2047049708 | O27: 0.8144523286 | P27: =B27*$P$50*0.5 -> 0.6061039352 | Q27: =P27/$P$44*$P$49 -> 0.1592432201 | U27: GovNat_Public Admin | V27: Pr1_31OA_PubAdmin | W27: 0.4447500406 | X27: 0.01334250122
A28: Exports - Goods, Offshore Fish | B28: =INDEX(Data!$B24:$G24,MATCH($B$1,Data!$B$1:$G$1,0)) -> 71.09102631 | O28: 0 | U28: GovAgen_Public Admin | V28: Pr1_32OA_PubAdmin | W28: 0.004821860862 | X28: 0.0001446558259
A29: Exports - Goods, Other | B29: =INDEX(Data!$B25:$G25,MATCH($B$1,Data!$B$1:$G$1,0)) -> 8.481425285 | D29: =O29 -> 0.3419075263 | K29: =B29*$B$50 -> 0.2544427586 | L29: =K29*($B$49/$K$44) -> 0.2559722693 | N29: =$B$55*(B29-C29)/($B$13-$C$13+$B$19+$B$21+$B$27+$B$29+$B$30+$B$31+$B$32) -> 0.08593525703 | O29: 0.3419075263 | P29: =B29*$P$50 -> 0.5088855171 | Q29: =P29/$P$44*$P$49 -> 0.1337007792 | U29: GovAgen_CMI | V29: Pr1_32PA_CMI | W29: 6.595784187 | X29: 0.1978735256
A30: Exports: Services | B30: =INDEX(Data!$B26:$G26,MATCH($B$1,Data!$B$1:$G$1,0)) -> 7.510590553 | D30: 0.3027707432 | K30: =B30*$B$50 -> 0.2253177166 | L30: =K30*($B$49/$K$44) -> 0.2266721504 | N30: =$B$55*(B30-C30)/($B$13-$C$13+$B$19+$B$21+$B$27+$B$29+$B$30+$B$31+$B$32) -> 0.07609859285 | O30: 0.3027707432 | P30: =B30*$P$50 -> 0.4506354332 | Q30: =P30/$P$44*$P$49 -> 0.1183965873 | U30: GovAgen_HCRF | V30: Pr1_32QA_HCRF | W30: 0.4575958252 | X30: 0.01372787476
A31: Exports: Tourism (Goods & Services) | B31: =INDEX(Data!$B27:$G27,MATCH($B$1,Data!$B$1:$G$1,0)) -> 2.06115222 | D31: 0.1209153789 | E31: =B31-D31-C31 -> 1.940236841 | F31: =$E31*F$2*(1-$B$60-$B$61) -> 0.1556069946 | G31: =$E31*G$2*(1-$B$60-$B$61) -> 0.1556069946 | H31: =$E31*H$2*(1-$B$60-$B$61) -> 0.1945087433 | I31: =$E31*I$2*(1-$B$60-$B$61) -> 0.233410492 | J31: =$E31*J$2*(1-$B$60-$B$61) -> 0.1971315301 | K31: =B31*$B$50 -> 0.06183456659 | L31: =K31*($B$49/$K$44) -> 0.06220626762 | M31: =$B$52*(B31-C31)/($B$13-$C$13+$B$31) -> 0.03782516313 | N31: =$B$55*(B31-C31)/($B$13-$C$13+$B$19+$B$21+$B$27+$B$29+$B$30+$B$31+$B$32) -> 0.02088394814 | O31: 0.1209153789 | P31: =B31*$P$50 -> 0.1236691332 | Q31: =P31/$P$44*$P$49 -> 0.0324919042 | U31: GovAgen_HF | V31: Pr1_32QA_HF | W31: 0.6632566452 | X31: 0.01989769936
A32: Exports: Fishing boat provisions (Goods & Services) | B32: =INDEX(Data!$B28:$G28,MATCH($B$1,Data!$B$1:$G$1,0)) -> 8.6957798 | D32: 0.3505486945 | K32: =B32*$B$50 -> 0.260873394 | L32: =K32*($B$49/$K$44) -> 0.2624415607 | N32: =$B$55*(B32-C32)/($B$13-$C$13+$B$19+$B$21+$B$27+$B$29+$B$30+$B$31+$B$32) -> 0.08810713377 | O32: 0.3505486945 | P32: =B32*$P$50 -> 0.521746788 | Q32: =P32/$P$44*$P$49 -> 0.1370798535 | U32: Npish_Education | V32: Pr1_41PA_Ed | W32: 1.566563785 | X32: 0.04699691355
A33: Exports (embassies) | B33: =INDEX(Data!$B29:$G29,MATCH($B$1,Data!$B$1:$G$1,0)) -> 1.698279858 | U33: Npish_USP | V33: Pr1_41PA_USP | W33: 2.332381524 | X33: 0.06997144573
U34: HHcash_Csh_Fish | V34: Pr1_51Af_Csh_Fish | W34: 2.718879223 | X34: 0.08156637669
A35: less Imports | B35: =-SUM(B36:B42) -> -175.8963127 | E35: =(B40)*0.075 -> 4.44066925 | F35: =$E35*F$2*(1-$B$60-$B$61) -> 0.3561416739 | G35: =$E35*G$2*(1-$B$60-$B$61) -> 0.3561416739 | H35: =$E35*H$2*(1-$B$60-$B$61) -> 0.4451770924 | I35: =$E35*I$2*(1-$B$60-$B$61) -> 0.5342125108 | J35: =$E35*J$2*(1-$B$60-$B$61) -> 0.451179931 | U35: HHcash_Csh_Man | V35: Pr1_51CE_Csh_Man | W35: 0.9609381266 | X35: 0.0288281438
A36: Food, beverages, tobacco | B36: =INDEX(Data!$B32:$G32,MATCH($B$1,Data!$B$1:$G$1,0)) -> 59.90823746 | U36: FISIM | V36: Pr1_FISIM | W36: 9.54601645 | X36: 0.2863804935
A37: Fuel (landed) | B37: =INDEX(Data!$B33:$G33,MATCH($B$1,Data!$B$1:$G$1,0)) -> 29.67877769 | U37: Imports, Goods, Food | V37: Pr1_ImGd01 | W37: 82.19399704 | X37: 2.465819911
A38: Fishing Boats, Aircraft | B38: =INDEX(Data!$B34:$G34,MATCH($B$1,Data!$B$1:$G$1,0)) -> 0 | U38: Imports, Goods, Alcohol | V38: Pr1_ImGd02 | W38: 0.2168143687 | X38: 0.006504431061
A39: Fishing Boat, provisions at sea | B39: =INDEX(Data!$B35:$G35,MATCH($B$1,Data!$B$1:$G$1,0)) -> 11.46241951 | U39: Imports, Goods, Cigarettes, and other non-alcohol stimulants | V39: Pr1_ImGd03 | W39: 3.416520834 | X39: 0.102495625
A40: Other goods | B40: =INDEX(Data!$B36:$G36,MATCH($B$1,Data!$B$1:$G$1,0)) -> 59.20892334 | U40: Imports, Goods, Medical supplies and pharmaceuticals | V40: Pr1_ImGd04 | W40: 0.1647613669 | X40: 0.004942841007
A41: Construction | B41: =INDEX(Data!$B37:$G37,MATCH($B$1,Data!$B$1:$G$1,0)) -> 0 | U41: Imports, Goods, Industrial supplies (non-food), other | V41: Pr1_ImGd07 | W41: 0.1125841297 | X41: 0.00337752389
A42: Airlines, travel, medical | B42: =INDEX(Data!$B38:$G38,MATCH($B$1,Data!$B$1:$G$1,0)) -> 15.63795471 | U42: Imports, Goods, Fuels gasoline | V42: Pr1_ImGd09 | W42: 2.067385486 | X42: 0.06202156459
A43: Other services | B43: =INDEX(Data!$B39:$G39,MATCH($B$1,Data!$B$1:$G$1,0)) -> 14.74376869 | U43: Imports, Goods, Fuels - aviation gas lubricants | V43: Pr1_ImGd11 | W43: 0.06294932459 | X43: 0.001888479738
A44: Totals | B44: =B3+B18+B26+B35 -> 329.938481 | C44: =SUM(C6:C42) -> 4.6584203 | D44: =SUM(D6:D42)-SUM(D7:D10) -> 12.29495849 | E44: =SUM(E6:E42)-SUM(E7:E10) -> 204.6374355 | F44: =SUM(F6:F42)-SUM(F7:F10) -> 16.41192233 | G44: =SUM(G6:G42)-SUM(G7:G10) -> 16.41192233 | H44: 20.51490291 | I44: 24.61788349 | J44: =SUM(J6:J42)-SUM(J7:J10) -> 20.79152912 | K44: =SUM(K6:K42)-SUM(K7:K10) -> 7.105288619 | L44: =SUM(L6:L42)-SUM(L7:L10) -> 7.148000054 | M44: =SUM(M6:M42) -> 2.772485187 | N44: =SUM(N6:N42) -> 2.374473247 | O44: =SUM(O6:O42)-SUM(O7:O10) -> 12.29495849 | P44: =SUM(P7:P32) -> 15.22218964 | Q44: =P44/$P$44*$P$49 -> 3.99936439 | U44: Imports, Goods, Fuels - lubricants | V44: Pr1_ImGd12 | W44: 0.04122692016 | X44: 0.001236807605
A45: net of national government, agencies and SS VAT | E45: =E44-E7-E8-E10 -> 163.5109839 | F45: =F44-F7-F8-F10 -> 13.11358091 | G45: =G44-G7-G8-G10 -> 13.11358091 | H45: 16.39197614 | I45: 19.67037137 | J45: =J44-J7-J8-J10 -> 16.61300815 | U45: Imports, Goods, Machinery and other capital equipment | V45: Pr1_ImGd13 | W45: -0.7916067718 | X45: -0.02374820315
A46: net of government VAT including Local Government | E46: =E44-E6 -> 152.495063 | F46: =F44-F6 -> 12.23010405 | G46: =G44-G6 -> 12.23010405 | H46: =H44-H6 -> 15.28763006 | I46: 18.34515608 | J46: =J44-J6 -> 15.4937709 | U46: Imports, Goods, Parts and accessories | V46: Pr1_ImGd14 | W46: 0.05592326516 | X46: 0.001677697955
U47: Imports, Goods, Passenger motor vehicles | V47: Pr1_ImGd15 | W47: 3.712357955 | X47: 0.1113707386
A48: Existing tax collections | U48: Imports, Goods, Consumer goods not elsewhere specified | V48: Pr1_ImGd19 | W48: 3.536181133 | X48: 0.106085434
A49: GRT | B49: =INDEX(Data!$B54:$G54,MATCH($B$1,Data!$B$1:$G$1,0)) -> 7.148000054 | O49: Sales Tax | P49: =-SUM(Summary!G25:G26) -> 3.99936439 | U49: Imports, Goods, Humanitarian assistance | V49: Pr1_ImGd23 | W49: 0.5936769843 | X49: 0.01781030953
A50: GRT rate | B50: 0.03 | O50: Rate | P50: 0.06 | T50: Exempt | U50: Imports, Services, Foreign Airlines | V50: Pr1_ImSv03 | W50: 1.641475212
A51: Imports | B51: =SUM(B52:B55) -> 7.202958488 | U51: Imports, Services, Personal travel | V51: Pr1_ImSv06 | W51: 3.93518734 | X51: 0.1180556202
A52: Food | B52: =INDEX(Data!$B57:$G57,MATCH($B$1,Data!$B$1:$G$1,0)) -> 2.772485187 | T52: Exempt | U52: Imports, Services, Financial services | V52: Pr1_ImSv11 | W52: 0.6111183258
A53: Alcohol and Tobacco | B53: =INDEX(Data!$B58:$G58,MATCH($B$1,Data!$B$1:$G$1,0)) -> 1.465000033
A54: Fuel | B54: =INDEX(Data!$B60:$G60,MATCH($B$1,Data!$B$1:$G$1,0)) -> 0.5910000205
A55: General imports | B55: =INDEX(Data!$B56:$G56,MATCH($B$1,Data!$B$1:$G$1,0)) -> 2.374473247
A56: Wages tax (Marshallese Income Tax) | B56: =INDEX(Data!$B62:$G62,MATCH($B$1,Data!$B$1:$G$1,0)) -> 11.64900017
J58: =($B13-$D13+J13)/$B13-1 -> 0.03585652982
A59: Increase in Tax yield
A60: Non-VAT registered businesses % turnover | B60: 0.098
A61: Allowance for error | B61: 0.1
J64: =J46*(1-Summary!F38-Summary!F39)+SUM(Summary!F16:F22) -> -2.224516012
A67: Housing Construction Percentage | B67: =1/3 -> 0.3333333333
A68: NGO Share | B68: =1/3 -> 0.3333333333

Sheet Wage
M1: DO NOT CHANGE | Q1: Tax Relief [Exemption Adjusmtment] | X1: Tax Relief(change Everything)
B2: Tax on Wages and Salaries | M2: 1 | O2: Weekly Income | R2: Interval | T2: Rate | U2: Tax Burden | X2: Interval | Z2: Rate | AA2: Tax Burden
B3: Income Bracket | I3: Current Tax Rate | N3: min wage | O3: ='Dash-1'!D12 -> 160 | Q3: 1 | R3: 0 | S3: =O3*52 -> 8320 | T3: ='Dash-1'!K12 -> 0 | U3: 0 | W3: 1 | X3: 0 | Y3: =S3 -> 8320 | Z3: ='Dash-1'!K31 -> 0 | AA3: 0
B4: $0 - $1,560 | I4: 0 | O4: ='Dash-1'!D13 -> 300 | Q4: 2 | R4: =S3+0.01 -> 8320.01 | S4: =O4*52 -> 15600 | T4: ='Dash-1'!K13 -> 0.08 | U4: 0 | W4: 2 | X4: =Y3+0.01 -> 8320.01 | Y4: =S4 -> 15600 | Z4: ='Dash-1'!K33 -> 0.08 | AA4: =(Y3-X3)*Z3 -> 0
B5: $1,561- $5,200 | F5: 8% with the first $1,560 if exempted from tax if income is no more than $5,200 | O5: ='Dash-1'!D14 -> 500 | Q5: 3 | R5: =S4+0.01 -> 15600.01 | S5: =O5*52 -> 26000 | T5: ='Dash-1'!K14 -> 0.12 | U5: =(S4*T4) -> 1248 | W5: 3 | X5: =Y4+0.01 -> 15600.01 | Y5: =S5 -> 26000 | Z5: ='Dash-1'!K34 -> 0.12 | AA5: =(Y3-X3)*Z3+(Y4-Y3)*Z4 -> 582.4
B6: $5,201 - $10,400 | I6: 0.08 | Q6: 4 | R6: =S5+0.01 -> 26000.01 | T6: ='Dash-1'!K15 -> 0.16 | U6: =(S5-S4)*T5+S4*T4 -> 2496 | W6: 4 | X6: =Y5+0.01 -> 26000.01 | Z6: ='Dash-1'!K35 -> 0.16 | AA6: =(Y3-X3)*Z3+(Y4-Y3)*Z4+(Y5-Y4)*Z5 -> 1830.4
B7: > $10,400 | I7: 0.12 | U7: =SUM(U5:U6) -> 3744 | AA7: =SUM(AA5:AA6) -> 2412.8
B9: US Contractor personnel is levied a 5 percent tax on all wages and salaries received | Q9: Exemption Adjustment | T9: Diff | W9: Change Everything | Z9: Diff
R10: Collection | S10: =S11*J30/J31 -> 9967670.923 | T10: =IF($M$2=1,J30-S10,0) -> 1681329.245 | X10: Collection | Y10: =Y11*J30/J31 -> 6312859.978 | Z10: =J30-Y10 -> 5336140.19
R11: Marshallese | S11: =SUM(N51:N9938) -> 8237716.495 | X11: Marshallese | Y11: =SUMIF($D$51:$D$10872,"226",Q51:Q10872) -> 5217221.874
G12: FY12 | R12: Collection | S12: =S13*J34/J35 -> 3101137.408 | T12: =IF(M2=1,J34-S12,0) -> 158170.7667 | X12: Collection | Y12: =Y13*J34/J35 -> 2320298.464 | Z12: =J34-Y12 -> 939009.7113
G13: Expats on Marshallese IT | H13: 2595.347 | R13: Non-Marshallese | S13: =SUM(N9939:N11405) -> 2328889.67 | X13: Non-Marshallese | Y13: =SUM(Q9939:Q11405) -> 1742495.869
T14: =SUM(T10:T13) -> 1839500.012 | Z14: =SUM(Z10:Z13) -> 6275149.901
I17: # of Marshallese filers | J17: =COUNTIFS(I51:I9938,">0") -> 9888 | Q17: Tax Relief [Exemption Adjusmtment] | U17: 0.1 | V17: 0.2 | W17: 0.3 | X17: 0.4 | Y17: 0.5 | Z17: 0.6 | AA17: 0.7 | AB17: 0.8 | AC17: 0.9 | AD17: 1
I18: Number of Taxpayers per Percentile | J18: =ROUND(COUNTIFS(I51:I9938,">="&0)/100,) -> 99 | U18: Decile 1 | V18: Decile 2 | W18: Decile 3 | X18: Decile 4 | Y18: Decile 5 | Z18: Decile 6 | AA18: Decile 7 | AB18: Decile 8 | AC18: Decile 9 | AD18: Decile 10
T19: Income Cut-offs | U19: =_xlfn.PERCENTILE.INC($I$51:$I$9941,U17) -> 850 | V19: 1986.8 | W19: 3600 | X19: 5760 | Y19: 7521.33 | Z19: 9779.83 | AA19: 12954.67 | AB19: 17187.47 | AC19: 24009.48 | AD19: 181246.68
T20: Old Tax Paid at the Income Cut-off | U20: =IF(U19<=10400,IF(U19<5200,IF(U19<1560,0,(U19-1560)*0.08),U19*0.08),10400*0.08+(U19-10400)*0.12) -> 0 | V20: 34.144 | W20: 163.2 | X20: 460.8 | Y20: 601.7064 | Z20: 782.3864 | AA20: 1138.5604 | AB20: 1646.4964 | AC20: 2465.1376 | AD20: 21333.6016
G22: Expats on discounted IT in Kwaj | H22: 1437.054 | I22: =SUMIF(D51:D11405,"226",I51:I11405) -> 104923040.2 | J22: =I22/SUM(I22:I23) -> 0.8107015489 | T22: Bracket Under the New System | U22: =IF(U19>$R$6,$Q$6,INDEX($Q$3:$Q$5,MATCH(U19,$R$3:$R$5,1))) -> 1 | V22: 1 | W22: 1 | X22: 1 | Y22: 1 | Z22: 2 | AA22: 2 | AB22: 3 | AC22: 3 | AD22: 4
I23: =SUM(I51:I11405)-I22 -> 24499483.22 | T23: Tax Paid under New System | U23: =INDEX($U$3:$U$6,MATCH(U22,$Q$3:$Q$6,0))+IF(U22=$Q$4,U19*INDEX($T$3:$T$6,MATCH(U22,$Q$3:$Q$6,0)),INDEX($T$3:$T$6,MATCH(U22,$Q$3:$Q$6,0))*(U19-INDEX($R$3:$R$6,MATCH(U22,$Q$3:$Q$6,0)))) -> 0 | V23: 0 | W23: 0 | X23: 0 | Y23: 0 | Z23: 782.3864 | AA23: 1036.3736 | AB23: 1438.4952 | AC23: 2257.1364 | AD23: 27335.4672
N24: On Real Income Change | T24: Nominal Tax Savings | U24: =U20-U23 -> 0 | V24: 34.144 | W24: 163.2 | X24: 460.8 | Y24: 601.7064 | Z24: 0 | AA24: 102.1868 | AB24: 208.0012 | AC24: 208.0012 | AD24: -6001.8656
N26: Median | O26: =MEDIAN(T51:T9938) -> 0.05473338316 | T26: Percent Change in Nominal Income | U26: =IF($M$2=1,U24/(U19-U20),"") -> 0 | V26: 0.01748592686 | W26: 0.04748603352 | X26: 0.08695652174 | Y26: 0.08695652174 | Z26: 0 | AA26: 0.008648091754 | AB26: 0.01338405208 | AC26: 0.00965456249 | AD26: -0.03753204966
I27: Overall Reduction in Wage Tax Burden | J27: =1-TaxEst!D11/TaxEst!C11 -> 0.3754651941 | N27: Mean | O27: =AVERAGE(T51:T9938) -> 0.04873464704 | T27: Bi-Weekly Gain/Loss | U27: =U24/26 -> 0 | V27: 1.313230769 | W27: 6.276923077 | X27: 17.72307692 | Y27: 23.14255385 | Z27: 0 | AA27: 3.930261538 | AB27: 8.000046154 | AC27: 8.000046154 | AD27: -230.8409846
N28: Turning Point Weekly Income | O28: =INDEX(I51:I9938,MATCH(0,T51:T9938,1))/52 -> 766.1973077
N29: Turning Point Hourly Rate | O29: =O28/40 -> 19.15493269 | Q29: Tax Relief [Second Round]
I30: Collection | J30: =Data!G62*1000000 -> 11649000.17 | U30: Decile 1 | V30: Decile 2 | W30: Decile 3 | X30: Decile 4 | Y30: Decile 5 | Z30: Decile 6 | AA30: Decile 7 | AB30: Decile 8 | AC30: Decile 9 | AD30: Decile 10
I31: Marshallese | J31: =SUMIF($D$51:$D$10872,"226",J51:J10872) -> 9627240.062 | T31: Income Cut-offs | U31: =_xlfn.PERCENTILE.INC($I$51:$I$9941,U17) -> 850 | V31: 1986.8 | W31: 3600 | X31: 5760 | Y31: 7521.33 | Z31: 9779.83 | AA31: 12954.67 | AB31: 17187.47 | AC31: 24009.48 | AD31: 181246.68
T32: Tax Relief Period Tax Paid at the Income Cut-off | U32: =IFERROR(INDEX($U$3:$U$6,MATCH(U22,$Q$3:$Q$6,0))+IF(U22=$Q$4,U19*INDEX($T$3:$T$6,MATCH(U22,$Q$3:$Q$6,0)),INDEX($T$3:$T$6,MATCH(U22,$Q$3:$Q$6,0))*(U19-INDEX($R$3:$R$6,MATCH(U22,$Q$3:$Q$6,0)))),U20) -> 0 | V32: =IF($M$2=1,INDEX($U$3:$U$6,MATCH(V22,$Q$3:$Q$6,0))+IF(V22=$Q$4,V19*INDEX($T$3:$T$6,MATCH(V22,$Q$3:$Q$6,0)),INDEX($T$3:$T$6,MATCH(V22,$Q$3:$Q$6,0))*(V19-INDEX($R$3:$R$6,MATCH(V22,$Q$3:$Q$6,0)))),V20) -> 0 | W32: 0 | X32: 0 | Y32: 0 | Z32: 782.3864 | AA32: 1036.3736 | AB32: 1438.4952 | AC32: 2257.1364 | AD32: 27335.4672
I34: Collection | J34: =(Data!G63*1000000)*H13/SUM(H13:H22) -> 3259308.175 | T34: Bracket Under the New System | U34: =IF(U31>$R$6,$Q$6,INDEX($Q$3:$Q$5,MATCH(U31,$R$3:$R$5,1))) -> 1 | V34: 1 | W34: 1 | X34: 1 | Y34: 1 | Z34: 2 | AA34: 2 | AB34: 3 | AC34: 3 | AD34: 4
I35: Non-Marshallese in Marshallese Tax System | J35: =SUM(J9939:J11405) -> 2447672.624 | T35: Tax Paid under New System | U35: =INDEX($AA$3:$AA$6,MATCH(U34,$W$3:$W$6,0))+INDEX($Z$3:$Z$6,MATCH(U34,$W$3:$W$6,0))*(U31-INDEX($X$3:$X$6,MATCH(U34,$W$3:$W$6,0))) -> 0 | V35: 0 | W35: 0 | X35: 0 | Y35: 0 | Z35: 116.7856 | AA35: 370.7728 | AB35: 772.8952 | AC35: 1591.5364 | AD35: 26669.8672
T36: Nominal Tax Savings | U36: =U32-U35 -> 0 | V36: 0 | W36: 0 | X36: 0 | Y36: 0 | Z36: 665.6008 | AA36: 665.6008 | AB36: 665.6 | AC36: 665.6 | AD36: 665.6
E38: Summary | T38: Percent Change in Nominal Income | U38: =U36/(U31-U32) -> 0 | V38: =V36/(V31-V32) -> 0 | W38: =W36/(W31-W32) -> 0 | X38: 0 | Y38: 0 | Z38: 0.0739766571 | AA38: 0.05584697491 | AB38: 0.04226306845 | AC38: 0.03059900176 | AD38: 0.004324571211
T39: Bi-Weekly Gain | U39: =U36/26 -> 0 | V39: 0 | W39: 0 | X39: 0 | Y39: 0 | Z39: 25.60003077 | AA39: 25.60003077 | AB39: 25.6 | AC39: 25.6 | AD39: 25.6
I40: Actual | J40: Coll in R2 | K40: Diff
H41: MI Citz | I41: =J30 -> 11649000.17 | J41: =Y10 -> 6312859.978 | K41: =I41-J41 -> 5336140.19 | T41: Real Tax Savings | U41: =(U47/(1+U45))-U46 -> 10.73965191 | V41: =(V47/(1+V45))-V46 -> 61.96842526 | W41: 196.4492701 | X41: 501.1394593 | Y41: 599.2833986 | Z41: 642.471283 | AA41: 734.4952248 | AB41: 816.5916751 | AC41: 712.9576288 | AD41: =(AD47/(1+AD45))-AD46 -> -6727.170406
H42: Non-MI Citz | I42: =J34 -> 3259308.175 | J42: =Y12 -> 2320298.464 | K42: =I42-J42 -> 939009.7113 | T42: Percent Change in Real Income | U42: =U41/(U19-U20) -> 0.0126348846 | V42: 0.0317354543 | W42: 0.05716051852 | X42: 0.09456888952 | Y42: 0.08660635799 | Z42: 0.07140598058 | AA42: 0.06216049526 | AB42: 0.05254443487 | AC42: 0.0330925686 | AD42: -0.04206766872
K43: =SUM(K41:K42) -> 6275149.901 | T43: Bi-Weekly Gain | U43: =U41/26 -> 0.4130635349 | V43: 2.383400971 | W43: 7.555741156 | X43: 19.27459459 | Y43: 23.04936149 | Z43: 24.71043396 | AA43: 28.24981634 | AB43: 31.40737212 | AC43: 27.42144726 | AD43: -258.7373233
T45: CPI Impact by Decile | U45: =CPI!Y15 -> -0.01247723616 | V45: =CPI!Z15 -> -0.01381122204 | W45: =CPI!AA15 -> -0.009151386978 | X45: =CPI!AB15 -> -0.006954672155 | Y45: =CPI!AC15 -> 0.000322254468 | Z45: =CPI!AD15 -> 0.002399348676 | AA45: =CPI!AE15 -> 0.002652651063 | AB45: =CPI!AF15 -> 0.003485208462 | AC45: =CPI!AG15 -> 0.007217567766 | AD45: =CPI!AH15 -> 0.009079848296
J46: Tax Benefits on R1: | K46: =TEXT(Wage!T14*Factor,"$0.0")&" million" -> $1.8 million | T46: After Tax Income Pre-reform | U46: =U19-U20 -> 850 | V46: 1952.656 | W46: 3436.8 | X46: 5299.2 | Y46: 6919.6236 | Z46: 8997.4436 | AA46: 11816.1096 | AB46: 15540.9736 | AC46: 21544.3424 | AD46: 159913.0784
T47: After Tax Income (After Reforms) | U47: =U31-U35 -> 850 | V47: =V31-V35 -> 1986.8 | W47: 3600 | X47: 5760 | Y47: 7521.33 | Z47: 9663.0444 | AA47: 12583.8972 | AB47: 16414.5748 | AC47: 22417.9436 | AD47: 154576.8128
D50: Citz | G50: Decile | H50: Qtrs | I50: Annual | J50: Old Tax Paid | K50: Old After Tax Income | L50: CPI Impact | M50: R1 Band | N50: R1 Relief Adj Tax Liablity | O50: R1 After Tax Income | P50: R2 Band | Q50: R2 Simulated Tax Liability | R50: R2 After Tax Income | S50: Real Tax Saving | T50: % Loss in Real Income
D51: 226 | G51: Decile 10 | H51: 4 | I51: 181246.68 | J51: =IF(I51<=10400,IF(I51<5200,IF(I51<1560,0,(I51-1560)*0.08),I51*0.08),10400*0.08+(I51-10400)*0.12) -> 21333.6016 | K51: =I51-J51 -> 159913.0784 | L51: =INDEX($U$45:$AD$45,MATCH(G51,$U$18:$AD$18,0)) -> 0.009079848296 | M51: =IF(I51>$R$6,$Q$6,INDEX($Q$3:$Q$5,MATCH(I51,$R$3:$R$5,1))) -> 4 | N51: =INDEX($U$3:$U$6,MATCH(M51,$Q$3:$Q$6,0))+IF(M51=$Q$4,I51*INDEX($T$3:$T$6,MATCH(M51,$Q$3:$Q$6,0)),INDEX($T$3:$T$6,MATCH(M51,$Q$3:$Q$6,0))*(I51-INDEX($R$3:$R$6,MATCH(M51,$Q$3:$Q$6,0)))) -> 27335.4672 | O51: =I51-N51 -> 153911.2128 | P51: =IF(I51>$X$6,$W$6,INDEX($W$3:$W$5,MATCH(I51,$X$3:$X$5,1))) -> 4 | Q51: =INDEX($AA$3:$AA$6,MATCH(P51,$W$3:$W$6,0))+INDEX($Z$3:$Z$6,MATCH(P51,$W$3:$W$6,0))*(I51-INDEX($X$3:$X$6,MATCH(P51,$W$3:$W$6,0))) -> 26669.8672 | R51: =I51-Q51 -> 154576.8128 | S51: =(R51/(1+L51)-K51) -> -6727.170406 | T51: =S51/K51 -> -0.04206766872
D52: 226 | G52: Decile 10 | H52: 4 | I52: 126330.2 | J52: =IF(I52<=10400,IF(I52<5200,IF(I52<1560,0,(I52-1560)*0.08),I52*0.08),10400*0.08+(I52-10400)*0.12) -> 14743.624 | K52: =I52-J52 -> 111586.576 | L52: 0.009079848296 | M52: 4 | N52: 18548.8304 | O52: 107781.3696 | P52: 4 | Q52: 17883.2304 | R52: 108446.9696 | S52: =(R52/(1+L52)-K52) -> -4115.428119 | T52: -0.03688103235
D53: 226 | G53: Decile 10 | H53: 4 | I53: 121499 | J53: 14163.88 | K53: 107335.12 | L53: 0.009079848296 | M53: 4 | N53: 17775.8384 | O53: 103723.1616 | P53: 4 | Q53: 17110.2384 | R53: 104388.7616 | S53: -3885.663769 | T53: -0.03620123375
D54: 226 | G54: Decile 10 | H54: 4 | I54: 104647.84 | J54: 12141.7408 | K54: 92506.0992 | L54: 0.009079848296 | M54: 4 | N54: 15079.6528 | O54: 89568.1872 | P54: 4 | Q54: 14414.0528 | R54: 90233.7872 | S54: -3084.248836 | T54: -0.03334103224
D55: 226 | G55: Decile 10 | H55: 4 | I55: 102158.12 | J55: 11842.9744 | K55: 90315.1456 | L55: 0.009079848296 | M55: 4 | N55: 14681.2976 | O55: 87476.8224 | P55: 4 | Q55: 14015.6976 | R55: 88142.4224 | S55: -2965.841629 | T55: -0.03283880693
D56: 226 | G56: Decile 10 | H56: 4 | I56: 101462.76 | J56: 11759.5312 | K56: 89703.2288 | L56: 0.009079848296 | M56: 4 | N56: 14570.04 | O56: 86892.72 | P56: 4 | Q56: 13904.44 | R56: 87558.32 | S56: -2932.77139 | T56: -0.03269415638
D57: 226 | G57: Decile 10 | H57: 4 | I57: 97765.29 | J57: 11315.8348 | K57: 86449.4552 | L57: 0.009079848296 | M57: 4 | N57: 13978.4448 | O57: 83786.8452 | P57: 4 | Q57: 13312.8448 | R57: 84452.4452 | S57: -2756.925473 | T57: -0.03189060552
D58: 226 | G58: Decile 10 | H58: 4 | I58: 97481.39 | J58: 11281.7668 | K58: 86199.6232 | L58: 0.009079848296 | M58: 4 | N58: 13933.0208 | O58: 83548.3692 | P58: 4 | Q58: 13267.4208 | R58: 84213.9692 | S58: -2743.423631 | T58: -0.03182639935
D59: 226 | G59: Decile 10 | H59: 4 | I59: 93936.54 | J59: 10856.3848 | K59: 83080.1552 | L59: 0.009079848296 | M59: 4 | N59: 13365.8448 | O59: 80570.6952 | P59: 4 | Q59: 12700.2448 | R59: 81236.2952 | S59: -2574.836085 | T59: -0.03099219156
D60: 226 | G60: Decile 10 | H60: 4 | I60: 91312.37 | J60: 10541.4844 | K60: 80770.8856 | L60: 0.009079848296 | M60: 4 | N60: 12945.9776 | O60: 78366.3924 | P60: 4 | Q60: 12280.3776 | R60: 79031.9924 | S60: -2450.034645 | T60: -0.0303331408
D61: 226 | G61: Decile 10 | H61: 4 | I61: 90257.26 | J61: 10414.8712 | K61: 79842.3888 | L61: 0.009079848296 | M61: 4 | N61: 12777.16 | O61: 77480.1 | P61: 4 | Q61: 12111.56 | R61: 78145.7 | S61: -2399.855256 | T61: -0.030057408
D62: 226 | G62: Decile 10 | H62: 4 | I62: 89460 | J62: 10319.2 | K62: 79140.8 | L62: 0.009079848296 | M62: 4 | N62: 12649.5984 | O62: 76810.4016 | P62: 4 | Q62: 11983.9984 | R62: 77476.0016 | S62: -2361.938812 | T62: -0.02984476796
D63: 226 | G63: Decile 10 | H63: 4 | I63: 89104 | J63: 10276.48 | K63: 78827.52 | L63: 0.009079848296 | M63: 4 | N63: 12592.6384 | O63: 76511.3616 | P63: 4 | Q63: 11927.0384 | R63: 77176.9616 | S63: -2345.008006 | T63: -0.02974859549
D64: 226 | G64: Decile 10 | H64: 4 | I64: 83412.02 | J64: 9593.4424 | K64: 73818.5776 | L64: 0.009079848296 | M64: 4 | N64: 11681.9216 | O64: 71730.0984 | P64: 4 | Q64: 11016.3216 | R64: 72395.6984 | S64: -2074.3063 | T64: -0.02810005783
D65: 226 | G65: Decile 10 | H65: 4 | I65: 83077 | J65: 9553.24 | K65: 73523.76 | L65: 0.009079848296 | M65: 4 | N65: 11628.3184 | O65: 71448.6816 | P65: 4 | Q65: 10962.7184 | R65: 72114.2816 | S65: -2058.37327 | T65: -0.02799602836
D66: 226 | G66: Decile 10 | H66: 4 | I66: 82617.68 | J66: 9498.1216 | K66: 73119.5584 | L66: 0.009079848296 | M66: 4 | N66: 11554.8272 | O66: 71062.8528 | P66: 4 | Q66: 10889.2272 | R66: 71728.4528 | S66: -2036.528726 | T66: -0.02785203809
D67: 226 | G67: Decile 10 | H67: 4 | I67: 81961.04 | J67: 9419.3248 | K67: 72541.7152 | L67: 0.009079848296 | M67: 4 | N67: 11449.7648 | O67: 70511.2752 | P67: 4 | Q67: 10784.1648 | R67: 71176.8752 | S67: -2005.29995 | T67: -0.02764340413
D68: 226 | G68: Decile 10 | H68: 4 | I68: 81542.72 | J68: 9369.1264 | K68: 72173.5936 | L68: 0.009079848296 | M68: 4 | N68: 11382.8336 | O68: 70159.8864 | P68: 4 | Q68: 10717.2336 | R68: 70825.4864 | S68: -1985.405302 | T68: -0.02750874943
D69: 226 | G69: Decile 10 | H69: 4 | I69: 81014.31 | J69: 9305.7172 | K69: 71708.5928 | L69: 0.009079848296 | M69: 4 | N69: 11298.288 | O69: 69716.022 | P69: 4 | Q69: 10632.688 | R69: 70381.622 | S69: -1960.274945 | T69: -0.02733668126
D70: 226 | G70: Decile 10 | H70: 4 | I70: 79999.92 | J70: 9183.9904 | K70: 70815.9296 | L70: 0.009079848296 | M70: 4 | N70: 11135.9856 | O70: 68863.9344 | P70: 4 | Q70: 10470.3856 | R70: 69529.5344 | S70: -1912.032136 | T70: -0.02700002876
D71: 226 | G71: Decile 10 | H71: 4 | I71: 79999.92 | J71: 9183.9904 | K71: 70815.9296 | L71: 0.009079848296 | M71: 4 | N71: 11135.9856 | O71: 68863.9344 | P71: 4 | Q71: 10470.3856 | R71: 69529.5344 | S71: -1912.032136 | T71: -0.02700002876
D72: 226 | G72: Decile 10 | H72: 4 | I72: 77730 | J72: 8911.6 | K72: 68818.4 | L72: 0.009079848296 | M72: 4 | N72: 10772.7984 | O72: 66957.2016 | P72: 4 | Q72: 10107.1984 | R72: 67622.8016 | S72: -1804.078275 | T72: -0.02621505695
D73: 226 | G73: Decile 10 | H73: 4 | I73: 77008.63 | J73: 8825.0356 | K73: 68183.5944 | L73: 0.009079848296 | M73: 4 | N73: 10657.3792 | O73: 66351.2508 | P73: 4 | Q73: 9991.7792 | R73: 67016.8508 | S73: -1769.771041 | T73: -0.02595596575
D74: 226 | G74: Decile 10 | H74: 4 | I74: 75000.12 | J74: 8584.0144 | K74: 66416.1056 | L74: 0.009079848296 | M74: 4 | N74: 10336.0176 | O74: 64664.1024 | P74: 4 | Q74: 9670.4176 | R74: 65329.7024 | S74: -1674.249432 | T74: -0.02520848546
D75: 226 | G75: Decile 10 | H75: 4 | I75: 74409.4 | J75: 8513.128 | K75: 65896.272 | L75: 0.009079848296 | M75: 4 | N75: 10241.5024 | O75: 64167.8976 | P75: 4 | Q75: 9575.9024 | R75: 64833.4976 | S75: -1646.155709 | T75: -0.02498101424
D76: 226 | G76: Decile 10 | H76: 4 | I76: 73500.06 | J76: 8404.0072 | K76: 65096.0528 | L76: 0.009079848296 | M76: 4 | N76: 10096.008 | O76: 63404.052 | P76: 4 | Q76: 9430.408 | R76: 64069.652 | S76: -1602.908914 | T76: -0.02462374976
D77: 226 | G77: Decile 10 | H77: 4 | I77: 73262.8 | J77: 8375.536 | K77: 64887.264 | L77: 0.009079848296 | M77: 4 | N77: 10058.0464 | O77: 63204.7536 | P77: 4 | Q77: 9392.4464 | R77: 63870.3536 | S77: -1591.625198 | T77: -0.02452908475
D78: 226 | G78: Decile 10 | H78: 4 | I78: 72500 | J78: 8284 | K78: 64216 | L78: 0.009079848296 | M78: 4 | N78: 9935.9984 | O78: 62564.0016 | P78: 4 | Q78: 9270.3984 | R78: 63229.6016 | S78: -1555.347618 | T78: -0.02422056213
D79: 226 | G79: Decile 10 | H79: 4 | I79: 72249.02 | J79: 8253.8824 | K79: 63995.1376 | L79: 0.009079848296 | M79: 4 | N79: 9895.8416 | O79: 62353.1784 | P79: 4 | Q79: 9230.2416 | R79: 63018.7784 | S79: -1543.4114 | T79: -0.02411763546
D80: 226 | G80: Decile 10 | H80: 4 | I80: 71923.14 | J80: 8214.7768 | K80: 63708.3632 | L80: 0.009079848296 | M80: 4 | N80: 9843.7008 | O80: 62079.4392 | P80: 4 | Q80: 9178.1008 | R80: 62745.0392 | S80: -1527.913054 | T80: -0.02398292748
D81: 226 | G81: Decile 10 | H81: 4 | I81: 71373.25 | J81: 8148.79 | K81: 63224.46 | L81: 0.009079848296 | M81: 4 | N81: 9755.7184 | O81: 61617.5316 | P81: 4 | Q81: 9090.1184 | R81: 62283.1316 | S81: -1501.761142 | T81: -0.02375285043
D82: 226 | G82: Decile 10 | H82: 4 | I82: 70952.88 | J82: 8098.3456 | K82: 62854.5344 | L82: 0.009079848296 | M82: 4 | N82: 9688.4592 | O82: 61264.4208 | P82: 4 | Q82: 9022.8592 | R82: 61930.0208 | S82: -1481.768999 | T82: -0.02357457602
D83: 226 | G83: Decile 10 | H83: 4 | I83: 70371.27 | J83: 8028.5524 | K83: 62342.7176 | L83: 0.009079848296 | M83: 4 | N83: 9595.4016 | O83: 60775.8684 | P83: 4 | Q83: 8929.8016 | R83: 61441.4684 | S83: -1454.108533 | T83: -0.0233244329
D84: 226 | G84: Decile 10 | H84: 4 | I84: 70000.06 | J84: 7984.0072 | K84: 62016.0528 | L84: 0.009079848296 | M84: 4 | N84: 9536.008 | O84: 60464.052 | P84: 4 | Q84: 8870.408 | R84: 61129.652 | S84: -1436.454364 | T84: -0.02316262159
D85: 226 | G85: Decile 10 | H85: 4 | I85: 69984.78 | J85: 7982.1736 | K85: 62002.6064 | L85: 0.009079848296 | M85: 4 | N85: 9533.5632 | O85: 60451.2168 | P85: 4 | Q85: 8867.9632 | R85: 61116.8168 | S85: -1435.727671 | T85: -0.02315592447
D86: 226 | G86: Decile 10 | H86: 4 | I86: 69230.79 | J86: 7891.6948 | K86: 61339.0952 | L86: 0.009079848296 | M86: 4 | N86: 9412.9248 | O86: 59817.8652 | P86: 4 | Q86: 8747.3248 | R86: 60483.4652 | S86: -1399.86908 | T86: -0.02282180843
D87: 226 | G87: Decile 10 | H87: 4 | I87: 68958.1 | J87: 7858.972 | K87: 61099.128 | L87: 0.009079848296 | M87: 4 | N87: 9369.2944 | O87: 59588.8056 | P87: 4 | Q87: 8703.6944 | R87: 60254.4056 | S87: -1386.900368 | T87: -0.02269918432
D88: 226 | G88: Decile 10 | H88: 4 | I88: 68743.53 | J88: 7833.2236 | K88: 60910.3064 | L88: 0.009079848296 | M88: 4 | N88: 9334.9632 | O88: 59408.5668 | P88: 4 | Q88: 8669.3632 | R88: 60074.1668 | S88: -1376.695753 | T88: -0.02260201655
D89: 226 | G89: Decile 10 | H89: 4 | I89: 68448.44 | J89: 7797.8128 | K89: 60650.6272 | L89: 0.009079848296 | M89: 4 | N89: 9287.7488 | O89: 59160.6912 | P89: 4 | Q89: 8622.1488 | R89: 59826.2912 | S89: -1362.661732 | T89: -0.02246739721
D90: 226 | G90: Decile 10 | H90: 4 | I90: 68128.99 | J90: 7759.4788 | K90: 60369.5112 | L90: 0.009079848296 | M90: 4 | N90: 9236.6368 | O90: 58892.3532 | P90: 4 | Q90: 8571.0368 | R90: 59557.9532 | S90: -1347.469188 | T90: -0.02232035941
D91: 226 | G91: Decile 10 | H91: 4 | I91: 67999.88 | J91: 7743.9856 | K91: 60255.8944 | L91: 0.009079848296 | M91: 4 | N91: 9215.9792 | O91: 58783.9008 | P91: 4 | Q91: 8550.3792 | R91: 59449.5008 | S91: -1341.328917 | T91: -0.02226054281
D92: 226 | G92: Decile 10 | H92: 4 | I92: 67211.06 | J92: 7649.3272 | K92: 59561.7328 | L92: 0.009079848296 | M92: 4 | N92: 9089.768 | O92: 58121.292 | P92: 4 | Q92: 8424.168 | R92: 58786.892 | S92: -1303.813866 | T92: -0.02189012651
D93: 226 | G93: Decile 10 | H93: 4 | I93: 65849.28 | J93: 7485.9136 | K93: 58363.3664 | L93: 0.009079848296 | M93: 4 | N93: 8871.8832 | O93: 56977.3968 | P93: 4 | Q93: 8206.2832 | R93: 57642.9968 | S93: -1239.049729 | T93: -0.02122992222
D94: 226 | G94: Decile 10 | H94: 4 | I94: 64765.74 | J94: 7355.8888 | K94: 57409.8512 | L94: 0.009079848296 | M94: 4 | N94: 8698.5168 | O94: 56067.2232 | P94: 4 | Q94: 8032.9168 | R94: 56732.8232 | S94: -1187.518254 | T94: -0.0206849213
D95: 226 | G95: Decile 10 | H95: 4 | I95: 63343.41 | J95: 7185.2092 | K95: 56158.2008 | L95: 0.009079848296 | M95: 4 | N95: 8470.944 | O95: 54872.466 | P95: 4 | Q95: 7805.344 | R95: 55538.066 | S95: -1119.874454 | T95: -0.0199414233
D96: 226 | G96: Decile 10 | H96: 4 | I96: 63301.5 | J96: 7180.18 | K96: 56121.32 | L96: 0.009079848296 | M96: 4 | N96: 8464.2384 | O96: 54837.2616 | P96: 4 | Q96: 7798.6384 | R96: 55502.8616 | S96: -1117.881279 | T96: -0.01991901258
D97: 226 | G97: Decile 10 | H97: 4 | I97: 62091.48 | J97: 7034.9776 | K97: 55056.5024 | L97: 0.009079848296 | M97: 4 | N97: 8270.6352 | O97: 53820.8448 | P97: 4 | Q97: 7605.0352 | R97: 54486.4448 | S97: -1060.334612 | T97: -0.01925902602
D98: 226 | G98: Decile 10 | H98: 4 | I98: 61260.81 | J98: 6935.2972 | K98: 54325.5128 | L98: 0.009079848296 | M98: 4 | N98: 8137.728 | O98: 53123.082 | P98: 4 | Q98: 7472.128 | R98: 53788.682 | S98: -1020.82924 | T98: -0.01879097293
D99: 226 | G99: Decile 10 | H99: 4 | I99: 61216.96 | J99: 6930.0352 | K99: 54286.9248 | L99: 0.009079848296 | M99: 4 | N99: 8130.712 | O99: 53086.248 | P99: 4 | Q99: 7465.112 | R99: 53751.848 | S99: -1018.743802 | T99: -0.01876591474
D100: 226 | G100: Decile 10 | H100: 4 | I100: 61053.07 | J100: 6910.3684 | K100: 54142.7016 | L100: 0.009079848296 | M100: 4 | N100: 8104.4896 | O100: 52948.5804 | P100: 4 | Q100: 7438.8896 | R100: 53614.1804 | S100: -1010.949449 | T100: -0.0186719432
D101: 226 | G101: Decile 10 | H101: 4 | I101: 61000 | J101: 6904 | K101: 54096 | L101: 0.009079848296 | M101: 4 | N101: 8095.9984 | O101: 52904.0016 | P101: 4 | Q101: 7430.3984 | R101: 53569.6016 | S101: -1008.425523 | T101: -0.01864140644
D102: 226 | G102: Decile 10 | H102: 4 | I102: 60632.62 | J102: 6859.9144 | K102: 53772.7056 | L102: 0.009079848296 | M102: 4 | N102: 8037.2176 | O102: 52595.4024 | P102: 4 | Q102: 7371.6176 | R102: 53261.0024 | S102: -990.9535018 | T102: -0.01842855945
D103: 226 | G103: Decile 10 | H103: 4 | I103: 60400.05 | J103: 6832.006 | K103: 53568.044 | L103: 0.009079848296 | M103: 4 | N103: 8000.0064 | O103: 52400.0436 | P103: 4 | Q103: 7334.4064 | R103: 53065.6436 | S103: -979.8928347 | T103: -0.01829248861
D104: 226 | G104: Decile 10 | H104: 4 | I104: 60029.62 | J104: 6787.5544 | K104: 53242.0656 | L104: 0.009079848296 | M104: 4 | N104: 7940.7376 | O104: 52088.8824 | P104: 4 | Q104: 7275.1376 | R104: 52754.4824 | S104: -962.2757607 | T104: -0.01807359932
D105: 226 | G105: Decile 10 | H105: 4 | I105: 59711.18 | J105: 6749.3416 | K105: 52961.8384 | L105: 0.009079848296 | M105: 4 | N105: 7889.7872 | O105: 51821.3928 | P105: 4 | Q105: 7224.1872 | R105: 52486.9928 | S105: -947.1312501 | T105: -0.01788327744
D106: 226 | G106: Decile 10 | H106: 4 | I106: 59130.95 | J106: 6679.714 | K106: 52451.236 | L106: 0.009079848296 | M106: 4 | N106: 7796.9504 | O106: 51333.9996 | P106: 4 | Q106: 7131.3504 | R106: 51999.5996 | S106: -919.5364147 | T106: -0.01753126303
D107: 226 | G107: Decile 10 | H107: 4 | I107: 58250.32 | J107: 6574.0384 | K107: 51676.2816 | L107: 0.009079848296 | M107: 4 | N107: 7656.0496 | O107: 50594.2704 | P107: 4 | Q107: 6990.4496 | R107: 51259.8704 | S107: -877.655023 | T107: -0.01698371082
D108: 226 | G108: Decile 10 | H108: 4 | I108: 57348.8 | J108: 6465.856 | K108: 50882.944 | L108: 0.009079848296 | M108: 4 | N108: 7511.8064 | O108: 49836.9936 | P108: 4 | Q108: 6846.2064 | R108: 50502.5936 | S108: -834.7801354 | T108: -0.01640589301
D109: 226 | G109: Decile 10 | H109: 4 | I109: 57304 | J109: 6460.48 | K109: 50843.52 | L109: 0.009079848296 | M109: 4 | N109: 7504.6384 | O109: 49799.3616 | P109: 4 | Q109: 6839.0384 | R109: 50464.9616 | S109: -832.6495171 | T109: -0.01637670872
D110: 226 | G110: Decile 10 | H110: 4 | I110: 57115.42 | J110: 6437.8504 | K110: 50677.5696 | L110: 0.009079848296 | M110: 4 | N110: 7474.4656 | O110: 49640.9544 | P110: 4 | Q110: 6808.8656 | R110: 50306.5544 | S110: -823.6809459 | T110: -0.01625336322
D111: 226 | G111: Decile 10 | H111: 4 | I111: 56867.43 | J111: 6408.0916 | K111: 50459.3384 | L111: 0.009079848296 | M111: 4 | N111: 7434.7872 | O111: 49432.6428 | P111: 4 | Q111: 6769.1872 | R111: 50098.2428 | S111: -811.8869277 | T111: -0.01608992415
D112: 226 | G112: Decile 10 | H112: 4 | I112: 56730.91 | J112: 6391.7092 | K112: 50339.2008 | L112: 0.009079848296 | M112: 4 | N112: 7412.944 | O112: 49317.966 | P112: 4 | Q112: 6747.344 | R112: 49983.566 | S112: -805.394249 | T112: -0.01599934517
D113: 226 | G113: Decile 10 | H113: 4 | I113: 56542.4 | J113: 6369.088 | K113: 50173.312 | L113: 0.009079848296 | M113: 4 | N113: 7382.7824 | O113: 49159.6176 | P113: 4 | Q113: 6717.1824 | R113: 49825.2176 | S113: -796.4290069 | T113: -0.01587355857
D114: 226 | G114: Decile 10 | H114: 4 | I114: 56540.78 | J114: 6368.8936 | K114: 50171.8864 | L114: 0.009079848296 | M114: 4 | N114: 7382.5232 | O114: 49158.2568 | P114: 4 | Q114: 6716.9232 | R114: 49823.8568 | S114: -796.3519622 | T114: -0.015872474
D115: 226 | G115: Decile 10 | H115: 4 | I115: 56478.24 | J115: 6361.3888 | K115: =I115-J115 -> 50116.8512 | L115: =INDEX($U$45:$AD$45,MATCH(G115,$U$18:$AD$18,0)) -> 0.009079848296 | M115: =IF(I115>$R$6,$Q$6,INDEX($Q$3:$Q$5,MATCH(I115,$R$3:$R$5,1))) -> 4 | N115: =INDEX($U$3:$U$6,MATCH(M115,$Q$3:$Q$6,0))+IF(M115=$Q$4,I115*INDEX($T$3:$T$6,MATCH(M115,$Q$3:$Q$6,0)),INDEX($T$3:$T$6,MATCH(M115,$Q$3:$Q$6,0))*(I115-INDEX($R$3:$R$6,MATCH(M115,$Q$3:$Q$6,0)))) -> 7372.5168 | O115: =I115-N115 -> 49105.7232 | P115: =IF(I115>$X$6,$W$6,INDEX($W$3:$W$5,MATCH(I115,$X$3:$X$5,1))) -> 4 | Q115: =INDEX($AA$3:$AA$6,MATCH(P115,$W$3:$W$6,0))+INDEX($Z$3:$Z$6,MATCH(P115,$W$3:$W$6,0))*(I115-INDEX($X$3:$X$6,MATCH(P115,$W$3:$W$6,0))) -> 6706.9168 | R115: =I115-Q115 -> 49771.3232 | S115: -793.3776572 | T115: =S115/K115 -> -0.01583055675
D116: 226 | G116: Decile 10 | H116: 4 | I116: 55628.14 | J116: =IF(I116<=10400,IF(I116<5200,IF(I116<1560,0,(I116-1560)*0.08),I116*0.08),10400*0.08+(I116-10400)*0.12) -> 6259.3768 | K116: 49368.7632 | L116: 0.009079848296 | M116: 4 | N116: 7236.5008 | O116: 48391.6392 | P116: 4 | Q116: 6570.9008 | R116: 49057.2392 | S116: =(R116/(1+L116)-K116) -> -752.9482248 | T116: -0.01525151079
D117: 226 | G117: Decile 10 | H117: 4 | I117: 55590.58 | J117: 6254.8696 | K117: 49335.7104 | L117: 0.009079848296 | M117: 4 | N117: 7230.4912 | O117: 48360.0888 | P117: 4 | Q117: 6564.8912 | R117: 49025.6888 | S117: -751.1619296 | T117: -0.01522552171
D118: 226 | G118: Decile 10 | H118: 3 | I118: 55565.26 | J118: 6251.8312 | K118: 49313.4288 | L118: 0.009079848296 | M118: 4 | N118: 7226.44 | O118: 48338.82 | P118: 4 | Q118: 6560.84 | R118: 49004.42 | S118: -749.9577499 | T118: -0.01520798225
D119: 226 | G119: Decile 10 | H119: 4 | I119: 55428.26 | J119: 6235.3912 | K119: 49192.8688 | L119: 0.009079848296 | M119: 4 | N119: 7204.52 | O119: 48223.74 | P119: 4 | Q119: 6538.92 | R119: 48889.34 | S119: -743.4422432 | T119: -0.0151128052
D120: 226 | G120: Decile 10 | H120: 4 | I120: 55328.92 | J120: 6223.4704 | K120: 49105.4496 | L120: 0.009079848296 | M120: 4 | N120: 7188.6256 | O120: 48140.2944 | P120: 4 | Q120: 6523.0256 | R120: 48805.8944 | S120: -738.7177874 | T120: -0.01504349911
D121: 226 | G121: Decile 10 | H121: 3 | I121: 55014.58 | J121: 6185.7496 | K121: 48828.8304 | L121: 0.009079848296 | M121: 4 | N121: 7138.3312 | O121: 47876.2488 | P121: 4 | Q121: 6472.7312 | R121: 48541.8488 | S121: -723.7682664 | T121: -0.01482255996
D122: 226 | G122: Decile 10 | H122: 4 | I122: 54985.3 | J122: 6182.236 | K122: 48803.064 | L122: 0.009079848296 | M122: 4 | N122: 7133.6464 | O122: 47851.6536 | P122: 4 | Q122: 6468.0464 | R122: 48517.2536 | S122: -722.3757552 | T122: -0.01480185251
D123: 226 | G123: Decile 10 | H123: 4 | I123: 54687.98 | J123: 6146.5576 | K123: 48541.4224 | L123: 0.009079848296 | M123: 4 | N123: 7086.0752 | O123: 47601.9048 | P123: 4 | Q123: 6420.4752 | R123: 48267.5048 | S123: -708.2356789 | T123: -0.01459033633
D124: 226 | G124: Decile 10 | H124: 4 | I124: 54244.39 | J124: 6093.3268 | K124: 48151.0632 | L124: 0.009079848296 | M124: 4 | N124: 7015.1008 | O124: 47229.2892 | P124: 4 | Q124: 6349.5008 | R124: 47894.8892 | S124: -687.1392292 | T124: -0.01427048924
D125: 226 | G125: Decile 10 | H125: 4 | I125: 53913.42 | J125: 6053.6104 | K125: 47859.8096 | L125: 0.009079848296 | M125: 4 | N125: 6962.1456 | O125: 46951.2744 | P125: 4 | Q125: 6296.5456 | R125: 47616.8744 | S125: -671.3988113 | T125: -0.01402844719
D126: 226 | G126: Decile 10 | H126: 4 | I126: 53846.16 | J126: 6045.5392 | K126: 47800.6208 | L126: 0.009079848296 | M126: 4 | N126: 6951.384 | O126: 46894.776 | P126: 4 | Q126: 6285.784 | R126: 47560.376 | S126: -668.2000304 | T126: -0.01397889858
D127: 226 | G127: Decile 10 | H127: 4 | I127: 53473.2 | J127: 6000.784 | K127: 47472.416 | L127: 0.009079848296 | M127: 4 | N127: 6891.7104 | O127: 46581.4896 | P127: 4 | Q127: 6226.1104 | R127: 47247.0896 | S127: -650.4626335 | T127: -0.01370190709
D128: 226 | G128: Decile 10 | H128: 4 | I128: 53405.66 | J128: 5992.6792 | K128: 47412.9808 | L128: 0.009079848296 | M128: 4 | N128: 6880.904 | O128: 46524.756 | P128: 4 | Q128: 6215.304 | R128: 47190.356 | S128: -647.2505362 | T128: -0.0136513361
D129: 226 | G129: Decile 10 | H129: 4 | I129: 52898.86 | J129: 5931.8632 | K129: 46966.9968 | L129: 0.009079848296 | M129: 4 | N129: 6799.816 | O129: 46099.044 | P129: 4 | Q129: 6134.216 | R129: 46764.644 | S129: -623.1479173 | T129: -0.01326778291
D130: 226 | G130: Decile 10 | H130: 4 | I130: 52776.77 | J130: 5917.2124 | K130: 46859.5576 | L130: 0.009079848296 | M130: 4 | N130: 6780.2816 | O130: 45996.4884 | P130: 4 | Q130: 6114.6816 | R130: 46662.0884 | S130: -617.341507 | T130: -0.01317429226
D131: 226 | G131: Decile 10 | H131: 4 | I131: 52677.68 | J131: 5905.3216 | K131: 46772.3584 | L131: 0.009079848296 | M131: 4 | N131: 6764.4272 | O131: 45913.2528 | P131: 4 | Q131: 6098.8272 | R131: 46578.8528 | S131: -612.6289409 | T131: -0.01309809815
D132: 226 | G132: Decile 10 | H132: 4 | I132: 52579 | J132: 5893.48 | K132: 46685.52 | L132: 0.009079848296 | M132: 4 | N132: 6748.6384 | O132: 45830.3616 | P132: 4 | Q132: 6083.0384 | R132: 46495.9616 | S132: -607.9358737 | T132: -0.01302193643
D133: 226 | G133: Decile 10 | H133: 4 | I133: 52455.86 | J133: 5878.7032 | K133: 46577.1568 | L133: 0.009079848296 | M133: 4 | N133: 6728.936 | O133: 45726.924 | P133: 4 | Q133: 6063.336 | R133: 46392.524 | S133: -602.079527 | T133: -0.01292649806
D134: 226 | G134: Decile 10 | H134: 4 | I134: 52375.08 | J134: 5869.0096 | K134: 46506.0704 | L134: 0.009079848296 | M134: 4 | N134: 6716.0112 | O134: 45659.0688 | P134: 4 | Q134: 6050.4112 | R134: 46324.6688 | S134: -598.237756 | T134: -0.01286364879
D135: 226 | G135: Decile 10 | H135: 4 | I135: 52138.2 | J135: 5840.584 | K135: 46297.616 | L135: 0.009079848296 | M135: 4 | N135: 6678.1104 | O135: 45460.0896 | P135: 4 | Q135: 6012.5104 | R135: 46125.6896 | S135: -586.972112 | T135: -0.01267823622
D136: 226 | G136: Decile 10 | H136: 4 | I136: 51985.84 | J136: 5822.3008 | K136: 46163.5392 | L136: 0.009079848296 | M136: 4 | N136: 6653.7328 | O136: 45332.1072 | P136: 4 | Q136: 5988.1328 | R136: 45997.7072 | S136: -579.7261076 | T136: -0.01255809493
D137: 226 | G137: Decile 10 | H137: 4 | I137: 51950.8 | J137: 5818.096 | K137: 46132.704 | L137: 0.009079848296 | M137: 4 | N137: 6648.1264 | O137: 45302.6736 | P137: 4 | Q137: 5982.5264 | R137: 45968.2736 | S137: -578.0596598 | T137: -0.01253036587
D138: 226 | G138: Decile 10 | H138: 4 | I138: 51894.53 | J138: 5811.3436 | K138: 46083.1864 | L138: 0.009079848296 | M138: 4 | N138: 6639.1232 | O138: 45255.4068 | P138: 4 | Q138: 5973.5232 | R138: 45921.0068 | S138: -575.3835462 | T138: -0.01248575871
D139: 226 | G139: Decile 10 | H139: 4 | I139: 51596.04 | J139: 5775.5248 | K139: 45820.5152 | L139: 0.009079848296 | M139: 4 | N139: 6591.3648 | O139: 45004.6752 | P139: 4 | Q139: 5925.7648 | R139: 45670.2752 | S139: -561.1878265 | T139: -0.01224752328
D140: 226 | G140: Decile 10 | H140: 4 | I140: 51515.03 | J140: 5765.8036 | K140: 45749.2264 | L140: 0.009079848296 | M140: 4 | N140: 6578.4032 | O140: 44936.6268 | P140: 4 | Q140: 5912.8032 | R140: 45602.2268 | S140: -557.3351171 | T140: -0.01218239435
D141: 226 | G141: Decile 10 | H141: 4 | I141: 51316.39 | J141: 5741.9668 | K141: 45574.4232 | L141: 0.009079848296 | M141: 4 | N141: 6546.6208 | O141: 44769.7692 | P141: 4 | Q141: 5881.0208 | R141: 45435.3692 | S141: -547.8881079 | T141: -0.01202183307
D142: 226 | G142: Decile 10 | H142: 4 | I142: 51255.31 | J142: 5734.6372 | K142: 45520.6728 | L142: 0.009079848296 | M142: 4 | N142: 6536.848 | O142: 44718.462 | P142: 4 | Q142: 5871.248 | R142: 45384.062 | S142: -544.9832382 | T142: -0.01197221404
D143: 226 | G143: Decile 10 | H143: 4 | I143: 50764.86 | J143: 5675.7832 | K143: 45089.0768 | L143: 0.009079848296 | M143: 4 | N143: 6458.376 | O143: 44306.484 | P143: 4 | Q143: 5792.776 | R143: 44972.084 | S143: -521.6581998 | T143: -0.01156950279
D144: 226 | G144: Decile 10 | H144: 4 | I144: 50725.64 | J144: 5671.0768 | K144: 45054.5632 | L144: 0.009079848296 | M144: 4 | N144: 6452.1008 | O144: 44273.5392 | P144: 4 | Q144: 5786.5008 | R144: 44939.1392 | S144: -519.7929577 | T144: -0.01153696586
D145: 226 | G145: Decile 10 | H145: 4 | I145: 50567.12 | J145: 5652.0544 | K145: 44915.0656 | L145: 0.009079848296 | M145: 4 | N145: 6426.7376 | O145: 44140.3824 | P145: 4 | Q145: 5761.1376 | R145: 44805.9824 | S145: -512.2539933 | T145: -0.01140494813
D146: 226 | G146: Decile 10 | H146: 4 | I146: 50446.08 | J146: 5637.5296 | K146: 44808.5504 | L146: 0.009079848296 | M146: 4 | N146: 6407.3712 | O146: 44038.7088 | P146: 4 | Q146: 5741.7712 | R146: 44704.3088 | S146: -506.4975194 | T146: -0.01130359083
D147: 226 | G147: Decile 10 | H147: 4 | I147: 50328.74 | J147: 5623.4488 | K147: 44705.2912 | L147: 0.009079848296 | M147: 4 | N147: 6388.5968 | O147: 43940.1432 | P147: 4 | Q147: 5722.9968 | R147: 44605.7432 | S147: -500.9170116 | T147: -0.01120487079
D148: 226 | G148: Decile 10 | H148: 4 | I148: 50098.16 | J148: 5595.7792 | K148: 44502.3808 | L148: 0.009079848296 | M148: 4 | N148: 6351.704 | O148: 43746.456 | P148: 4 | Q148: 5686.104 | R148: 44412.056 | S148: -489.9509858 | T148: -0.01100954549
D149: 226 | G149: Decile 10 | H149: 4 | I149: 50000.08 | J149: 5584.0096 | K149: 44416.0704 | L149: 0.009079848296 | M149: 4 | N149: 6336.0112 | O149: 43664.0688 | P149: 4 | Q149: 5670.4112 | R149: 44329.6688 | S149: -485.2864538 | T149: -0.01092592049
D150: 226 | G150: Decile 10 | H150: 4 | I150: 49992.6 | J150: 5583.112 | K150: 44409.488 | L150: 0.009079848296 | M150: 4 | N150: 6334.8144 | O150: 43657.7856 | P150: 4 | Q150: 5669.2144 | R150: 44323.3856 | S150: -484.9307166 | T150: -0.01091952955
D151: 226 | G151: Decile 10 | H151: 4 | I151: 49930.91 | J151: 5575.7092 | K151: 44355.2008 | L151: 0.009079848296 | M151: 4 | N151: 6324.944 | O151: 43605.966 | P151: 4 | Q151: 5659.344 | R151: 44271.566 | S151: -481.9968362 | T151: -0.01086674905
D152: 226 | G152: Decile 10 | H152: 4 | I152: 49504 | J152: 5524.48 | K152: 43979.52 | L152: 0.009079848296 | M152: 4 | N152: 6256.6384 | O152: 43247.3616 | P152: 4 | Q152: 5591.0384 | R152: 43912.9616 | S152: -461.6936613 | T152: -0.01049792406
D153: 226 | G153: Decile 10 | H153: 3 | I153: 49453.98 | J153: 5518.4776 | K153: 43935.5024 | L153: 0.009079848296 | M153: 4 | N153: 6248.6352 | O153: 43205.3448 | P153: 4 | Q153: 5583.0352 | R153: 43870.9448 | S153: -459.314788 | T153: -0.01045429693
D154: 226 | G154: Decile 10 | H154: 4 | I154: 49410.61 | J154: 5513.2732 | K154: 43897.3368 | L154: 0.009079848296 | M154: 4 | N154: 6241.696 | O154: 43168.914 | P154: 4 | Q154: 5576.096 | R154: 43834.514 | S154: -457.2521783 | T154: -0.01041639907
D155: 226 | G155: Decile 10 | H155: 4 | I155: 49396.34 | J155: 5511.5608 | K155: 43884.7792 | L155: 0.009079848296 | M155: 4 | N155: 6239.4128 | O155: 43156.9272 | P155: 4 | Q155: 5573.8128 | R155: 43822.5272 | S155: -456.5735193 | T155: -0.01040391515
D156: 226 | G156: Decile 10 | H156: 4 | I156: 49308.17 | J156: 5500.9804 | K156: 43807.1896 | L156: 0.009079848296 | M156: 4 | N156: 6225.3056 | O156: 43082.8644 | P156: 4 | Q156: 5559.7056 | R156: 43748.4644 | S156: -452.3802914 | T156: -0.01032662208
D157: 226 | G157: Decile 10 | H157: 4 | I157: 49219.99 | J157: 5490.3988 | K157: 43729.5912 | L157: 0.009079848296 | M157: 4 | N157: 6211.1968 | O157: 43008.7932 | P157: 4 | Q157: 5545.5968 | R157: 43674.3932 | S157: -448.1865879 | T157: -0.01024904591
D158: 226 | G158: Decile 10 | H158: 4 | I158: 48988.71 | J158: 5462.6452 | K158: 43526.0648 | L158: 0.009079848296 | M158: 4 | N158: 6174.192 | O158: 42814.518 | P158: 4 | Q158: 5508.592 | R158: 43480.118 | S158: -437.1872712 | T158: -0.01004426367
D159: 226 | G159: Decile 10 | H159: 4 | I159: 48922.93 | J159: 5454.7516 | K159: 43468.1784 | L159: 0.009079848296 | M159: 4 | N159: 6163.6672 | O159: 42759.2628 | P159: 4 | Q159: 5498.0672 | R159: 43424.8628 | S159: -434.0588768 | T159: -0.009985669812
D160: 226 | G160: Decile 10 | H160: 4 | I160: 48838.83 | J160: 5444.6596 | K160: 43394.1704 | L160: 0.009079848296 | M160: 4 | N160: 6150.2112 | O160: 42688.6188 | P160: 4 | Q160: 5484.6112 | R160: 43354.2188 | S160: -430.0592118 | T160: -0.009910529636
D161: 226 | G161: Decile 10 | H161: 4 | I161: 48615.86 | J161: 5417.9032 | K161: 43197.9568 | L161: 0.009079848296 | M161: 4 | N161: 6114.536 | O161: 42501.324 | P161: 4 | Q161: 5448.936 | R161: 43166.924 | S161: -419.4551057 | T161: -0.009710068179
D162: 226 | G162: Decile 10 | H162: 4 | I162: 48495.26 | J162: 5403.4312 | K162: 43091.8288 | L162: 0.009079848296 | M162: 4 | N162: 6095.24 | O162: 42400.02 | P162: 4 | Q162: 5429.64 | R162: 43065.62 | S162: -413.7195575 | T162: -0.009600881861
D163: 226 | G163: Decile 10 | H163: 4 | I163: 48430.22 | J163: 5395.6264 | K163: 43034.5936 | L163: 0.009079848296 | M163: 4 | N163: 6084.8336 | O163: 42345.3864 | P163: 4 | Q163: 5419.2336 | R163: 43010.9864 | S163: -410.6263563 | T163: -0.009541773768
D164: 226 | G164: Decile 10 | H164: 4 | I164: 48315.38 | J164: 5381.8456 | K164: 42933.5344 | L164: 0.009079848296 | M164: 4 | N164: 6066.4592 | O164: 42248.9208 | P164: 4 | Q164: 5400.8592 | R164: 42914.5208 | S164: -405.1647447 | T164: -0.00943702284
D165: 226 | G165: Decile 10 | H165: 4 | I165: 48279.62 | J165: 5377.5544 | K165: 42902.0656 | L165: 0.009079848296 | M165: 4 | N165: 6060.7376 | O165: 42218.8824 | P165: 4 | Q165: 5395.1376 | R165: 42884.4824 | S165: -403.4640548 | T165: -0.009404303713
D166: 226 | G166: Decile 10 | H166: 4 | I166: 48087.96 | J166: 5354.5552 | K166: 42733.4048 | L166: 0.009079848296 | M166: 4 | N166: 6030.072 | O166: 42057.888 | P166: 4 | Q166: 5364.472 | R166: 42723.488 | S166: -394.3490036 | T166: -0.009228120377
D167: 226 | G167: Decile 10 | H167: 4 | I167: 48061.08 | J167: 5351.3296 | K167: 42709.7504 | L167: 0.009079848296 | M167: 4 | N167: 6025.7712 | O167: 42035.3088 | P167: 4 | Q167: 5360.1712 | R167: 42700.9088 | S167: -393.0706327 | T167: -0.009203299691
D168: 226 | G168: Decile 10 | H168: 4 | I168: 48046.2 | J168: 5349.544 | K168: 42696.656 | L168: 0.009079848296 | M168: 4 | N168: 6023.3904 | O168: 42022.8096 | P168: 4 | Q168: 5357.7904 | R168: 42688.4096 | S168: -392.362963 | T168: -0.009189547843
D169: 226 | G169: Decile 10 | H169: 4 | I169: 47808.64 | J169: 5321.0368 | K169: 42487.6032 | L169: 0.009079848296 | M169: 4 | N169: 5985.3808 | O169: 41823.2592 | P169: 4 | Q169: 5319.7808 | R169: 42488.8592 | S169: -381.0649793 | T169: -0.008968850926
D170: 226 | G170: Decile 10 | H170: 4 | I170: 47228.65 | J170: 5251.438 | K170: 41977.212 | L170: 0.009079848296 | M170: 4 | N170: 5892.5824 | O170: 41336.0676 | P170: 4 | Q170: 5226.9824 | R170: 42001.6676 | S170: -353.4815579 | T170: -0.008420796453
D171: 226 | G171: Decile 10 | H171: 4 | I171: 47164.58 | J171: 5243.7496 | K171: 41920.8304 | L171: 0.009079848296 | M171: 4 | N171: 5882.3312 | O171: 41282.2488 | P171: 4 | Q171: 5216.7312 | R171: 41947.8488 | S171: -350.4344885 | T171: -0.008359435754
D172: 226 | G172: Decile 10 | H172: 4 | I172: 46959.97 | J172: 5219.1964 | K172: 41740.7736 | L172: 0.009079848296 | M172: 4 | N172: 5849.5936 | O172: 41110.3764 | P172: 4 | Q172: 5183.9936 | R172: 41775.9764 | S172: -340.7035554 | T172: -0.008162368017
D173: 226 | G173: Decile 10 | H173: 4 | I173: 46783.89 | J173: 5198.0668 | K173: 41585.8232 | L173: 0.009079848296 | M173: 4 | N173: 5821.4208 | O173: 40962.4692 | P173: 4 | Q173: 5155.8208 | R173: 41628.0692 | S173: -332.3294648 | T173: -0.007991412439
D174: 226 | G174: Decile 10 | H174: 3 | I174: 46783.24 | J174: 5197.9888 | K174: 41585.2512 | L174: 0.009079848296 | M174: 4 | N174: 5821.3168 | O174: 40961.9232 | P174: 4 | Q174: 5155.7168 | R174: 41627.5232 | S174: -332.2985518 | T174: -0.007990778995
D175: 226 | G175: Decile 10 | H175: 4 | I175: 46720.8 | J175: 5190.496 | K175: 41530.304 | L175: 0.009079848296 | M175: 4 | N175: 5811.3264 | O175: 40909.4736 | P175: 4 | Q175: 5145.7264 | R175: 41575.0736 | S175: -329.3290026 | T175: -0.007929848109
D176: 226 | G176: Decile 10 | H176: 4 | I176: 46696.24 | J176: 5187.5488 | K176: 41508.6912 | L176: 0.009079848296 | M176: 4 | N176: 5807.3968 | O176: 40888.8432 | P176: 4 | Q176: 5141.7968 | R176: 41554.4432 | S176: -328.1609673 | T176: -0.007905837495
D177: 226 | G177: Decile 10 | H177: 4 | I177: 46665.33 | J177: 5183.8396 | K177: 41481.4904 | L177: 0.009079848296 | M177: 4 | N177: 5802.4512 | O177: 40862.8788 | P177: 4 | Q177: 5136.8512 | R177: 41528.4788 | S177: -326.6909358 | T177: -0.007875583366
D178: 226 | G178: Decile 10 | H178: 4 | I178: 46153.68 | J178: 5122.4416 | K178: 41031.2384 | L178: 0.009079848296 | M178: 4 | N178: 5720.5872 | O178: 40433.0928 | P178: 4 | Q178: 5054.9872 | R178: 41098.6928 | S178: -302.3576584 | T178: -0.007368962532
D179: 226 | G179: Decile 10 | H179: 4 | I179: 46060.68 | J179: 5111.2816 | K179: =I179-J179 -> 40949.3984 | L179: =INDEX($U$45:$AD$45,MATCH(G179,$U$18:$AD$18,0)) -> 0.009079848296 | M179: =IF(I179>$R$6,$Q$6,INDEX($Q$3:$Q$5,MATCH(I179,$R$3:$R$5,1))) -> 4 | N179: =INDEX($U$3:$U$6,MATCH(M179,$Q$3:$Q$6,0))+IF(M179=$Q$4,I179*INDEX($T$3:$T$6,MATCH(M179,$Q$3:$Q$6,0)),INDEX($T$3:$T$6,MATCH(M179,$Q$3:$Q$6,0))*(I179-INDEX($R$3:$R$6,MATCH(M179,$Q$3:$Q$6,0)))) -> 5705.7072 | O179: =I179-N179 -> 40354.9728 | P179: =IF(I179>$X$6,$W$6,INDEX($W$3:$W$5,MATCH(I179,$X$3:$X$5,1))) -> 4 | Q179: =INDEX($AA$3:$AA$6,MATCH(P179,$W$3:$W$6,0))+INDEX($Z$3:$Z$6,MATCH(P179,$W$3:$W$6,0))*(I179-INDEX($X$3:$X$6,MATCH(P179,$W$3:$W$6,0))) -> 5040.1072 | R179: =I179-Q179 -> 41020.5728 | S179: -297.9347232 | T179: =S179/K179 -> -0.007275680104
D180: 226 | G180: Decile 10 | H180: 4 | I180: 46027.06 | J180: =IF(I180<=10400,IF(I180<5200,IF(I180<1560,0,(I180-1560)*0.08),I180*0.08),10400*0.08+(I180-10400)*0.12) -> 5107.2472 | K180: 40919.8128 | L180: 0.009079848296 | M180: 4 | N180: 5700.328 | O180: 40326.732 | P180: 4 | Q180: 5034.728 | R180: 40992.332 | S180: =(R180/(1+L180)-K180) -> -296.3358083 | T180: -0.007241866178
D181: 226 | G181: Decile 10 | H181: 4 | I181: 45935.59 | J181: 5096.2708 | K181: 40839.3192 | L181: 0.009079848296 | M181: 4 | N181: 5685.6928 | O181: 40249.8972 | P181: 4 | Q181: 5020.0928 | R181: 40915.4972 | S181: -291.9856376 | T181: -0.007149620593
D182: 226 | G182: Decile 10 | H182: 4 | I182: 45912.31 | J182: 5093.4772 | K182: 40818.8328 | L182: 0.009079848296 | M182: 4 | N182: 5681.968 | O182: 40230.342 | P182: 4 | Q182: 5016.368 | R182: 40895.942 | S182: -290.878477 | T182: -0.007126085119
D183: 226 | G183: Decile 10 | H183: 4 | I183: 45866.19 | J183: 5087.9428 | K183: 40778.2472 | L183: 0.009079848296 | M183: 4 | N183: 5674.5888 | O183: 40191.6012 | P183: 4 | Q183: 5008.9888 | R183: 40857.2012 | S183: -288.6850816 | T183: -0.00707938917
D184: 226 | G184: Decile 10 | H184: 4 | I184: 45346.17 | J184: 5025.5404 | K184: 40320.6296 | L184: 0.009079848296 | M184: 4 | N184: 5591.3856 | O184: 39754.7844 | P184: 4 | Q184: 4925.7856 | R184: 40420.3844 | S184: -263.95374 | T184: -0.006546369505
D185: 226 | G185: Decile 10 | H185: 4 | I185: 45259.64 | J185: 5015.1568 | K185: 40244.4832 | L185: 0.009079848296 | M185: 4 | N185: 5577.5408 | O185: 39682.0992 | P185: 4 | Q185: 4911.9408 | R185: 40347.6992 | S185: -259.838508 | T185: -0.006456500054
D186: 226 | G186: Decile 10 | H186: 3 | I186: 45226.84 | J186: 5011.2208 | K186: 40215.6192 | L186: 0.009079848296 | M186: 4 | N186: 5572.2928 | O186: 39654.5472 | P186: 4 | Q186: 4906.6928 | R186: 40320.1472 | S186: -258.278591 | T186: -0.006422345252
D187: 226 | G187: Decile 10 | H187: 4 | I187: 45206.14 | J187: 5008.7368 | K187: 40197.4032 | L187: 0.009079848296 | M187: 4 | N187: 5568.9808 | O187: 39637.1592 | P187: 4 | Q187: 4903.3808 | R187: 40302.7592 | S187: -257.2941313 | T187: -0.006400764994
D188: 226 | G188: Decile 10 | H188: 4 | I188: 45120.31 | J188: 4998.4372 | K188: 40121.8728 | L188: 0.009079848296 | M188: 4 | N188: 5555.248 | O188: 39565.062 | P188: 4 | Q188: 4889.648 | R188: 40230.662 | S188: -253.2121901 | T188: -0.00631107604
D189: 226 | G189: Decile 10 | H189: 4 | I189: 45117 | J189: 4998.04 | K189: 40118.96 | L189: 0.009079848296 | M189: 4 | N189: 5554.7184 | O189: 39562.2816 | P189: 4 | Q189: 4889.1184 | R189: 40227.8816 | S189: -253.0547717 | T189: -0.006307610458
D190: 226 | G190: Decile 10 | H190: 4 | I190: 45085.03 | J190: 4994.2036 | K190: 40090.8264 | L190: 0.009079848296 | M190: 4 | N190: 5549.6032 | O190: 39535.4268 | P190: 4 | Q190: 4884.0032 | R190: 40201.0268 | S190: -251.5343282 | T190: -0.006274111831
D191: 226 | G191: Decile 10 | H191: 4 | I191: 45041.76 | J191: 4989.0112 | K191: 40052.7488 | L191: 0.009079848296 | M191: 4 | N191: 5542.68 | O191: 39499.08 | P191: 4 | Q191: 4877.08 | R191: 40164.68 | S191: -249.4764744 | T191: -0.006228697951
D192: 226 | G192: Decile 10 | H192: 4 | I192: 45000.02 | J192: 4984.0024 | K192: 40016.0176 | L192: 0.009079848296 | M192: 4 | N192: 5536.0016 | O192: 39464.0184 | P192: 4 | Q192: 4870.4016 | R192: 40129.6184 | S192: -247.491385 | T192: -0.00618480798
D193: 226 | G193: Decile 10 | H193: 4 | I193: 45000.02 | J193: 4984.0024 | K193: 40016.0176 | L193: 0.009079848296 | M193: 4 | N193: 5536.0016 | O193: 39464.0184 | P193: 4 | Q193: 4870.4016 | R193: 40129.6184 | S193: -247.491385 | T193: -0.00618480798
D194: 226 | G194: Decile 10 | H194: 4 | I194: 44906.19 | J194: 4972.7428 | K194: 39933.4472 | L194: 0.009079848296 | M194: 4 | N194: 5520.9888 | O194: 39385.2012 | P194: 4 | Q194: 4855.3888 | R194: 40050.8012 | S194: -243.0289763 | T194: -0.006085850166
D195: 226 | G195: Decile 10 | H195: 3 | I195: 44856.64 | J195: 4966.7968 | K195: 39889.8432 | L195: 0.009079848296 | M195: 4 | N195: 5513.0608 | O195: 39343.5792 | P195: 4 | Q195: 4847.4608 | R195: 40009.1792 | S195: -240.6724554 | T195: -0.006033426961
D196: 226 | G196: Decile 10 | H196: 4 | I196: 44738.88 | J196: 4952.6656 | K196: 39786.2144 | L196: 0.009079848296 | M196: 4 | N196: 5494.2192 | O196: 39244.6608 | P196: 4 | Q196: 4828.6192 | R196: 39910.2608 | S196: -235.0719732 | T196: -0.00590837748
D197: 226 | G197: Decile 10 | H197: 4 | I197: 44542.8 | J197: 4929.136 | K197: 39613.664 | L197: 0.009079848296 | M197: 4 | N197: 5462.8464 | O197: 39079.9536 | P197: 4 | Q197: 4797.2464 | R197: 39745.5536 | S197: -225.7467137 | T197: -0.005698708245
D198: 226 | G198: Decile 10 | H198: 4 | I198: 44520.68 | J198: 4926.4816 | K198: 39594.1984 | L198: 0.009079848296 | M198: 4 | N198: 5459.3072 | O198: 39061.3728 | P198: 4 | Q198: 4793.7072 | R198: 39726.9728 | S198: -224.6947209 | T198: -0.005674940521
D199: 226 | G199: Decile 10 | H199: 4 | I199: 44463.36 | J199: 4919.6032 | K199: 39543.7568 | L199: 0.009079848296 | M199: 4 | N199: 5450.136 | O199: 39013.224 | P199: 4 | Q199: 4784.536 | R199: 39678.824 | S199: -221.9686709 | T199: -0.005613241859
D200: 226 | G200: Decile 10 | H200: 4 | I200: 44448 | J200: 4917.76 | K200: 39530.24 | L200: 0.009079848296 | M200: 4 | N200: 5447.6784 | O200: 39000.3216 | P200: 4 | Q200: 4782.0784 | R200: 39665.9216 | S200: -221.2381733 | T200: -0.005596681762
D201: 226 | G201: Decile 10 | H201: 4 | I201: 44115.5 | J201: 4877.86 | K201: 39237.64 | L201: 0.009079848296 | M201: 4 | N201: 5394.4784 | O201: 38721.0216 | P201: 4 | Q201: 4728.8784 | R201: 39386.6216 | S201: -205.4249909 | T201: -0.005235406384
D202: 226 | G202: Decile 10 | H202: 4 | I202: 44082.5 | J202: 4873.9 | K202: 39208.6 | L202: 0.009079848296 | M202: 4 | N202: 5389.1984 | O202: 38693.3016 | P202: 4 | Q202: 4723.5984 | R202: 39358.9016 | S202: -203.8555623 | T202: -0.005199256345
D203: 226 | G203: Decile 10 | H203: 4 | I203: 44000 | J203: 4864 | K203: 39136 | L203: 0.009079848296 | M203: 4 | N203: 5375.9984 | O203: 38624.0016 | P203: 4 | Q203: 4710.3984 | R203: 39289.6016 | S203: -199.9319908 | T203: -0.005108646534
D204: 226 | G204: Decile 10 | H204: 4 | I204: 43992 | J204: 4863.04 | K204: 39128.96 | L204: 0.009079848296 | M204: 4 | N204: 5374.7184 | O204: 38617.2816 | P204: 4 | Q204: 4709.1184 | R204: 39282.8816 | S204: -199.5515232 | T204: -0.005099842245
D205: 226 | G205: Decile 10 | H205: 4 | I205: 43953.41 | J205: 4858.4092 | K205: 39095.0008 | L205: 0.009079848296 | M205: 4 | N205: 5368.544 | O205: 38584.866 | P205: 4 | Q205: 4702.944 | R205: 39250.466 | S205: -197.7162429 | T205: -0.005057328018
D206: 226 | G206: Decile 10 | H206: 4 | I206: 43750.99 | J206: 4834.1188 | K206: 38916.8712 | L206: 0.009079848296 | M206: 4 | N206: 5336.1568 | O206: 38414.8332 | P206: 4 | Q206: 4670.5568 | R206: 39080.4332 | S206: -188.0894629 | T206: -0.004833108548
D207: 226 | G207: Decile 10 | H207: 4 | I207: 43749.94 | J207: 4833.9928 | K207: 38915.9472 | L207: 0.009079848296 | M207: 4 | N207: 5335.9888 | O207: 38413.9512 | P207: 4 | Q207: 4670.3888 | R207: 39079.5512 | S207: -188.0395265 | T207: -0.004831940118
D208: 226 | G208: Decile 10 | H208: 4 | I208: 43749.94 | J208: 4833.9928 | K208: 38915.9472 | L208: 0.009079848296 | M208: 4 | N208: 5335.9888 | O208: 38413.9512 | P208: 4 | Q208: 4670.3888 | R208: 39079.5512 | S208: -188.0395265 | T208: -0.004831940118
D209: 226 | G209: Decile 10 | H209: 4 | I209: 43749.94 | J209: 4833.9928 | K209: 38915.9472 | L209: 0.009079848296 | M209: 4 | N209: 5335.9888 | O209: 38413.9512 | P209: 4 | Q209: 4670.3888 | R209: 39079.5512 | S209: -188.0395265 | T209: -0.004831940118
D210: 226 | G210: Decile 10 | H210: 4 | I210: 43570.67 | J210: 4812.4804 | K210: 38758.1896 | L210: 0.009079848296 | M210: 4 | N210: 5307.3056 | O210: 38263.3644 | P210: 4 | Q210: 4641.7056 | R210: 38928.9644 | S210: -179.5137244 | T210: -0.004631633373
... 4290 more rows

Sheet Profits Tax
G4: 0 | O4: FY22
G5: 1 | O5: 22214308.75
G6: 2 | O6: 15999160.05
G7: 3 | O7: 11239957.45 | R7: Reform Estimates | V7: Operating Surplus | W7: =SUM(Data!G42:G43)*1000000 -> 62962121.01
G8: 4 | O8: 10229038.11 | V8: Depcreciation Rate | W8: 0.17
G9: 5 | O9: 7863146.877 | V9: Interest,bad debts, etc | W9: 0.05
G10: 6 | O10: 7083155.013 | R10: Business Profits Tax Rate | S10: ='Dash-1'!I41 -> 0.16 | V10: Non-compliance | W10: 0.2
G11: 7 | O11: 7075996.97 | R11: Number of Businesses within the Band | S11: =COUNTIF(O5:O1097,">="&S14) -> 89
G12: 8 | O12: 6926016.003 | R12: Revenue Collection: | S12: =W7*(1-W8)*(1-W9)*(1-W10)*S28*S10 -> 5977698.022
G13: 9 | O13: 6354740.4
G14: 10 | O14: 5457885.143 | R14: Business Profits Tax Threshold | S14: ='Dash-1'!I43 -> 100000
G15: 11 | O15: 4235574.17 | R15: Number of Busniesses in GRT Band | S15: =COUNTIF(O5:O377,"<="&S14)-S22 -> 228
G16: 12 | O16: 3958567.813 | R16: Gross receipts of business in GRT net | S16: =(SUMIF(O5:O377,"<"&S14,O5:O377)-SUMIF(O5:O377,"<"&S20,O5:O377)) -> 9898109.117
G17: 13 | O17: 3653395.033 | R17: GRT Rate | S17: 0.03
G18: 14 | O18: 3403619.34 | R18: Tax Collected | S18: =S16*S17 -> 296943.2735
G19: 15 | O19: 3136937.303
G20: 16 | O20: 2583952.827 | R20: Presumptive tax threshold | S20: 10000
G21: 17 | O21: 2545256.84 | R21: Presumtive tax rate | S21: 80
G22: 18 | O22: 2516329.07 | R22: Number of business in presumptive net | S22: =COUNTIF(O5:O377,"<="&S20) -> 56
G23: 19 | O23: 2451634 | R23: Revenue collected | S23: =S21*S22 -> 4480
G24: 20 | O24: 2251563.98
G25: 21 | O25: 2016767.91
G26: 22 | O26: 1897334.97 | R26: Revenues of All Firms in RMI | S26: =SUM(O5:O1097) -> 171353667.1
G27: 23 | O27: 1487498.44 | R27: ="Revenue of Firms Earning Above "&TEXT(S14,"$0,000") -> Revenue of Firms Earning Above $100,000 | S27: =SUM(INDIRECT(ADDRESS(ROW(O5),15)):INDIRECT(ADDRESS(ROW(O5)+S11-1,15))) -> 161189355.2
G28: 24 | O28: 1319103.413 | R28: Share | S28: =S27/S26 -> 0.9406822619
G29: 25 | O29: 1081994.22
G30: 26 | O30: 1023336.24
G31: 27 | O31: 957872.52
G32: 28 | O32: 954942.4833
G33: 29 | O33: 946193.9333
G34: 30 | O34: 759103.4978
G35: 31 | O35: 739049.2233
G36: 32 | O36: 736133.66
G37: 33 | O37: 709074.4367
G38: 34 | O38: 701001.39
G39: 35 | O39: 693425.3333
G40: 36 | O40: 681424.6533
G41: 37 | O41: 652903.34
G42: 38 | O42: 639844.21
G43: 39 | O43: 604031.2267
G44: 40 | O44: 528950.16
G45: 41 | O45: 495055.58
G46: 42 | O46: 491261.53
G47: 43 | O47: 476734.43
G48: 44 | O48: 469984.65
G49: 45 | O49: 453681.9
G50: 46 | O50: 450000
G51: 47 | O51: 439363.9767
G52: 48 | O52: 406765.56
G53: 49 | O53: 334416.5367
G54: 50 | O54: 271607.67
G55: 51 | O55: 264004
G56: 52 | O56: 256837.36
G57: 53 | O57: 255477.8
G58: 54 | O58: 250909.24
G59: 55 | O59: 247804.44
G60: 56 | O60: 243318.1
G61: 57 | O61: 240577.83
G62: 58 | O62: 220772.7867
G63: 59 | O63: 207000
G64: 60 | O64: 204860.24
G65: 61 | O65: 203974.78
G66: 62 | O66: 203548.2
G67: 63 | O67: 202040.3
G68: 64 | O68: 187287.5333
G69: 65 | O69: 185540
G70: 66 | O70: 175988.06
G71: 67 | O71: 173542.62
G72: 68 | O72: 172933.3333
G73: 69 | O73: 158186.2
G74: 70 | O74: 150450.95
G75: 71 | O75: 147736
G76: 72 | O76: 144676
G77: 73 | O77: 139220
G78: 74 | O78: 137235
G79: 75 | O79: 135925.26
G80: 76 | O80: 135729.65
G81: 77 | O81: 133453.68
G82: 78 | O82: 133086
G83: 79 | O83: 126740
G84: 80 | O84: 122596.3
G85: 81 | O85: 121765.6667
G86: 82 | O86: 120052
G87: 83 | O87: 117664.2
G88: 84 | O88: 117242.26
G89: 85 | O89: 115579.8
G90: 86 | O90: 111513.25
G91: 87 | O91: 110340.2
G92: 88 | O92: 109640
G93: 89 | O93: 105013.88
G94: 90 | O94: 98100
G95: 91 | O95: 98043.74
G96: 92 | O96: 96959.24
G97: 93 | O97: 96952.68
G98: 94 | O98: 96499.75
G99: 95 | O99: 95838.12
G100: 96 | O100: 95052.04
G101: 97 | O101: 94741.98667
G102: 98 | O102: 94484
G103: 99 | O103: 93390
G104: 100 | O104: 92311.41333
G105: 101 | O105: 91860
G106: 102 | O106: 91254.53
G107: 103 | O107: 90931.52
G108: 104 | O108: 90770.2
G109: 105 | O109: 89660.41333
G110: 106 | O110: 87404
G111: 107 | O111: 86472
G112: 108 | O112: 85462.67
G113: 109 | O113: 85324
G114: 110 | O114: 85000
G115: 111 | O115: 84160.92
G116: 112 | O116: 83425
G117: 113 | O117: 83386.55
G118: 114 | O118: 82485.96
G119: 115 | O119: 81703.38667
G120: 116 | O120: 80857.8
G121: 117 | O121: 80428.29333
G122: 118 | O122: 80400
G123: 119 | O123: 80324.1
G124: 120 | O124: 79220
G125: 121 | O125: 77454
G126: 122 | O126: 77290.96
G127: 123 | O127: 76600
G128: 124 | O128: 75463
G129: 125 | O129: 75034.66667
G130: 126 | O130: 74425
G131: 127 | O131: 73716.59
G132: 128 | O132: 73370.15
G133: 129 | O133: 71921.35
G134: 130 | O134: 70675.56
G135: 131 | O135: 70412.65
G136: 132 | O136: 70269.48
G137: 133 | O137: 69800.44
G138: 134 | O138: 69778.2
G139: 135 | O139: 69142
G140: 136 | O140: 69001.84
G141: 137 | O141: 68608.62
G142: 138 | O142: 67658
G143: 139 | O143: 66676
G144: 140 | O144: 63900
G145: 141 | O145: 63690
G146: 142 | O146: 63461.05333
G147: 143 | O147: 63325.8
G148: 144 | O148: 62684.64
G149: 145 | O149: 62040
G150: 146 | O150: 61923.44
G151: 147 | O151: 61325.45
G152: 148 | O152: 59874.09
G153: 149 | O153: 58018.34667
G154: 150 | O154: 57839.8
G155: 151 | O155: 57700.46
G156: 152 | O156: 57587.29333
G157: 153 | O157: 56202
G158: 154 | O158: 55738.66667
G159: 155 | O159: 54879.4
G160: 156 | O160: 53942
G161: 157 | O161: 52445
G162: 158 | O162: 50879.18
G163: 159 | O163: 50000
G164: 160 | O164: 49190.25
G165: 161 | O165: 49162.4
G166: 162 | O166: 49066.66667
G167: 163 | O167: 48660
G168: 164 | O168: 48553.33333
G169: 165 | O169: 48438.55
G170: 166 | O170: 47837.04
G171: 167 | O171: 47500
G172: 168 | O172: 46256.63
G173: 169 | O173: 46062.5
G174: 170 | O174: 44610
G175: 171 | O175: 44313.45
G176: 172 | O176: 44223.14
G177: 173 | O177: 44023.43
G178: 174 | O178: 43723
G179: 175 | O179: 43643.9
G180: 176 | O180: 43446
G181: 177 | O181: 43440
G182: 178 | O182: 43296
G183: 179 | O183: 43246.66667
G184: 180 | O184: 41324.6
G185: 181 | O185: 40929
G186: 182 | O186: 40805.87
G187: 183 | O187: 39275
G188: 184 | O188: 38978.5
G189: 185 | O189: 38736
G190: 186 | O190: 38554.57
G191: 187 | O191: 38478.1
G192: 188 | O192: 38425.6
G193: 189 | O193: 38185.7
G194: 190 | O194: 38080
G195: 191 | O195: 38060
G196: 192 | O196: 37986
G197: 193 | O197: 37928.75
G198: 194 | O198: 37862
G199: 195 | O199: 37771.16
G200: 196 | O200: 37679.8
G201: 197 | O201: 37311.42667
G202: 198 | O202: 37201
G203: 199 | O203: 36891.6
... 894 more rows

Sheet 

Sheet CPI
J2: MICT | K2: =IF('Dash-1'!I45="Yes",'Dash-1'!I26,'Dash-1'!K45) -> 0.1 | N2: General Import Duty | O2: 0.08 | R2: Distributors Margin | S2: 0.3333333333
D3: Total Impact of MICT on the CPI | J3: Existing GRT Rate | K3: 0.03 | N3: Foodstuff Import Duty | O3: 0.05 | R3: Fuel Margins | S3: 0.4827248348
D4: =SUM(O20:O80) -> -0.003774239428 | J4: Inverse of GRT | K4: =1/(1+K3) -> 0.9708737864 | W4: Total Impact of MICT on the CPI by Decile
N5: ="Inverse of "&N2 -> Inverse of General Import Duty | O5: =1/(1+O2) -> 0.9259259259 | S5: Embedded Taxes | Y5: 1 | Z5: 2 | AA5: 3 | AB5: 4 | AC5: 5 | AD5: 6 | AE5: 7 | AF5: 8 | AG5: 9 | AH5: 10 | AJ5: Overall
N6: ="Inverse of "&N3 -> Inverse of Foodstuff Import Duty | O6: =1/(1+O3) -> 0.9523809524 | S6: Distribution | T6: 0.03 | X6: Food | Y6: =SUMIF($B$20:$B$80,$X6,AE$20:AE$80) -> -0.01351334515 | Z6: -0.01697438182 | AA6: -0.01429152701 | AB6: -0.01275396649 | AC6: -0.008049999979 | AD6: -0.006150525032 | AE6: -0.006601448539 | AF6: -0.006890768655 | AG6: -0.004067534007 | AH6: 0.0003819729451 | AJ6: =SUMIF($B$20:$B$80,$X6,O$20:O$80) -> -0.01433114367
S7: Fuel | T7: 0.02 | X7: Alcoholic Beverage | Y7: =SUMIF($B$20:$B$80,$X7,AE$20:AE$80) -> 0 | Z7: =SUMIF($B$20:$B$80,$X7,AF$20:AF$80) -> 0.0001942748352 | AA7: 0.0007946409716 | AB7: 0.001210347838 | AC7: 0.002011839969 | AD7: 0.001740948702 | AE7: 0.002148661784 | AF7: 0.001381955308 | AG7: 0.002209185598 | AH7: 0.002480564987 | AJ7: 0.0009605054108
O8: Weight | S8: Manufacturing | T8: 0.05 | X8: Housing, Utilities and Major Appliances | Y8: 0.000385319358 | Z8: 0.00286961267 | AA8: 0.004020968924 | AB8: 0.004425981646 | AC8: 0.006391396737 | AD8: 0.006420271135 | AE8: 0.007161180845 | AF8: 0.008388243595 | AG8: 0.007912460245 | AH8: 0.004678651771 | AJ8: 0.00606558263
N9: Food | O9: =SUMIF($B$20:$B$80,N9,$G$20:$G$80) -> 0.3591361388 | S9: Personal Services | T9: 0.03 | X9: Apparel | Y9: -0.003366104817 | Z9: -0.003812105707 | AA9: -0.003801127618 | AB9: -0.003329516319 | AC9: -0.004063439281 | AD9: -0.003646796151 | AE9: -0.003751858869 | AF9: -0.00304173181 | AG9: -0.003682894723 | AH9: -0.004346272372 | AJ9: -0.002916693017
N10: Alcoholic Beverage | O10: 0.01676814531 | S10: Business Services | T10: 0.015 | X10: Transportation | Y10: 0.0003652573195 | Z10: 0.0002221221566 | AA10: 0.000148381263 | AB10: 0.0003012564122 | AC10: 0.0005762726447 | AD10: 0.0007102473375 | AE10: 0.0009109324437 | AF10: 0.001083135717 | AG10: 0.001305856527 | AH10: 0.001575972237 | AJ10: 0.002298597083
N11: Housing, Utilities and Major Appliances | O11: 0.1707335415 | X11: Medical Care | Y11: 1.183716479e-06 | Z11: 0 | AA11: 8.331541052e-05 | AB11: 0 | AC11: 0 | AD11: 0 | AE11: 2.149982671e-06 | AF11: 0 | AG11: 2.249878258e-06 | AH11: 0 | AJ11: 0.0003912025681
N12: Apparel | O12: 0.04328393729 | X12: Recreation | Y12: -0.0001084871259 | Z12: -7.618981348e-05 | AA12: -0.0001065943206 | AB12: -0.0001098269037 | AC12: -0.0001289961039 | AD12: -0.0001366678074 | AE12: -0.0001216230197 | AF12: -0.0001786188313 | AG12: -0.0001310391001 | AH12: -0.0001177909575 | AJ12: -0.0005315410452
N13: Transportation | O13: 0.1373246115 | X13: Education and Comm. | Y13: 0.001408093303 | Z13: 0.001473187504 | AA13: 0.002212012399 | AB13: 0.001710894048 | AC13: 0.002474435408 | AD13: 0.002591139856 | AE13: 0.002423915173 | AF13: 0.002310338982 | AG13: 0.00302505259 | AH13: 0.003116846116 | AJ13: 0.0007249261888
N14: Medical Care | O14: 0.02225110511 | X14: Other Goods and Services | Y14: 0.002350847237 | Z14: 0.002292258137 | AA14: 0.001788543002 | AB14: 0.001590157612 | AC14: 0.001110745074 | AD14: 0.0008707306362 | AE14: 0.0004807412633 | AF14: 0.000432654155 | AG14: 0.0006442307588 | AH14: 0.00130990357 | AJ14: 0.003564324422
N15: Recreation | O15: 0.02321847578 | Y15: =SUM(Y6:Y14) -> -0.01247723616 | Z15: =SUM(Z6:Z14) -> -0.01381122204 | AA15: -0.009151386978 | AB15: -0.006954672155 | AC15: 0.000322254468 | AD15: 0.002399348676 | AE15: 0.002652651063 | AF15: 0.003485208462 | AG15: 0.007217567766 | AH15: 0.009079848296 | AJ15: -0.003774239428
N16: Education and Comm. | O16: 0.06555461821
N17: Other Goods and Services | O17: 0.1617294264
T18: Structure of Consumption Pattern | AE18: Impact*Weight
B19: Division | D19: Item | G19: Weight | H19: Local Sales Taxes | I19: GRT | J19: Embedded Indirect Taxes | K19: Direct Import tax | L19: Producer Grt | M19: Producer input tax loss | N19: MICT Impact | O19: Impact*Weight | R19: No | S19: Item | T19: 1 | U19: 2 | V19: 3 | W19: 4 | X19: 5 | Y19: 6 | Z19: 7 | AA19: 8 | AB19: 9 | AC19: 10 | AE19: 1 | AF19: 2 | AG19: 3 | AH19: 4 | AI19: 5 | AJ19: 6 | AK19: 7 | AL19: 8 | AM19: 9 | AN19: 10
B20: Food | C20: 1 | D20: Cereals (breakfast cereal, etc.) | E20: I | F20: Food | G20: 0.004760198883 | H20: =IF('Dash-1'!$I$45="Yes",-0.06,0) -> -0.06 | I20: =-(1-$K$4) -> -0.02912621359 | J20: =-$K$4*$S$2*$T$6 -> -0.009708737864 | K20: =-$O$3*(1-$S$2) -> -0.03333333333 | N20: =(1+I20+J20+K20+H20)*(1+$K$2)-1 -> -0.04538511327 | O20: =N20*G20 -> -0.0002160421655 | R20: 1 | S20: Cereals (breakfast cereal, etc.) | T20: 0.008514984617 | U20: 0.004003251253 | V20: 0.003825600578 | W20: 0.007880799755 | X20: 0.007384595107 | Y20: 0.01072151304 | Z20: 0.01299027543 | AA20: 0.0132099242 | AB20: 0.01107534141 | AC20: 0.01457706364 | AE20: =T20*$N20 -> -0.0003864535413 | AF20: =U20*$N20 -> -0.0001816880116 | AG20: -0.0001736253156 | AH20: -0.0003576709895 | AI20: -0.0003351506854 | AJ20: -0.0004865970836 | AK20: -0.000589565122 | AL20: -0.0005995339063 | AM20: -0.0005026556243 | AN20: -0.0006615816843 | AO20: =SUM(AE20:AN20)-O20 -> -0.004058479798
B21: Food | C21: 2 | D21: Rice | E21: I | F21: Food | G21: 0.04860044495 | H21: =IF('Dash-1'!$I$45="Yes",-0.06,0) -> -0.06 | I21: =-(1-$K$4) -> -0.02912621359 | J21: -0.009708737864 | K21: =-$O$3*(1-$S$2) -> -0.03333333333 | N21: =(1+I21+J21+K21+H21)*(1+$K$2)-1 -> -0.04538511327 | O21: =N21*G21 -> -0.002205736699 | R21: 2 | S21: Rice | T21: 0.08957770123 | U21: 0.07415139864 | V21: 0.07482778409 | W21: 0.06663622096 | X21: 0.04718431905 | Y21: 0.04244292441 | Z21: 0.03896873779 | AA21: 0.04159403751 | AB21: 0.0416159976 | AC21: 0.03084300018 | AE21: =T21*$N21 -> -0.004065494117 | AF21: =U21*$N21 -> -0.003365369626 | AG21: =V21*$N21 -> -0.003396067457 | AH21: =W21*$N21 -> -0.003024292436 | AI21: =X21*$N21 -> -0.002141465665 | AJ21: =Y21*$N21 -> -0.001926276932 | AK21: =Z21*$N21 -> -0.001768600578 | AL21: =AA21*$N21 -> -0.001887750104 | AM21: =AB21*$N21 -> -0.001888746765 | AN21: =AC21*$N21 -> -0.001399813057
B22: Food | C22: 3 | D22: Flour | E22: I | F22: Food | G22: 0.01427109215 | H22: =IF('Dash-1'!$I$45="Yes",-0.06,0) -> -0.06 | I22: -0.02912621359 | J22: -0.009708737864 | K22: -0.03333333333 | N22: -0.04538511327 | O22: -0.0006476951336 | R22: 3 | S22: Flour | T22: 0.04362379867 | U22: 0.04316828977 | V22: 0.02706392231 | W22: 0.02467247592 | X22: 0.02171488388 | Y22: 0.01856624295 | Z22: 0.01552870831 | AA22: 0.01492869136 | AB22: 0.01666099365 | AC22: 0.01018771366 | AE22: -0.001979871044 | AF22: -0.001959197721 | AG22: -0.00122829918 | AH22: -0.001119763114 | AI22: -0.0009855324646 | AJ22: -0.0008426310394 | AK22: -0.0007047721856 | AL22: -0.0006775403483 | AM22: -0.0007561610839 | AN22: -0.0004623705386
B23: Food | C23: 4 | D23: Ramen and other instant noodles | E23: I | F23: Food | G23: 0.01039722846 | H23: =IF('Dash-1'!$I$45="Yes",-0.06,0) -> -0.06 | I23: -0.02912621359 | J23: -0.009708737864 | K23: -0.03333333333 | N23: -0.04538511327 | O23: -0.0004718793915 | R23: 4 | S23: Ramen and other instant noodles | T23: 0.03366793091 | U23: 0.03373363377 | V23: 0.03976129178 | W23: 0.04001241583 | X23: 0.03017510792 | Y23: 0.02740247255 | Z23: 0.03201336494 | AA23: 0.02547918563 | AB23: 0.0249240663 | AC23: 0.01913532677 | AE23: -0.001528022858 | AF23: -0.00153100479 | AG23: -0.001804570731 | AH23: -0.001815968024 | AI23: -0.001369500691 | AJ23: -0.001243664321 | AK23: -0.001452930194 | AL23: -0.001156375726 | AM23: -0.001131181572 | AN23: -0.0008684589727
B24: Food | C24: 5 | D24: Bread | E24: D | F24: Food | G24: 0.01153578203 | H24: =IF('Dash-1'!$I$45="Yes",-0.06,0) -> -0.06 | I24: -0.02912621359 | J24: -0.009708737864 | L24: =-(1-$K$4)*$S$2 -> -0.009708737864 | M24: =-$K$4*$S$2*$T$6 -> -0.009708737864 | N24: =(1+I24+J24+H24+L24+M24)*(1+$K$2)-1 -> -0.0300776699 | O24: -0.0003469694441 | R24: 5 | S24: Bread | T24: 0.008786600764 | U24: 0.01341799778 | V24: 0.0103962572 | W24: 0.01393417959 | X24: 0.01531326483 | Y24: 0.01133602883 | Z24: 0.0143475679 | AA24: 0.01350496818 | AB24: 0.01628329058 | AC24: 0.0146316598 | AE24: -0.0002642804774 | AF24: -0.000403582108 | AG24: -0.0003126951924 | AH24: -0.000419107654 | AI24: -0.0004605873246 | AJ24: -0.000340961333 | AK24: -0.0004315414113 | AL24: -0.000406197975 | AM24: -0.000489763439 | AN24: -0.0004400862335
B25: Food | C25: 6 | D25: Donuts, pastries, etc. | E25: D | F25: Food | G25: 0.008719442003 | H25: =IF('Dash-1'!$I$45="Yes",-0.06,0) -> -0.06 | I25: -0.02912621359 | J25: -0.009708737864 | L25: =-(1-$K$4)*$S$2 -> -0.009708737864 | M25: =-$K$4*$S$2*$T$6 -> -0.009708737864 | N25: =(1+I25+J25+H25+L25+M25)*(1+$K$2)-1 -> -0.0300776699 | O25: -0.0002622604983 | R25: 6 | S25: Donuts, pastries, etc. | T25: 0.007684248903 | U25: 0.005308808599 | V25: 0.005204320349 | W25: 0.005582643332 | X25: 0.006101251761 | Y25: 0.005769488518 | Z25: 0.00757844187 | AA25: 0.0060280647 | AB25: 0.007207008615 | AC25: 0.0064416492 | AE25: -0.000231124302 | AF25: -0.0001596765926 | AG25: -0.0001565338295 | AH25: -0.0001679129033 | AI25: -0.0001835114365 | AJ25: -0.0001735327711 | AK25: -0.000227941873 | AL25: -0.0001813101402 | AM25: -0.0002167700261 | AN25: -0.0001937497983
B26: Food | C26: 7 | D26: Steak/beef (all types) | E26: I | F26: Food | G26: 0.007274274232 | H26: =IF('Dash-1'!$I$45="Yes",-0.06,0) -> -0.06 | I26: -0.02912621359 | J26: -0.009708737864 | K26: =-$O$3*(1-$S$2) -> -0.03333333333 | N26: -0.04538511327 | O26: -0.00033014376 | R26: 7 | S26: Steak/beef (all types) | T26: 0.002527711659 | U26: 0.001907421031 | V26: 0.004012145055 | W26: 0.003859364671 | X26: 0.00723672179 | Y26: 0.01155642745 | Z26: 0.009285636393 | AA26: 0.008997217089 | AB26: 0.0110117269 | AC26: 0.007180185038 | AE26: -0.0001147204799 | AF26: -8.656851953e-05 | AG26: -0.0001820916578 | AH26: -0.0001751577027 | AI26: -0.0003284394381 | AJ26: -0.0005244897688 | AK26: -0.0004214296595 | AL26: -0.0004083397167 | AM26: -0.0004997684726 | AN26: -0.0003258735112
B27: Food | C27: 8 | D27: Canned corned beef | E27: I | F27: Food | G27: 0.0242350871 | H27: =IF('Dash-1'!$I$45="Yes",-0.06,0) -> -0.06 | I27: -0.02912621359 | J27: -0.009708737864 | K27: -0.03333333333 | N27: -0.04538511327 | O27: -0.001099912173 | R27: 8 | S27: Canned corned beef | T27: 0.02419025996 | U27: 0.02348107951 | V27: 0.018927974 | W27: 0.02321669527 | X27: 0.02468691632 | Y27: 0.01820253892 | Z27: 0.02039808228 | AA27: 0.01328573894 | AB27: 0.01504577267 | AC27: 0.00809338121 | AE27: -0.001097877688 | AF27: -0.001065691453 | AG27: -0.0008590482438 | AH27: -0.001053692345 | AI27: -0.001120418494 | AJ27: -0.0008261242908 | AK27: -0.0009257692747 | AL27: -0.0006029747667 | AM27: -0.0006828540968 | AN27: -0.0003673190229
B28: Food | C28: 9 | D28: Canned luncheon meat (Hormel Spam) | E28: I | F28: Food | G28: 0.01421981079 | H28: =IF('Dash-1'!$I$45="Yes",-0.06,0) -> -0.06 | I28: -0.02912621359 | J28: -0.009708737864 | K28: -0.03333333333 | N28: -0.04538511327 | O28: -0.0006453677233 | R28: 9 | S28: Canned luncheon meat (Hormel Spam) | T28: 0.01538258429 | U28: 0.02422479953 | V28: 0.02884390368 | W28: 0.02037063695 | X28: 0.01708470405 | Y28: 0.01553626406 | Z28: 0.01487567529 | AA28: 0.009612714625 | AB28: 0.01048805671 | AC28: 0.007982014219 | AE28: -0.0006981403304 | AF28: -0.001099445271 | AG28: -0.001309083836 | AH28: -0.0009245236651 | AI28: -0.0007753912283 | AJ28: -0.0007051151042 | AK28: -0.0006751342078 | AL28: -0.0004362741421 | AM28: -0.0004760016416 | AN28: -0.0003622646195
B29: Food | C29: 10 | D29: Whole chicken (frying chicken, etc.) | E29: I | F29: Food | G29: 0.0201625954 | H29: =IF('Dash-1'!$I$45="Yes",-0.06,0) -> -0.06 | I29: -0.02912621359 | J29: -0.009708737864 | K29: -0.03333333333 | N29: -0.04538511327 | O29: -0.0009150816762 | R29: 10 | S29: Whole chicken (frying chicken, etc.) | T29: 0.01255671898 | U29: 0.0149349611 | V29: 0.01794753558 | W29: 0.01447507313 | X29: 0.01474696632 | Y29: 0.01328882648 | Z29: 0.01332985868 | AA29: 0.01202109704 | AB29: 0.01252512445 | AC29: 0.00994683245 | AE29: -0.0005698881131 | AF29: -0.0006778249011 | AG29: -0.000814550935 | AH29: -0.0006569528336 | AI29: -0.0006692927366 | AJ29: -0.0006031148949 | AK29: -0.000604977146 | AL29: -0.0005455788509 | AM29: -0.0005684541917 | AN29: -0.0004514381174
B30: Food | C30: 11 | D30: Turkey and turkey parts | E30: I | F30: Food | G30: 0.01409920562 | H30: =IF('Dash-1'!$I$45="Yes",-0.06,0) -> -0.06 | I30: -0.02912621359 | J30: -0.009708737864 | K30: -0.03333333333 | N30: -0.04538511327 | O30: -0.0006398940442 | R30: 11 | S30: Turkey and turkey parts | T30: 0.00878060385 | U30: 0.0104436499 | V30: 0.01255026892 | W30: 0.01012206159 | X30: 0.01031218979 | Y30: 0.009292548566 | Z30: 0.009321241371 | AA30: 0.008406056642 | AB30: 0.008758510573 | AC30: 0.006955574577 | AE30: -0.0003985087003 | AF30: -0.0004739862337 | AG30: -0.0005695953766 | AH30: -0.0004593909117 | AI30: -0.0004680199015 | AJ30: -0.0004217433692 | AK30: -0.0004230455954 | AL30: -0.0003815098328 | AM30: -0.0003975059944 | AN30: -0.00031567954
B31: Food | C31: 12 | D31: Chicken legs | E31: I | F31: Food | G31: 0.03110206383 | H31: =IF('Dash-1'!$I$45="Yes",-0.06,0) -> -0.06 | I31: -0.02912621359 | J31: -0.009708737864 | K31: -0.03333333333 | N31: -0.04538511327 | O31: -0.00141157069 | R31: 12 | S31: Chicken legs | T31: 0.01936952398 | U31: 0.02303811112 | V31: 0.02768519558 | W31: 0.02232870518 | X31: 0.02274811742 | Y31: 0.02049884556 | Z31: 0.0205621403 | AA31: 0.01854329366 | AB31: 0.01932078744 | AC31: 0.01534361086 | AE31: -0.0008790880398 | AF31: -0.001045587283 | AG31: -0.001256495737 | AH31: -0.001013390814 | AI31: -0.001032425886 | AJ31: -0.0009303424278 | AK31: -0.0009332150665 | AL31: -0.0008415894832 | AM31: -0.0008768761264 | AN31: -0.0006963715168
B32: Food | C32: 13 | D32: Chicken breasts and all other parts | E32: I | F32: Food | G32: 0.004172691709 | H32: =IF('Dash-1'!$I$45="Yes",-0.06,0) -> -0.06 | I32: -0.02912621359 | J32: -0.009708737864 | K32: -0.03333333333 | N32: -0.04538511327 | O32: -0.0001893780859 | R32: 13 | S32: Chicken breasts and all other parts | T32: 0.002598639517 | U32: 0.003090821747 | V32: 0.003714280399 | W32: 0.002995646961 | X32: 0.00305191583 | Y32: 0.00275015071 | Z32: 0.002758642411 | AA32: 0.002487791426 | AB32: 0.002592100962 | AC32: 0.002058517987 | AE32: -0.0001179395488 | AF32: -0.0001402772951 | AG32: -0.0001685730366 | AH32: -0.0001359577766 | AI32: -0.0001385115456 | AJ32: -0.0001248159015 | AK32: -0.0001252012983 | AL32: -0.0001129086956 | AM32: -0.0001176427957 | AN32: -9.342607199e-05
B33: Food | C33: 14 | D33: Canned mackeral | E33: I | F33: Food | G33: 0.0069899983 | H33: =IF('Dash-1'!$I$45="Yes",-0.06,0) -> -0.06 | I33: -0.02912621359 | J33: -0.009708737864 | K33: -0.03333333333 | N33: -0.04538511327 | O33: -0.0003172418646 | R33: 14 | S33: Canned mackeral | T33: 0.01164806466 | U33: 0.01986314975 | V33: 0.01703234651 | W33: 0.01865825924 | X33: 0.01155686054 | Y33: 0.009460406647 | Z33: 0.01040193997 | AA33: 0.008932589585 | AB33: 0.007080016952 | AC33: 0.009046764792 | AE33: -0.0005286487338 | AF33: -0.0009014913011 | AG33: -0.0007730149758 | AH33: -0.0008468072092 | AI33: -0.0005245094247 | AJ33: -0.0004293616272 | AK33: -0.0004720932237 | AL33: -0.0004054065901 | AM33: -0.0003213273713 | AN33: -0.0004105884448
B34: Food | C34: 15 | D34: Canned tuna | E34: I | F34: Food | G34: 0.02048725205 | H34: =IF('Dash-1'!$I$45="Yes",-0.06,0) -> -0.06 | I34: -0.02912621359 | J34: -0.009708737864 | K34: -0.03333333333 | N34: -0.04538511327 | O34: -0.0009298162549 | R34: 15 | S34: Canned tuna | T34: 0.01989316025 | U34: 0.02909235697 | V34: 0.02539494452 | W34: 0.02716293241 | X34: 0.01875301326 | Y34: 0.01689791299 | Z34: 0.01519374835 | AA34: 0.01323248267 | AB34: 0.011305943 | AC34: 0.01134271321 | AE34: -0.0009028533311 | AF34: -0.001320359916 | AG34: -0.001152552433 | AH34: -0.001232792764 | AI34: -0.000851107631 | AJ34: -0.0007669136952 | AK34: -0.00068956999 | AL34: -0.0006005577248 | AM34: -0.0005131215036 | AN34: -0.0005147903239
B35: Food | C35: 16 | D35: Fresh deep-sea fish (tuna, marlin, wahoo, etc.) | E35: D | F35: Food | G35: 0.005156058758 | H35: =IF('Dash-1'!$I$45="Yes",-0.06,0) -> -0.06 | I35: -0.02912621359 | J35: -0.009708737864 | L35: =-(1-$K$4)*$S$2 -> -0.009708737864 | M35: =-$K$4*$S$2*$T$6 -> -0.009708737864 | N35: =(1+I35+J35+H35+L35+M35)*(1+$K$2)-1 -> -0.0300776699 | O35: -0.0001550822333 | R35: 16 | S35: Fresh deep-sea fish (tuna, marlin, wahoo, etc.) | T35: 0.007222882694 | U35: 0.008407478799 | V35: 0.01019617151 | W35: 0.01081287926 | X35: 0.006214038422 | Y35: 0.01135782896 | Z35: 0.009149038303 | AA35: 0.01085635283 | AB35: 0.01255542314 | AC35: 0.008371469663 | AE35: -0.0002172474814 | AF35: -0.000252877372 | AG35: -0.0003066770809 | AH35: -0.000325226213 | AI35: -0.0001869037964 | AJ35: -0.0003416170302 | AK35: -0.000275181754 | AL35: -0.0003265337968 | AM35: -0.0003776378728 | AN35: -0.0002517943011
B36: Food | C36: 17 | D36: Fresh reef fish | E36: D | F36: Food | G36: 0.006714099217 | H36: =IF('Dash-1'!$I$45="Yes",-0.06,0) -> -0.06 | I36: -0.02912621359 | J36: -0.009708737864 | L36: -0.009708737864 | M36: =-$K$4*$S$2*$T$6 -> -0.009708737864 | N36: -0.0300776699 | O36: -0.0002019444599 | R36: 17 | S36: Fresh reef fish | T36: 0.06015551575 | U36: 0.04169572663 | V36: 0.04004158989 | W36: 0.05330942883 | X36: 0.02197259252 | Y36: 0.02642687129 | Z36: 0.02475621386 | AA36: 0.0234550114 | AB36: 0.01530748893 | AC36: 0.0120227835 | AE36: -0.001809337746 | AF36: -0.001254110302 | AG36: -0.001204357723 | AH36: -0.001603423403 | AI36: -0.0006608843848 | AJ36: -0.0007948587112 | AK36: -0.0007446092287 | AL36: -0.0007054720905 | AM36: -0.000460413599 | AN36: -0.0003616173133
B37: Food | C37: 18 | D37: Eggs | E37: I | F37: Food | G37: 0.009092158144 | H37: =IF('Dash-1'!$I$45="Yes",-0.06,0) -> -0.06 | I37: -0.02912621359 | J37: -0.009708737864 | K37: =-$O$3*(1-$S$2) -> -0.03333333333 | N37: -0.04538511327 | O37: -0.0004126486272 | R37: 18 | S37: Eggs | T37: 0.009116995371 | U37: 0.006127623954 | V37: 0.008010832398 | W37: 0.0052904777 | X37: 0.01033894221 | Y37: 0.01143990252 | Z37: 0.008826493598 | AA37: 0.01085469717 | AB37: 0.008756521956 | AC37: 0.009152156462 | AE37: -0.0004137758676 | AF37: -0.0002781029072 | AG37: -0.0003635725358 | AH37: -0.0002401089297 | AI37: -0.0004692340631 | AJ37: -0.0005192012717 | AK37: -0.0004005914117 | AL37: -0.0004926416605 | AM37: -0.0003974157408 | AN37: -0.0004153716577
B38: Food | C38: 19 | D38: Milk - evaporated | E38: I | F38: Food | G38: 0.005267481607 | H38: =IF('Dash-1'!$I$45="Yes",-0.06,0) -> -0.06 | I38: -0.02912621359 | J38: -0.009708737864 | K38: -0.03333333333 | N38: -0.04538511327 | O38: -0.0002390652494 | R38: 19 | S38: Milk - evaporated | T38: 0.004382603662 | U38: 0.00505579843 | V38: 0.004848051923 | W38: 0.004312769848 | X38: 0.00551710242 | Y38: 0.007051695627 | Z38: 0.005490585435 | AA38: 0.008628720367 | AB38: 0.00503268066 | AC38: 0.009079335398 | AE38: -0.0001989049636 | AF38: -0.0002294579844 | AG38: -0.0002200293857 | AH38: -0.0001957355481 | AI38: -0.0002503943183 | AJ38: -0.0003200420048 | AK38: -0.0002491908419 | AL38: -0.0003916154512 | AM38: -0.0002284087818 | AN38: -0.0004120666654
B39: Food | C39: 20 | D39: Ice cream | E39: I | F39: Food | G39: 0.005394262014 | H39: =IF('Dash-1'!$I$45="Yes",-0.06,0) -> -0.06 | I39: -0.02912621359 | J39: -0.009708737864 | K39: -0.03333333333 | N39: -0.04538511327 | O39: -0.0002448191925 | R39: 20 | S39: Ice cream | T39: 0.001834112314 | U39: 0.001426013392 | V39: 0.0007294055676 | W39: 0.001136702816 | X39: 0.003259028001 | Y39: 0.00329836604 | Z39: 0.001912113918 | AA39: 0.001505386886 | AB39: 0.004778614075 | AC39: 0.004821434907 | AE39: -8.32413951e-05 | AF39: -6.471977931e-05 | AG39: -3.310415431e-05 | AH39: -5.158938604e-05 | AI39: -0.000147911355 | AJ39: -0.0001496967163 | AK39: -8.678150674e-05 | AL39: -6.832215432e-05 | AM39: -0.0002168779411 | AN39: -0.0002188213694
B40: Food | C40: 21 | D40: Other fruits and vegetables | E40: I | F40: Food | G40: 0.005248257809 | H40: =IF('Dash-1'!$I$45="Yes",-0.06,0) -> -0.06 | I40: -0.02912621359 | J40: -0.009708737864 | K40: -0.03333333333 | N40: -0.04538511327 | O40: -0.0002381927751 | R40: 21 | S40: Other fruits and vegetables | T40: 0.1192474942 | U40: 0.1311010705 | V40: 0.09293666442 | W40: 0.08605465701 | X40: 0.0835860539 | Y40: 0.07598890414 | Z40: 0.0794210905 | AA40: 0.1054659139 | AB40: 0.06686790694 | AC40: 0.0633847163 | AE40: -0.00541206103 | AF40: -0.005950036936 | AG40: -0.004217941041 | AH40: -0.003905600356 | AI40: -0.003793562524 | AJ40: -0.003448765022 | AK40: -0.003604535188 | AL40: -0.004786582451 | AM40: -0.00303480753 | AN40: -0.002876722529
B41: Food | C41: 22 | D41: Coke | E41: I | F41: Food | G41: 0.00790624315 | H41: =IF('Dash-1'!$I$45="Yes",-0.06,0) -> -0.06 | I41: -0.02912621359 | J41: -0.009708737864 | K41: -0.03333333333 | N41: -0.04538511327 | O41: -0.0003588257409 | R41: 22 | S41: Coke | T41: 0.007762756728 | U41: 0.0061186203 | V41: 0.007828831297 | W41: 0.005881125124 | X41: 0.006340976338 | Y41: 0.006924495068 | Z41: 0.004229704723 | AA41: 0.005453298063 | AB41: 0.004524109504 | AC41: 0.005003617969 | AE41: -0.0003523135934 | AF41: -0.0002776942754 | AG41: -0.0003553123952 | AH41: -0.0002669155299 | AI41: -0.0002877859293 | AJ41: -0.000314268993 | AK41: -0.000191965628 | AL41: -0.0002474985503 | AM41: -0.0002053272223 | AN41: -0.0002270897683
B42: Food | C42: 23 | D42: Pepsi | E42: I | F42: Food | G42: 0.005936877862 | H42: =IF('Dash-1'!$I$45="Yes",-0.06,0) -> -0.06 | I42: -0.02912621359 | J42: -0.009708737864 | K42: -0.03333333333 | N42: -0.04538511327 | O42: -0.0002694458743 | R42: 23 | S42: Pepsi | T42: 0.005829132458 | U42: 0.004594533803 | V42: 0.00587874852 | W42: 0.004416196276 | X42: 0.004761503198 | Y42: 0.005199673308 | Z42: 0.003176128011 | AA42: 0.004094936613 | AB42: 0.003397199536 | AC42: 0.003757267287 | AE42: -0.0002645558369 | AF42: -0.0002085234371 | AG42: -0.0002668076674 | AH42: -0.0002004295682 | AI42: -0.000216101362 | AJ42: -0.000235987762 | AK42: -0.0001441489296 | AL42: -0.000185849162 | AM42: -0.0001541822857 | AN42: -0.0001705240014
B43: Food | C43: 24 | D43: Colas- all others | E43: I | F43: Food | G43: 0.0075050135 | H43: =IF('Dash-1'!$I$45="Yes",-0.06,0) -> -0.06 | I43: -0.02912621359 | J43: -0.009708737864 | K43: -0.03333333333 | N43: -0.04538511327 | O43: -0.0003406158878 | R43: 24 | S43: Colas- all others | T43: 0.002548164737 | U43: 0.006136325446 | V43: 0.003637439678 | W43: 0.006815566173 | X43: 0.003257912525 | Y43: 0.003805765774 | Z43: 0.004231380114 | AA43: 0.005200888656 | AB43: 0.002743392231 | AC43: 0.002948480834 | AE43: -0.0001156487452 | AF43: -0.0002784978254 | AG43: -0.0001650856118 | AH43: -0.0003093252428 | AI43: -0.000147860729 | AJ43: -0.0001727251107 | AK43: -0.0001920416658 | AL43: -0.0002360429207 | AM43: -0.0001245091672 | AN43: -0.0001338171366
B44: Food | C44: 25 | D44: Coffee (instant coffee) | E44: I | F44: Food | G44: 0.009067188686 | H44: =IF('Dash-1'!$I$45="Yes",-0.06,0) -> -0.06 | I44: -0.02912621359 | J44: -0.009708737864 | K44: -0.03333333333 | N44: -0.04538511327 | O44: -0.0004115153856 | R44: 25 | S44: Coffee (instant coffee) | T44: 0.01047759023 | U44: 0.008044800407 | V44: 0.009776769274 | W44: 0.01447956562 | X44: 0.01019934729 | Y44: 0.01084175507 | Z44: 0.01494739437 | AA44: 0.006449436788 | AB44: 0.005099353926 | AC44: 0.00521671055 | AE44: -0.0004755266195 | AF44: -0.0003651141777 | AG44: -0.0004437197809 | AH44: -0.0006571567258 | AI44: -0.0004628985321 | AJ44: -0.0004920542821 | AK44: -0.0006783891868 | AL44: -0.0002927084191 | AM44: -0.0002314347555 | AN44: -0.0002367609992
B45: Food | C45: 26 | D45: Bottled water/spring water | E45: I | F45: Food | G45: 0.005822179451 | H45: =IF('Dash-1'!$I$45="Yes",-0.06,0) -> -0.06 | I45: -0.02912621359 | J45: -0.009708737864 | K45: -0.03333333333 | N45: -0.04538511327 | O45: -0.0002642402738 | R45: 26 | S45: Bottled water/spring water | T45: 0.0009177970067 | U45: 0.001517365964 | V45: 0.004429737345 | W45: 0.002049221915 | X45: 0.004402707879 | Y45: 0.005331468344 | Z45: 0.004111745926 | AA45: 0.007485396297 | AB45: 0.006860618704 | AC45: 0.004463208697 | AE45: -4.165432111e-05 | AF45: -6.886582614e-05 | AG45: -0.0002010441312 | AH45: -9.300416871e-05 | AI45: -0.0001998173958 | AJ45: -0.0002419692947 | AK45: -0.0001866120546 | AL45: -0.0003397255588 | AM45: -0.000311369957 | AN45: -0.0002025632323
B46: Food | C46: 27 | D46: Drink mix (KoolAid, Luau mix, etc.) | E46: I | F46: Food | G46: 0.005965337674 | H46: =IF('Dash-1'!$I$45="Yes",-0.06,0) -> -0.06 | I46: -0.02912621359 | J46: -0.009708737864 | K46: -0.03333333333 | N46: -0.04538511327 | O46: -0.000270737526 | R46: 27 | S46: Drink mix (KoolAid, Luau mix, etc.) | T46: 0.004147611811 | U46: 0.004559505132 | V46: 0.003858089823 | W46: 0.006014962476 | X46: 0.004260416947 | Y46: 0.003443833689 | Z46: 0.005156404673 | AA46: 0.003700220588 | AB46: 0.004041688648 | AC46: 0.003290902718 | AE46: -0.0001882398318 | AF46: -0.0002069336569 | AG46: -0.0001750998436 | AH46: -0.0002729897533 | AI46: -0.0001933595057 | AJ46: -0.000156298782 | AK46: -0.0002340240102 | AL46: -0.0001679349305 | AM46: -0.0001834324971 | AN46: -0.0001493579926
B47: Food | C47: 28 | D47: Sugar | E47: I | F47: Food | G47: 0.0104106529 | H47: =IF('Dash-1'!$I$45="Yes",-0.06,0) -> -0.06 | I47: -0.02912621359 | J47: -0.009708737864 | K47: -0.03333333333 | N47: -0.04538511327 | O47: -0.0004724886612 | R47: 28 | S47: Sugar | T47: 0.017175139 | U47: 0.01829095508 | V47: 0.0117029795 | W47: 0.01204494297 | X47: 0.009756767768 | Y47: 0.00691328322 | Z47: 0.007163611201 | AA47: 0.004770550441 | AB47: 0.005635846621 | AC47: 0.004136792873 | AE47: -0.0007794956289 | AF47: -0.0008301370682 | AG47: -0.0005311410502 | AH47: -0.000546661101 | AI47: -0.0004428120103 | AJ47: -0.000313760142 | AK47: -0.0003251213058 | AL47: -0.0002165119721 | AM47: -0.0002557835373 | AN47: -0.0001877488131
B48: Food | C48: 29 | D48: Chips- potato, banana, etc. | E48: I | F48: Food | G48: 0.004728141322 | H48: =IF('Dash-1'!$I$45="Yes",-0.06,0) -> -0.06 | I48: -0.02912621359 | J48: -0.009708737864 | K48: -0.03333333333 | N48: -0.04538511327 | O48: -0.0002145872294 | R48: 29 | S48: Chips- potato, banana, etc. | T48: 0.01011731696 | U48: 0.009131890563 | V48: 0.009762111972 | W48: 0.005446317825 | X48: 0.005570886215 | Y48: 0.007737632004 | Z48: 0.005441735061 | AA48: 0.003434958348 | AB48: 0.005390010461 | AC48: 0.004098265798 | AE48: -0.0004591755761 | AF48: -0.0004144518876 | AG48: -0.0004430545576 | AH48: -0.0002471817514 | AI48: -0.0002528353019 | AJ48: -0.0003511733049 | AK48: -0.0002469737621 | AL48: -0.0001558959737 | AM48: -0.0002446262353 | AN48: -0.0001860002574
B49: Food | C49: 30 | D49: Soy sauce (kikkoman, btl) | E49: I | F49: Food | G49: 0.007473492916 | H49: =IF('Dash-1'!$I$45="Yes",-0.06,0) -> -0.06 | I49: -0.02912621359 | J49: -0.009708737864 | K49: -0.03333333333 | N49: -0.04538511327 | O49: -0.0003391853225 | R49: 30 | S49: Soy sauce (kikkoman, btl) | T49: 0.01169533266 | U49: 0.01609272283 | V49: 0.01357617247 | W49: 0.01117980595 | X49: 0.01197596383 | Y49: 0.01094319194 | Z49: 0.009735771817 | AA49: 0.01074499691 | AB49: 0.007494839126 | AC49: 0.005556263965 | AE49: -0.0005307939973 | AF49: -0.0007303700486 | AG49: -0.0006161561252 | AH49: -0.0005073967592 | AI49: -0.0005435304747 | AJ49: -0.0004966580056 | AK49: -0.0004418591067 | AL49: -0.0004876629017 | AM49: -0.0003401541227 | AN49: -0.0002521716694
B50: Food | C50: 31 | D50: Other food products(Catsup, 24 fl oz, Western Family branch) | E50: I | F50: Food | G50: 0.005711186184 | I50: -0.02912621359 | J50: -0.009708737864 | K50: -0.03333333333 | N50: 0.02061488673 | O50: 0.0001177354563 | R50: 31 | S50: Other food products(Catsup, 24 fl oz, Western Family branch) | T50: 0.006744399304 | U50: 0.008615952207 | V50: 0.01180175824 | W50: 0.007972057582 | X50: 0.009639737137 | Y50: 0.01293843538 | Z50: 0.009999458788 | AA50: 0.011645646 | AB50: 0.00786489749 | AC50: 0.008038839513 | AE50: 0.0001390350277 | AF50: 0.0001776168788 | AG50: 0.0002432919094 | AH50: 0.0001643430641 | AI50: 0.0001987220892 | AJ50: 0.0002667243799 | AK50: 0.0002061377103 | AL50: 0.0002400736731 | AM50: 0.0001621339709 | AN50: 0.000165719766
B51: Food | C51: 32 | D51: Plate lunch | E51: D | F51: Food | G51: 0.003999623834 | I51: -0.02912621359 | J51: -0.009708737864 | N51: 0.0572815534 | O51: 0.0002291046662 | R51: 32 | S51: Plate lunch | T51: 0.01963973355 | U51: 0.00794781598 | V51: 0.01141667385 | W51: 0.0075543887 | X51: 0.01028820749 | Y51: 0.00958172657 | Z51: 0.01165342902 | AA51: 0.01153258923 | AB51: 0.01183214652 | AC51: 0.004391022294 | AE51: 0.001124994446 | AF51: 0.0004552632455 | AG51: 0.0006539648128 | AH51: 0.0004327271197 | AI51: 0.0005893245065 | AJ51: 0.0005488561822 | AK51: 0.0006675265167 | AL51: 0.0006606046261 | AM51: 0.0006777637325 | AN51: 0.000251524578
B52: Food | C52: 33 | D52: Restaurant meals | E52: D | F52: Per_serv | G52: 0.006710716258 | I52: -0.02912621359 | J52: =-$K$4*$S$2*$T$9 -> -0.009708737864 | N52: 0.0572815534 | O52: 0.0003844002517 | R52: 33 | S52: Restaurant meals | T52: 0.1802938067 | U52: 0.1434036278 | V52: 0.148583912 | W52: 0.165412569 | X52: 0.1885722195 | Y52: 0.2047544926 | Z52: 0.1915572988 | AA52: 0.1842373053 | AB52: 0.1972324347 | AC52: 0.2411067253 | AE52: 0.01032750931 | AF52: 0.008214382565 | AG52: 0.008511117288 | AH52: 0.009475088906 | AI52: 0.01080170966 | AJ52: 0.0117286554 | AK52: 0.01097269964 | AL52: 0.01055339904 | AM52: 0.01129778024 | AN52: 0.01381096776
B53: Housing, Utilities and Major Appliances | C53: 34 | D53: Rent | E53: D | F53: Bus_Serv | G53: 0.01426730456 | I53: -0.02912621359 | J53: =-$K$4*$S$2*$T$10 -> -0.004854368932 | N53: 0.06262135922 | O53: 0.0008934380038 | R53: 34 | S53: Rent | T53: 0.002518216633 | U53: 0 | V53: 0 | W53: 0.007384945988 | X53: 0 | Y53: 0.008888589662 | Z53: 0.006947072131 | AA53: 0.03924476278 | AB53: 0.02769335637 | AC53: 0.002102170293 | AE53: 0.0001576941484 | AF53: 0 | AG53: 0 | AH53: 0.0004624553555 | AI53: 0 | AJ53: 0.0005566155662 | AK53: 0.0004350350995 | AL53: 0.002457560388 | AM53: 0.001734195617 | AN53: 0.0001316407611
B54: Alcoholic Beverage | C54: 35 | D54: Beer | E54: I | F54: Food | G54: 0.01676814531 | I54: -0.02912621359 | J54: =-$K$4*$S$2*$T$6 -> -0.009708737864 | N54: =(1+I54+J54)*(1+$K$2)-1 -> 0.0572815534 | O54: 0.0009605054108 | R54: 35 | S54: Beer | T54: 0 | U54: 0.003391577631 | V54: 0.01387254578 | W54: 0.02112980124 | X54: 0.035121952 | Y54: 0.03039283327 | Z54: 0.03751053622 | AA54: 0.02412566046 | AB54: 0.0385671384 | AC54: 0.04330477859 | AE54: 0 | AF54: 0.0001942748352 | AG54: 0.0007946409716 | AH54: 0.001210347838 | AI54: 0.002011839969 | AJ54: 0.001740948702 | AK54: 0.002148661784 | AL54: 0.001381955308 | AM54: 0.002209185598 | AN54: 0.002480564987
B55: Housing, Utilities and Major Appliances | C55: 36 | D55: Kerosene | E55: I | F55: Fuel | G55: 0.01611912069 | I55: -0.02912621359 | J55: =-$K$4*$S$2*$T$7 -> -0.006472491909 | N55: =(1+I55+J55)*(1+$K$2)-1 -> 0.06084142395 | O55: 0.0009807102553 | R55: 36 | S55: Kerosene | T55: 0 | U55: 0.004202948895 | V55: 0.0006457238803 | W55: 0.001184144649 | X55: 0.00151047916 | Y55: 7.849389905e-05 | Z55: 0.002820991496 | AA55: 0.0001251474536 | AB55: 0.0002387835752 | AC55: 0.0003213694939 | AE55: 0 | AF55: 0.0002557133956 | AG55: 3.928676035e-05 | AH55: 7.204504662e-05 | AI55: 9.189970297e-05 | AJ55: 4.775680589e-06 | AK55: 0.0001716331395 | AL55: 7.614149281e-06 | AM55: 1.452793273e-05 | AN55: 1.955257762e-05
B56: Housing, Utilities and Major Appliances | C56: 37 | D56: Water (piped to housing unit) | E56: D | F56: Bus_Serv | G56: 0.01870044394 | I56: -0.02912621359 | J56: =-$K$4*$S$2*$T$10 -> -0.004854368932 | N56: 0.06262135922 | O56: 0.001171047218 | R56: 37 | S56: Water (piped to housing unit) | T56: 0 | U56: 0.0008556958358 | V56: 0.003752254833 | W56: 0.0005411905844 | X56: 0.003174535233 | Y56: 0.001840125466 | Z56: 0.004822662923 | AA56: 0.007116431931 | AB56: 0.003102087128 | AC56: 0.00566088424 | AE56: 0 | AF56: 5.358483632e-05 | AG56: 0.0002349712978 | AH56: 3.389008999e-05 | AI56: 0.0001987937112 | AJ56: 0.0001152311578 | AK56: 0.0003020017073 | AL56: 0.0004456406404 | AM56: 0.0001942569124 | AN56: 0.0003544922655
B57: Housing, Utilities and Major Appliances | C57: 38 | D57: Electricity (Residential meter) | E57: D | F57: Bus_serv | G57: 0.0862846421 | I57: -0.02912621359 | J57: =-$K$4*$S$2*$T$10 -> -0.004854368932 | N57: 0.06262135922 | O57: 0.005403261568 | R57: 38 | S57: Electricity (Residential meter) | T57: 0.01533604472 | U57: 0.04722607442 | V57: 0.06684929967 | W57: 0.06919424921 | X57: 0.1059630254 | Y57: 0.1012082108 | Z57: 0.1066290601 | AA57: 0.09744554449 | AB57: 0.1045714124 | AC57: 0.07449999113 | AE57: 0.0009603639656 | AF57: 0.002957360971 | AG57: 0.004186194009 | AH57: 0.004333037936 | AI57: 0.006635548678 | AJ57: 0.006337795727 | AK57: 0.006677256675 | AL57: 0.006102172446 | AM57: 0.006548403982 | AN57: 0.004665290707
B58: Housing, Utilities and Major Appliances | C58: 39 | D58: Refrigerator | E58: I | F58: Goods | G58: 0.006306033577 | H58: =IF('Dash-1'!$I$45="Yes",-0.06,0) -> -0.06 | I58: -0.02912621359 | J58: =-$K$4*$S$2*$T$6 -> -0.009708737864 | K58: =-$O$2*(1-$S$2) -> -0.05333333333 | N58: -0.06738511327 | O58: -0.0004249327868 | R58: 39 | S58: Refrigerator | T58: 0.00256831806 | U58: 0.00256831806 | V58: 0.00256831806 | W58: 0.00256831806 | X58: 0.00256831806 | Y58: 0.00256831806 | Z58: 0.00256831806 | AA58: 0.00256831806 | AB58: 0.00256831806 | AC58: 0.00256831806 | AE58: -0.0001730664034 | AF58: -0.0001730664034 | AG58: -0.0001730664034 | AH58: -0.0001730664034 | AI58: -0.0001730664034 | AJ58: -0.0001730664034 | AK58: -0.0001730664034 | AL58: -0.0001730664034 | AM58: -0.0001730664034 | AN58: -0.0001730664034
B59: Housing, Utilities and Major Appliances | C59: 40 | D59: Freezer | E59: I | F59: Goods | G59: 0.006028897003 | H59: =IF('Dash-1'!$I$45="Yes",-0.06,0) -> -0.06 | I59: -0.02912621359 | J59: -0.009708737864 | K59: =-$O$2*(1-$S$2) -> -0.05333333333 | N59: -0.06738511327 | O59: -0.0004062579074 | R59: 40 | S59: Freezer | T59: 0.002455446021 | U59: 0.0001419110694 | V59: 0.0008089080521 | W59: 0.001340351213 | X59: 0.000880370923 | Y59: 0.001630401344 | Z59: -9.344353351e-05 | AA59: 0.00118715593 | AB59: 0.0005805036316 | AC59: -0.0002878315227 | AE59: -0.0001654605083 | AF59: -9.562693486e-06 | AG59: -5.450836072e-05 | AH59: -9.031971834e-05 | AI59: -5.932389436e-05 | AJ59: -0.0001098647792 | AK59: 6.29670309e-06 | AL59: -7.999663684e-05 | AM59: -3.911730297e-05 | AN59: 1.939555976e-05
B60: Housing, Utilities and Major Appliances | C60: 41 | D60: Washing machine | E60: I | F60: Goods | G60: 0.007297711901 | H60: =IF('Dash-1'!$I$45="Yes",-0.06,0) -> -0.06 | I60: -0.02912621359 | J60: -0.009708737864 | K60: -0.05333333333 | N60: -0.06738511327 | O60: -0.0004917571431 | R60: 41 | S60: Washing machine | T60: 0.002023880866 | U60: 0.001379647079 | V60: 0.001184278932 | W60: 0.0009472627293 | X60: 0.001253802777 | Y60: 0.00134875412 | Z60: 0.0008852609278 | AA60: 0.001648111735 | AB60: 0.001036098897 | AC60: 0.001000992151 | AE60: -0.0001363794414 | AF60: -9.296767467e-05 | AG60: -7.980276997e-05 | AH60: -6.383140631e-05 | AI60: -8.448764217e-05 | AJ60: -9.088594913e-05 | AK60: -5.965340789e-05 | AL60: -0.000111058196 | AM60: -6.98176415e-05 | AN60: -6.745196947e-05
B61: Housing, Utilities and Major Appliances | C61: 42 | D61: Air conditioner | E61: I | F61: Goods | G61: 0.01111330733 | H61: =IF('Dash-1'!$I$45="Yes",-0.06,0) -> -0.06 | I61: -0.02912621359 | J61: -0.009708737864 | K61: -0.05333333333 | N61: -0.06738511327 | O61: -0.0007488714734 | R61: 42 | S61: Air conditioner | T61: 0.002916832946 | U61: 0.00162248715 | V61: 0.001912241244 | W61: 0.001870728161 | X61: 0.00323465236 | Y61: 0.00325172308 | Z61: 0.002943122871 | AA61: 0.003801181691 | AB61: 0.004249667945 | AC61: 0.003671158979 | AE61: -0.0001965511184 | AF61: -0.0001093314804 | AG61: -0.0001288565928 | AH61: -0.000126059229 | AI61: -0.0002179674157 | AJ61: -0.0002191177281 | AK61: -0.000198322668 | AL61: -0.0002561430588 | AM61: -0.0002863643558 | AN61: -0.0002473814636
B62: Housing, Utilities and Major Appliances | C62: 43 | D62: Fishing Gear | E62: I | F62: Goods | G62: 0.004616080453 | H62: =IF('Dash-1'!$I$45="Yes",-0.06,0) -> -0.06 | I62: -0.02912621359 | J62: -0.009708737864 | K62: -0.05333333333 | N62: -0.06738511327 | O62: -0.0003110551042 | R62: 43 | S62: Fishing Gear | T62: 0.0009094187345 | U62: 0.0001798361752 | V62: 4.821562387e-05 | W62: 0.0003290047852 | X62: 0 | Y62: 1.79882024e-05 | Z62: 0 | AA62: 6.647956722e-05 | AB62: 0.0001566888451 | AC62: 0.0003534944491 | AE62: -6.128128443e-05 | AF62: -1.211828104e-05 | AG62: -3.249015276e-06 | AH62: -2.217002472e-05 | AI62: 0 | AJ62: -1.212137056e-06 | AK62: 0 | AL62: -4.479733167e-06 | AM62: -1.055849557e-05 | AN62: -2.382026349e-05
B63: Apparel | C63: 44 | D63: Other men's and boys' clothing | E63: I | F63: Goods | G63: 0.009425352735 | H63: =IF('Dash-1'!$I$45="Yes",-0.06,0) -> -0.06 | I63: -0.02912621359 | J63: -0.009708737864 | K63: -0.05333333333 | N63: -0.06738511327 | O63: -0.0006351284616 | R63: 44 | S63: Other men's and boys' clothing | T63: 0.001593794889 | U63: 0.002295674481 | V63: 0.00308773888 | W63: 0.002674550036 | X63: 0.003164700967 | Y63: 0.00268456438 | Z63: 0.002192966712 | AA63: 0.001786144387 | AB63: 0.003430098954 | AC63: 0.002314568313 | AE63: -0.0001073980491 | AF63: -0.0001546942849 | AG63: -0.0002080676342 | AH63: -0.0001802248571 | AI63: -0.0002132537331 | AJ63: -0.0001808996748 | AK63: -0.0001477733103 | AL63: -0.0001203595418 | AM63: -0.0002311376066 | AN63: -0.000155967448
B64: Apparel | C64: 45 | D64: Shirts (men's or women's) | E64: I | F64: Goods | G64: 0.005465841126 | H64: =IF('Dash-1'!$I$45="Yes",-0.06,0) -> -0.06 | I64: -0.02912621359 | J64: -0.009708737864 | K64: -0.05333333333 | N64: -0.06738511327 | O64: -0.0003683163234 | R64: 45 | S64: Shirts (men's or women's) | T64: 0.01693160977 | U64: 0.01636400811 | V64: 0.01343901053 | W64: 0.008979668646 | X64: 0.01386900066 | Y64: 0.01338141398 | Z64: 0.013435641 | AA64: 0.01032529972 | AB64: 0.01210015329 | AC64: 0.01477614073 | AE64: -0.001140938442 | AF64: -0.00110269054 | AG64: -0.0009055892466 | AH64: -0.0006050959889 | AI64: -0.0009345641805 | AJ64: -0.0009017080969 | AK64: -0.0009053621907 | AL64: -0.0006957714915 | AM64: -0.0008153702003 | AN64: -0.0009956919169
B65: Apparel | C65: 46 | D65: Other women's and girls' clothing | E65: I | F65: Goods | G65: 0.005409780666 | H65: =IF('Dash-1'!$I$45="Yes",-0.06,0) -> -0.06 | I65: -0.02912621359 | J65: -0.009708737864 | K65: -0.05333333333 | N65: -0.06738511327 | O65: -0.000364538683 | R65: 46 | S65: Other women's and girls' clothing | T65: 0.01675795053 | U65: 0.01619617048 | V65: 0.01330117317 | W65: 0.008887568576 | X65: 0.0137267531 | Y65: 0.01324416736 | Z65: 0.0132978382 | AA65: 0.01021939817 | AB65: 0.01197604794 | AC65: 0.01462458908 | AE65: -0.001129236395 | AF65: -0.001091380782 | AG65: -0.0008963010605 | AH65: -0.0005988898152 | AI65: -0.0009249788127 | AJ65: -0.0008924597179 | AK65: -0.0008960763334 | AL65: -0.0006886353035 | AM65: -0.0008070073469 | AN65: -0.0009854795918
B66: Apparel | C66: 47 | D66: Sandals | E66: I | F66: Goods | G66: 0.005217972274 | H66: =IF('Dash-1'!$I$45="Yes",-0.06,0) -> -0.06 | I66: -0.02912621359 | J66: -0.009708737864 | K66: -0.05333333333 | N66: -0.06738511327 | O66: -0.0003516136527 | R66: 47 | S66: Sandals | T66: 0.002989077307 | U66: 0.003174076907 | V66: 0.00339973784 | W66: 0.003085023705 | X66: 0.004003871308 | Y66: 0.003205286221 | Z66: 0.004179749195 | AA66: 0.004087336377 | AB66: 0.004599531098 | AC66: 0.005092148856 | AE66: -0.0002014193129 | AF66: -0.0002138855319 | AG66: -0.0002290917194 | AH66: -0.0002078846718 | AI66: -0.0002698013216 | AJ66: -0.0002159885751 | AK66: -0.0002816528729 | AL66: -0.0002754256247 | AM66: -0.000309939924 | AN66: -0.0003431350275
B67: Apparel | C67: 48 | D67: Zorries | E67: I | F67: Goods | G67: 0.005591171694 | H67: =IF('Dash-1'!$I$45="Yes",-0.06,0) -> -0.06 | I67: -0.02912621359 | J67: -0.009708737864 | K67: -0.05333333333 | N67: -0.06738511327 | O67: -0.0003767617379 | R67: 48 | S67: Zorries | T67: 0.006402012386 | U67: 0.005909508975 | V67: 0.004912232855 | W67: 0.003889853044 | X67: 0.005809517845 | Y67: 0.005653703901 | Z67: 0.00518649198 | AA67: 0.003844312751 | AB67: 0.003647583351 | AC67: 0.004151302173 | AE67: -0.0004314003298 | AF67: -0.0003982129317 | AG67: -0.0003310113674 | AH67: -0.000262118188 | AI67: -0.000391475018 | AJ67: -0.0003809754778 | AK67: -0.0003494923495 | AL67: -0.0002590494502 | AM67: -0.0002457928173 | AN67: -0.0002797359671
B68: Apparel | C68: 49 | D68: Diapers (disposable) | E68: I | F68: Goods | G68: 0.0121738188 | H68: =IF('Dash-1'!$I$45="Yes",-0.06,0) -> -0.06 | I68: -0.02912621359 | J68: -0.009708737864 | K68: -0.05333333333 | N68: -0.06738511327 | O68: -0.0008203341587 | R68: 49 | S68: Diapers (disposable) | T68: 0.005278796317 | U68: 0.01263248802 | V68: 0.01826911805 | W68: 0.02189360121 | X68: 0.01972789168 | Y68: 0.01594958525 | Z68: 0.01738517242 | AA68: 0.0148770307 | AB68: 0.0189010119 | AC68: 0.02354025013 | AE68: -0.0003557122877 | AF68: -0.0008512416363 | AG68: -0.001231066589 | AH68: -0.001475302798 | AI68: -0.001329366215 | AJ68: -0.001074764609 | AK68: -0.001171501813 | AL68: -0.001002490399 | AM68: -0.001273646828 | AN68: -0.001586262421
B69: Transportation | C69: 50 | D69: Gasoline (for car, truck or boat) | E69: I | F69: Fuel | G69: 0.03778013291 | I69: -0.02912621359 | J69: =-$K$4*$S$2*$T$7 -> -0.006472491909 | N69: 0.06084142395 | O69: 0.002298597083 | R69: 50 | S69: Gasoline (for car, truck or boat) | T69: 0.006003431475 | U69: 0.003650837574 | V69: 0.002438819695 | W69: 0.004951501669 | X69: 0.009471715278 | Y69: 0.01167374613 | Z69: 0.0149722407 | AA69: 0.01780260302 | AB69: 0.02146328014 | AC69: 0.02590294794 | AE69: 0.0003652573195 | AF69: 0.0002221221566 | AG69: 0.000148381263 | AH69: 0.0003012564122 | AI69: 0.0005762726447 | AJ69: 0.0007102473375 | AK69: 0.0009109324437 | AL69: 0.001083135717 | AM69: 0.001305856527 | AN69: 0.001575972237
B70: Transportation | C70: 51 | D70: Off-island travel expenditures (airfares) | E70: D | F70: Exempt | G70: 0.09954447863 | N70: 0 | O70: 0 | R70: 51 | S70: Off-island travel expenditures (airfares) | T70: 0.02889563734 | U70: 0.03280855913 | V70: 0.02757818234 | W70: 0.03076280849 | X70: 0.01317712077 | Y70: 0.013366106 | Z70: 0.02361777577 | AA70: 0.02132366424 | AB70: 0.02907185714 | AC70: 0.07358764328 | AE70: 0 | AF70: 0 | AG70: 0 | AH70: 0 | AI70: 0 | AJ70: 0 | AK70: 0 | AL70: 0 | AM70: 0 | AN70: 0
B71: Medical Care | C71: 52 | D71: Hospital visits | E71: D | F71: Exempt | G71: 0.01600399433 | N71: 0 | O71: 0 | R71: 52 | S71: Hospital visits | T71: 0.003051169862 | U71: 0.006376944181 | V71: 0.004397885298 | W71: 0.003862501667 | X71: 0.00347203708 | Y71: 0.004165583428 | Z71: 0.002749837298 | AA71: 0.003400641451 | AB71: 0.004564770245 | AC71: 0.002856162997 | AE71: 0 | AF71: 0 | AG71: 0 | AH71: 0 | AI71: 0 | AJ71: 0 | AK71: 0 | AL71: 0 | AM71: 0 | AN71: 0
B72: Medical Care | C72: 53 | D72: Health insurance | E72: D | F72: Bus_Serv | G72: 0.006247110777 | I72: -0.02912621359 | J72: =-$K$4*$S$2*$T$10 -> -0.004854368932 | N72: 0.06262135922 | O72: 0.0003912025681 | R72: 53 | S72: Health insurance | T72: 1.890275927e-05 | U72: 0 | V72: 0.001330463145 | W72: 0 | X72: 0 | Y72: 0 | Z72: 3.43330566e-05 | AA72: 0 | AB72: 3.592828847e-05 | AC72: 0 | AE72: 1.183716479e-06 | AF72: 0 | AG72: 8.331541052e-05 | AH72: 0 | AI72: 0 | AJ72: 0 | AK72: 2.149982671e-06 | AL72: 0 | AM72: 2.249878258e-06 | AN72: 0
B73: Recreation | C73: 54 | D73: Television | E73: I | F73: Goods | G73: 0.008897945704 | H73: =IF('Dash-1'!$I$45="Yes",-0.06,0) -> -0.06 | I73: -0.02912621359 | J73: =-$K$4*$S$2*$T$6 -> -0.009708737864 | K73: =-$O$2*(1-$S$2) -> -0.05333333333 | N73: -0.06738511327 | O73: -0.0005995890792 | R73: 54 | S73: Television | T73: 0.001203645314 | U73: 0.0008854789867 | V73: 0.00102772132 | W73: 0.001430466794 | X73: 0.001680611105 | Y73: 0.001812895449 | Z73: 0.001687128543 | AA73: 0.002457464777 | AB73: 0.001790088451 | AC73: 0.001625362207 | AE73: -8.110777584e-05 | AF73: -5.966810181e-05 | AG73: -6.925311757e-05 | AH73: -9.639216692e-05 | AI73: -0.0001132481697 | AJ73: -0.0001221621652 | AK73: -0.000113687348 | AL73: -0.0001655965424 | AM73: -0.000120625313 | AN73: -0.0001095252164
B74: Recreation | C74: 55 | D74: Video player | E74: I | F74: Goods | G74: 0.002761698607 | H74: =IF('Dash-1'!$I$45="Yes",-0.06,0) -> -0.06 | I74: -0.02912621359 | J74: =-$K$4*$S$2*$T$6 -> -0.009708737864 | K74: -0.05333333333 | N74: -0.06738511327 | O74: -0.0001860973734 | R74: 55 | S74: Video player | T74: 9.596529746e-05 | U74: 7.020446242e-05 | V74: 5.741611891e-05 | W74: 2.929949487e-05 | X74: 1.376791839e-05 | Y74: 3.279825401e-05 | Z74: 1.738548354e-05 | AA74: 3.552755186e-05 | AB74: 2.413102011e-05 | AC74: 2.746129798e-05 | AE74: -6.466632439e-06 | AF74: -4.730735652e-06 | AG74: -3.868991676e-06 | AH74: -1.974349781e-06 | AI74: -9.2775274e-07 | AJ74: -2.210114062e-06 | AK74: -1.171522777e-06 | AL74: -2.394028106e-06 | AM74: -1.626071524e-06 | AN74: -1.850482675e-06
B75: Recreation | C75: 56 | D75: Radio | E75: I | F75: Goods | G75: 0.003612776512 | H75: =IF('Dash-1'!$I$45="Yes",-0.06,0) -> -0.06 | I75: -0.02912621359 | J75: =-$K$4*$S$2*$T$6 -> -0.009708737864 | K75: -0.05333333333 | N75: -0.06738511327 | O75: -0.0002434473545 | R75: 56 | S75: Radio | T75: 0.0005669411582 | U75: 0.0003626937507 | V75: 0.0006502510079 | W75: 0.0002484148522 | X75: 0.0002567456497 | Y75: 0.0002701634955 | Z75: 0.0001468662934 | AA75: 0.0002527188048 | AB75: 0.0001949325887 | AC75: 0.0001686297489 | AE75: -3.820339416e-05 | AF75: -2.444015948e-05 | AG75: -4.381723782e-05 | AH75: -1.673946296e-05 | AI75: -1.730083469e-05 | AJ75: -1.820499775e-05 | AK75: -9.896601814e-06 | AL75: -1.702948529e-05 | AM75: -1.313555457e-05 | AN75: -1.136313473e-05
B76: Recreation | C76: 57 | D76: Video rentals | E76: D | F76: Bus_Serv | G76: 0.007946054957 | I76: -0.02912621359 | J76: =-$K$4*$S$2*$T$10 -> -0.004854368932 | N76: 0.06262135922 | O76: 0.0004975927619 | R76: 57 | S76: Video rentals | T76: 0.0002761146802 | U76: 0.0002019947127 | V76: 0.0001651996475 | W76: 8.430152223e-05 | X76: 3.961353201e-05 | Y76: 9.43682733e-05 | Z76: 5.002211585e-05 | AA76: 0.0001022211037 | AB76: 6.94306075e-05 | AC76: 7.901259842e-05 | AE76: 1.729067658e-05 | AF76: 1.264918346e-05 | AG76: 1.034502647e-05 | AH76: 5.279075907e-06 | AI76: 2.480653218e-06 | AJ76: 5.909469542e-06 | AK76: 3.132452886e-06 | AL76: 6.401224452e-06 | AM76: 4.347839013e-06 | AN76: 4.947876309e-06
B77: Education and Comm. | C77: 58 | D77: Tuition | E77: D | F77: Exempt | G77: 0.05397827752 | N77: 0 | O77: 0 | R77: 58 | S77: Tuition | T77: 0.0002326407984 | U77: 0.001906763375 | V77: 0.008274709564 | W77: 0.01039126318 | X77: 0.01083843655 | Y77: 0.02018293946 | Z77: 0.01573796252 | AA77: 0.02116548903 | AB77: 0.01840727844 | AC77: 0.02701559085 | AE77: 0 | AF77: 0 | AG77: 0 | AH77: 0 | AI77: 0 | AJ77: 0 | AK77: 0 | AL77: 0 | AM77: 0 | AN77: 0
B78: Education and Comm. | C78: 59 | D78: Telephone | E78: D | F78: Bus_Serv | G78: 0.01157634069 | I78: -0.02912621359 | J78: =-$K$4*$S$2*$T$10 -> -0.004854368932 | N78: 0.06262135922 | O78: 0.0007249261888 | R78: 59 | S78: Telephone | T78: 0.02248583103 | U78: 0.02352531983 | V78: 0.03532360885 | W78: 0.02732125379 | X78: 0.03951423984 | Y78: 0.04137789228 | Z78: 0.03870748261 | AA78: 0.0368937853 | AB78: 0.04830704137 | AC78: 0.04977289147 | AE78: 0.001408093303 | AF78: 0.001473187504 | AG78: 0.002212012399 | AH78: 0.001710894048 | AI78: 0.002474435408 | AJ78: 0.002591139856 | AK78: 0.002423915173 | AL78: 0.002310338982 | AM78: 0.00302505259 | AN78: 0.003116846116
B79: Other Goods and Services | C79: 60 | D79: Cigarettes | E79: I | F79: Goods | G79: 0.116009199 | I79: -0.02912621359 | J79: =-$K$4*$S$2*$T$6 -> -0.009708737864 | N79: 0.0572815534 | O79: 0.006645187126 | R79: 60 | S79: Cigarettes | T79: 0.05689761949 | U79: 0.05078774603 | V79: 0.04380573469 | W79: 0.04136305587 | X79: 0.03569887489 | Y79: 0.03075525461 | Z79: 0.0271277877 | AA79: 0.02742503589 | AB79: 0.03075750277 | AC79: 0.03681120929 | AE79: 0.003259184029 | AF79: 0.002909200986 | AG79: 0.002509260531 | AH79: 0.002369340094 | AI79: 0.002044887008 | AJ79: 0.001761708759 | AK79: 0.00155392182 | AL79: 0.001570948658 | AM79: 0.001761837537 | AN79: 0.00210860325
B80: Other Goods and Services | C80: 61 | D80: Toilet paper | E80: I | F80: Goods | G80: 0.04572022743 | H80: =IF('Dash-1'!$I$45="Yes",-0.06,0) -> -0.06 | I80: -0.02912621359 | J80: =-$K$4*$S$2*$T$6 -> -0.009708737864 | K80: =-$O$2*(1-$S$2) -> -0.05333333333 | N80: -0.06738511327 | O80: -0.003080862704 | R80: 61 | S80: Toilet paper | T80: 0.0134797843 | U80: 0.009155476922 | V80: 0.01069550074 | W80: 0.01156312491 | X80: 0.0138627345 | Y80: 0.01322218038 | Z80: 0.0159260778 | AA80: 0.01689237351 | AB80: 0.01658536618 | AC80: 0.01185276157 | AE80: -0.0009083367921 | AF80: -0.0006169428494 | AG80: -0.000720717529 | AH80: -0.0007791824818 | AI80: -0.0009341419343 | AJ80: -0.0008909781229 | AK80: -0.001073180556 | AL80: -0.001138294503 | AM80: -0.001117606778 | AN80: -0.0007986996808
T82: =SUM(T20:T80) -> 1 | U82: =SUM(U20:U80) -> 1 | V82: 1 | W82: 1 | X82: 1 | Y82: 1 | Z82: 1 | AA82: 1 | AB82: 1 | AC82: 1 | AE82: -0.01247723616 | AF82: -0.01381122204 | AG82: -0.009151386978 | AH82: -0.006954672155 | AI82: 0.000322254468 | AJ82: 0.002399348676 | AK82: 0.002652651063 | AL82: 0.003485208462 | AM82: 0.007217567766 | AN82: 0.009079848296

Sheet Data
A1: Expenditure on GDP | B1: FY17 | C1: FY18 | D1: FY19 | E1: FY20 | F1: FY21 | G1: FY22 | H1: FY23 | I1: FY24 | J1: FY25 | K1: Notes
A3: Final Consumption Expenditure | B3: =B9/B47 -> 0.6210705803 | C3: =C9/C47 -> 0.6139732877 | D3: 0.6197834589 | E3: 0.5782325963 | F3: 0.5429497952 | G3: 0.593854229
A4: Government Final Consumption Expenditure (GFCE) | B4: 119.1389847 | C4: 131.8689728 | D4: 153.7958069 | E4: 147.9723816 | F4: 156.0260468 | G4: 148.5988007 | H4: 113.0019062 | I4: 112.2781518 | J4: 114.5426052
A5: Compensation of Employees | B5: 66.75689793 | C5: 69.79791451 | D5: 73.16765213 | E5: 75.23176527 | F5: 80.22877169 | G5: 82.64885712 | H5: 0 | I5: 0 | J5: 0
A6: Purchases of goods and services | B6: =B4-B5-B7 -> 43.54926614 | C6: =C4-C5-C7 -> 52.22759418 | D6: 68.59754615 | E6: 60.68979292 | F6: 63.46538834 | G6: 52.94126515
A7: less sales | B7: 8.832820609 | C7: 9.843464091 | D7: 12.03060861 | E7: 12.05082341 | F7: 12.33188672 | G7: 13.00867839
A8: Household Final Consumption Expenditure (HFCE) | B8: =SUM(B9:B11) -> 157.3970728 | C8: =SUM(C9:C11) -> 160.5208931 | D8: 169.9309206 | E8: 164.5059977 | F8: 165.4511471 | G8: 179.5540552 | H8: 152.9974465 | I8: 149.824235 | J8: 153.2777935
A9: Households' acquisition | B9: 132.2481079 | C9: 134.7241821 | D9: 143.7877197 | E9: 139.2101593 | F9: 139.9642487 | G9: 153.6743164 | H9: 130.609639 | I9: 127.5549107 | J9: 131.0339526
A10: Dwellings | B10: 13.96902752 | C10: 14.62896538 | D10: 15.03849697 | E10: 14.26768208 | F10: 14.27592945 | G10: 14.36909676 | H10: 12.25513974 | I10: 12.02490751 | J10: 11.82159125
A11: Other (non-market on production) | B11: 11.17993736 | C11: 11.16774559 | D11: 11.1047039 | E11: 11.02815628 | F11: 11.21096897 | G11: 11.51064205 | H11: 10.13266775 | I11: 10.24441679 | J11: 10.42224964
A12: NGOs | B12: 4.798562527 | C12: 5.263937473 | D12: 5.340916157 | E12: 5.580864906 | F12: 5.50571537 | G12: 5.929604053 | H12: 4.02588073 | I12: 4.1126858 | J12: 4.212684317
A14: Investment and inventories | B14: 48.13791656 | C14: 45.42362976 | D14: 115.8627167 | E14: 48.23237991 | F14: 50.29911804 | G14: 51.33857346 | H14: 51.25797626 | I14: 50.80994021 | J14: 52.12581236
A15: Construction: Other | B15: 9.926758766 | C15: 9.068655968 | D15: 19.18976784 | E15: 10.5250864 | F15: 8.298347473 | G15: 11.43921089 | H15: 9.448811452 | I15: 5.732297231 | J15: 6.20807485
A16: Construction: REPMAR | B16: 6.049285889 | C16: 5.879881382 | D16: 1.69142437 | E16: 6.768885136 | F16: 9.831206322 | G16: 7.589000225 | H16: 2.63438326 | I16: 5.341325014 | J16: 5.799961596
A17: Equipment: other | B17: 29.09185982 | C17: 26.44423294 | D17: 28.56322098 | E17: 24.86843681 | F17: 25.35725403 | G17: 26.94236374 | H17: 9.572177908 | I17: 9.649822651 | J17: 9.722974918
A18: Equipment: REPMAR | B18: 3.0700109 | C18: 2.130860567 | D18: 1.393303156 | E18: 5.069969654 | F18: 5.812309265 | G18: 5.368000031 | H18: 29.60260364 | I18: 30.08649532 | J18: 30.394801
A19: Ships, Aircraft | B19: 0 | C19: 1.899999976 | D19: 65.02500153 | E19: 1 | F19: 1 | G19: 0 | H19: 0 | I19: 0 | J19: 0
A20: Changes in inventories | B20: -0.6894675493 | C20: 3.566958189 | D20: 6.814033508 | E20: 0.5409566164 | F20: -0.9003640413 | G20: 0.6720403433
A22: Exports of goods and services | B22: 83.58433533 | C22: 87.39661407 | D22: 86.31745148 | E22: 85.81112671 | F22: 120.6340408 | G22: 119.7417145 | H22: 97.35899594 | I22: 107.9958581 | J22: 116.4094612
A23: Re-Exports - Goods | B23: 13.07143688 | C23: 17.31560516 | D23: 13.54255295 | E23: 7.575279713 | F23: 13.20856667 | G23: 20.20346451 | H23: 9.654056916 | I23: 9.666133157 | J23: 9.922577513
A24: Exports - Goods, Offshore Fish | B24: 35.90534592 | C24: 35.40793991 | D24: 39.87334442 | E24: 53.44438934 | F24: 82.89298248 | G24: 71.09102631 | H24: 58.24312389 | I24: 65.25061344 | J24: 72.56415838
A25: Exports - Goods, Other | B25: 7.456418037 | C25: 6.037930012 | D25: 5.137625217 | E25: 4.994270802 | F25: 7.296235561 | G25: 8.481425285 | H25: 2.674582913 | I25: 3.198090333 | J25: 3.232173826
A26: Exports: Services | B26: 11.22448635 | C26: 11.37960815 | D26: 10.6052227 | E26: 7.793071747 | F26: 7.110105991 | G26: 7.510590553 | H26: 9.566744823 | I26: 10.22502378 | J26: 10.49100502
A27: Exports: Tourism (Goods & Services) | B27: 6.024318218 | C27: 7.21403265 | D27: 7.21403265 | E27: 2.06115222 | F27: 0 | G27: 2.06115222 | H27: 6.645238876 | I27: 8.340743608 | J27: 8.575329623
A28: Exports: Fishing boat provisions (Goods & Services) | B28: 8.346648216 | C28: 8.4582901 | D28: 8.333445549 | E28: 8.303230286 | F28: 8.457397461 | G28: 8.6957798 | H28: 9.153447443 | I28: 9.854359518 | J28: 10.15102024
A29: Exports (embassies) | B29: 1.555678368 | C29: 1.583207011 | D29: 1.611222744 | E29: 1.639734268 | F29: 1.668750286 | G29: 1.698279858 | H29: 1.421801074 | I29: 1.460894267 | J29: 1.473196649
A31: less Imports | B31: 183.8423309 | C31: 195.2628021 | D31: 270.0257568 | E31: 174.9036713 | F31: 183.6749725 | G31: 190.6400757 | H31: 163.2782552 | I31: 165.6695431 | J31: 171.3423074
A32: Food, beverages, tobacco | B32: 48.90002441 | C32: 48.86218262 | D32: 54.72031784 | E32: 55.04825974 | F32: 56.89505386 | G32: 59.90823746 | H32: 56.37849004 | I32: 58.25606008 | J32: 59.52720063
A33: Fuel (landed) | B33: 27.294384 | C33: 41.43834686 | D33: 42.56388855 | E33: 25.90398026 | F33: 24.08084488 | G33: 29.67877769 | H33: 20.16037153 | I33: 19.86929679 | J33: 20.36408712
A34: Fishing Boats, Aircraft | B34: 0 | C34: 1.899999976 | D34: 65.02500153 | E34: 1 | F34: 1 | G34: 0 | H34: 0 | I34: 0 | J34: 0
A35: Fishing Boat, provisions at sea | B35: 8.866399765 | C35: 6.946711063 | D35: 8.76943779 | E35: 11.63651657 | F35: 24.64391327 | G35: 11.46241951 | H35: 9.597787857 | I35: 10.55756664 | J35: 11.51734543
A36: Other goods | B36: 50.68481827 | C36: 51.06384659 | D36: 55.06192398 | E36: 54.47001648 | F36: 55.98758316 | G36: 59.20892334 | H36: 52.64331207 | I36: 51.69323417 | J36: 53.30233193
A37: Construction | B37: 0 | C37: 0 | D37: 0 | E37: 0 | F37: 0 | G37: 0 | H37: 0 | I37: 0 | J37: 0
A38: Airlines, travel, medical | B38: 28.75175667 | C38: 29.55046463 | D38: 29.86128807 | E38: 12.81252098 | F38: 6.628833294 | G38: 15.63795471 | H38: 13.40285292 | I38: 13.83369393 | J38: 14.3669769
A39: Other services | B39: 19.34494972 | C39: 15.50126076 | D39: 14.02391338 | E39: 14.0323801 | F39: 14.43874359 | G39: 14.74376869 | H39: 11.09544075 | I39: 11.45969151 | J39: 12.26436538
A42: Operating Surplus, Private Sector | B42: 43.71624374 | C42: 43.68755341 | D42: 47.46734238 | E42: 49.40254974 | F42: 62.60290146 | G42: 56.3847084
A43: Operating Surplus, Financial Sector | B43: 7.79469347 | C43: 9.334131241 | D43: 9.378958702 | E43: 7.29325676 | F43: 6.389918327 | G43: 6.577412605
A46: GDP (KP) | B46: 194.1396332 | C46: 205.1264038 | D46: 226.3730469 | E46: 219.9305115 | F46: 222.3768005 | G46: 220.874588
A47: GDP (CP) | B47: 212.9357147 | C47: 219.4300385 | D47: 231.9967041 | E47: 240.7511444 | F47: 257.7848816 | G47: 258.7744751
A49: Existing tax collections
A50: GRT (excluding Hotel GRT) | B50: 5.595945835 | C50: 7.096228123 | D50: 7.576025963 | E50: 6.894680977 | F50: 7.418214798 | G50: 7.962999821
A51: Resident | B51: 5.205945969 | C51: 6.782227993 | D51: 7.269025803 | E51: 6.366681099 | F51: 6.67421484 | G51: 7.065000057
A52: Non-resident | B52: 0.3899999857 | C52: 0.3140000105 | D52: 0.3070000112 | E52: 0.5279999971 | F52: 0.7440000176 | G52: 0.8980000019
A53: Hotel GRT | B53: 0.09399999678 | C53: 0.1059999987 | D53: 0.1199999973 | E53: -0.03099999949 | F53: 0.006000000052 | G53: 0.08299999684
A54: Total Resident GRT (excluding non-resident GRT) | B54: =B51+B53 -> 5.299945965 | C54: =C51+C53 -> 6.888227992 | D54: 7.3890258 | E54: 6.335681099 | F54: 6.68021484 | G54: 7.148000054 | H54: =H51+H53+H52 -> 0 | I54: 0 | J54: 0
A55: Imports | B55: =SUM(B56:B60) -> 8.465757132 | C55: =SUM(C56:C60) -> 8.390719891 | D55: 9.360656142 | E55: 9.265953958 | F55: 9.808018148 | G55: 10.10499984
A56: General imports | B56: =$A$70*SUM(B66:B68)-B57 -> 2.105383368 | C56: =$A$70*SUM(C66:C68)-C57 -> 2.017461469 | D56: 2.249170939 | E56: 2.239752541 | F56: 2.402525502 | G56: 2.374473247
A57: Food | B57: =(B79) -> 2.206630562 | C57: =(C79) -> 2.256332415 | D57: 2.518657744 | E57: 2.479839802 | F57: 2.59316599 | G57: 2.772485187
A58: Alcohol and Tobacco | B58: =B67 -> 1.33099997 | C58: =C67 -> 1.230999947 | D58: 1.524999976 | E58: 1.620000005 | F58: 1.690999985 | G58: 1.465000033
A59: Other Excises | B59: =SUM(B66:B68)-SUM(B56:B58,B60) -> 2.210041219 | C59: =SUM(C66:C68)-SUM(C56:C58,C60) -> 2.27672606 | D59: 2.544266482 | E59: 2.479807605 | F59: 2.532713697 | G59: 2.902041352
A60: Fuel | B60: =B68 -> 0.6127020121 | C60: =C68 -> 0.6092000008 | D60: 0.5235610008 | E60: 0.4465540051 | F60: 0.5886129737 | G60: 0.5910000205
A61: Wages tax | B61: =SUM(B62:B63) -> 14.78181696 | C61: =SUM(C62:C63) -> 15.0647378 | D61: 16.25773716 | E61: 16.42870951 | F61: 17.41085958 | G61: 16.7130003
A62: Marshallese | B62: 9.471817017 | C62: 9.827737808 | D62: 9.974737167 | E62: 10.91770935 | F62: 11.70485973 | G62: 11.64900017 | H62: 11.30200005
A63: non-Marshallese [expatriates] | B63: 5.309999943 | C63: 5.236999989 | D63: 6.282999992 | E63: 5.511000156 | F63: 5.705999851 | G63: 5.06400013 | H63: 4.916999817
A65: Imports Duty Collections (broken by GFS classifications) | B65: =B55-SUM(B66:B68) -> 0 | C65: =C55-SUM(C66:C68) -> 0 | D65: 0 | E65: 0 | F65: 0 | G65: 0 | H65: 0 | I65: 0 | J65: 0
A66: General Imports | B66: 6.522055149 | C66: 6.550519943 | D66: 7.312095165 | E66: 7.199399948 | F66: 7.52840519 | G66: 8.048999786
A67: Imports- CMI | B67: 1.33099997 | C67: 1.230999947 | D67: 1.524999976 | E67: 1.620000005 | F67: 1.690999985 | G67: 1.465000033
A68: Fuel | B68: 0.6127020121 | C68: 0.6092000008 | D68: 0.5235610008 | E68: 0.4465540051 | F68: 0.5886129737 | G68: 0.5910000205
A70: 0.5093477007
A71: Information from Customs
A72: Food | B72: 0.62560502
A73: A&C | B73: 1.12849531
A74: Fuel | B74: 0.65800526
A75: Other | B75: 4.204987492
A76: Total | B76: 6.617093082
A78: Information from SUT Framework [CP]
A79: Food | B79: 2.206630562 | C79: 2.256332415 | D79: 2.518657744 | E79: 2.479839802 | F79: 2.59316599 | G79: 2.772485187
A80: A&C | B80: 1.33099997 | C80: 1.230999947 | D80: 1.524999976 | E80: 1.620000005 | F80: 1.690999985 | G80: 1.465000033
A81: Fuel | B81: 0.6127020121 | C81: 0.6092000008 | D81: 0.5235610008 | E81: 0.4465540051 | F81: 0.5886129737 | G81: 0.5910000205
A82: Other | B82: =6.52205514907837-B79 -> 4.315424587 | C82: =6.5505199432373-C79 -> 4.294187528 | D82: =7.31209516525269-D79 -> 4.793437421 | E82: =7.19939994812012-E79 -> 4.719560146 | F82: =7.52840518951416-F79 -> 4.9352392 | G82: =8.04899978637695-G79 -> 5.276514599
A83: Total | B83: =SUM(B79:B82) -> 8.465757132 | C83: =SUM(C79:C82) -> 8.390719891 | D83: 9.360656142 | E83: 9.265953958 | F83: 9.808018148 | G83: 10.10499984
B84: =B83-SUM(B66:B68) -> 0 | C84: =C83-SUM(C66:C68) -> 0 | D84: 0 | E84: 0 | F84: 0 | G84: 0
A86: FCE: Household Acquisitions | B86: =SUM(B91:B213) -> 132.2481128 | C86: =SUM(C91:C213) -> 134.7241748 | D86: 143.7877261 | E86: 139.2101609 | F86: 139.9642442 | G86: 153.6743204
A87: Total Exempt | B87: =B86-SUMPRODUCT(B91:B213,$L$91:$L$213) -> 6.884247905 | C87: 6.844074602 | D87: 7.17741157 | E87: 4.18150892 | F87: 3.364501987 | G87: =G86-SUMPRODUCT(G91:G213,$L$91:$L$213) -> 4.6584203
A88: Share | B88: =B87/B86 -> 0.05205554739 | C88: =C87/C86 -> 0.05080064221 | D88: 0.04991671936 | E88: 0.03003738299 | F88: 0.02403829639 | G88: 0.03031358972
B90: FY17 | C90: FY18 | D90: FY19 | E90: FY20 | F90: FY21 | G90: FY22 | L90: Vatable
A91: Pr1_11Aa_Ag: BusPriv_Agriculture | B91: 0 | C91: 0 | D91: 0 | E91: 0 | F91: 0 | G91: 0 | L91: 0.5
A92: Pr1_11Af_Fish: BusPriv_Fishing | B92: 0.2488836699 | C92: 0.2671915699 | D92: 0.2514206104 | E92: 0.2086767141 | F92: 0.2167677583 | G92: 0.1945039221 | L92: 0.5
A93: Pr1_11Af_PPFish: BusPriv_PPFish | B93: 0 | C93: 0 | D93: 0 | E93: 0 | F93: 0 | G93: 0 | L93: 1
A94: Pr1_11BA_Mine: BusPriv_Mining & quarrying | B94: 0 | C94: 0 | D94: 0 | E94: 0 | F94: 0 | G94: 0 | L94: 1
A95: Pr1_11CA_PPFood: BusPriv_PPFood | B95: 0 | C95: 0 | D95: 0 | E95: 0 | F95: 0 | G95: 0 | L95: 1
A96: Pr1_11CC_Manuf: BusPriv_Manufacturing | B96: 0.4882608963 | C96: 0.4933355405 | D96: 0.537828978 | E96: 0.5244436819 | F96: 0.6517367937 | G96: 0.7344740977 | L96: 1
A97: Pr1_11CD_MIFV: BusPriv_MIFV | B97: 0 | C97: 0 | D97: 0 | E97: 0 | F97: 0 | G97: 0 | L97: 1
A98: Pr1_11FA_Constr: BusPriv_Construction | B98: 0 | C98: 0 | D98: 0 | E98: 0 | F98: 0 | G98: 0 | L98: 1
A99: Pr1_11FZ_Constr: BusPriv_PPF_OwnAccConstruction | B99: 0 | C99: 0 | D99: 0 | E99: 0 | F99: 0 | G99: 0 | L99: 1
A100: : BusPriv_Vehicle sale, repair | L100: 1
A101: : BusPriv_Retail of fuel | L101: 1
A102: : BusPriv_Wholesale and retail | L102: 1
A103: : BusPriv_Wholesale of fuel | L103: 1
A104: Pr1_11HA_Transport: BusPriv_Transport | B104: 0.164466568 | C104: 0.18039238 | D104: 0.2420744347 | E104: 0.2783186245 | F104: 0.2339358317 | G104: 0.3086125635 | L104: 1
A105: Pr1_11HB_Taxis: BusPriv_Taxis | B105: 0.7388192648 | C105: 0.7182169762 | D105: 0.8247675791 | E105: 0.7696667902 | F105: 0.890480361 | G105: 0.9627822559 | L105: 1
A106: Pr1_11HC_ForAir: BusPriv_Airline ground serv | B106: 0 | C106: 0 | D106: 0 | E106: 0 | F106: 0 | G106: 0 | L106: 1
A107: Pr1_11HD_Koos: BusPriv_Koos | B107: 0 | C107: 0 | D107: 0 | E107: 0 | F107: 0 | G107: 0 | L107: 1
A108: Pr1_11IA_Hotel: BusPriv_Hotels | B108: 0.3686512791 | C108: 0.2404837153 | D108: 0.3962603539 | E108: 0.3584959881 | F108: 0.7023775642 | G108: 0.6607189327 | L108: 1
A109: Pr1_11IB_Rest: BusPriv_Restaurants | B109: 0.5405293295 | C109: 0.6736794306 | D109: 0.8623875307 | E109: 0.9268841825 | F109: 1.115681708 | G109: 1.174124166 | L109: 1
A110: Pr1_11LA_RealEst: BusPriv_Real estate | B110: 0.6960289478 | C110: 0.6525856853 | D110: 0.6159550548 | E110: 0.5761842728 | F110: 0.600856185 | G110: 0.5995218158 | L110: 1
A111: Pr1_11MA_Prof: BusPriv_Professional | B111: 0.09258086795 | C111: 0.1299933446 | D111: 0.1101817109 | E111: 0.08300455622 | F111: 0.07357981505 | G111: 0.03895392679 | L111: 1
A112: Pr1_11NA_Admin: BusPriv_Administrative | B112: 0.08236922252 | C112: 0.1113326776 | D112: 0.08998045622 | E112: 0.08492105183 | F112: 0.09282271428 | G112: 0.0981234911 | L112: 1
A113: Pr1_11QA_Health: BusPriv_Health | B113: 0.2784196126 | C113: 0.1123139817 | D113: 0.155787608 | E113: 0.07923600137 | F113: 0.07125553101 | G113: 0.04888915926 | L113: 1
A114: Pr1_11RS_ServHH: BusPriv_Other services to HH | B114: 0.240603888 | C114: 0.3050220251 | D114: 0.3173937798 | E114: 0.3446641445 | F114: 0.2680848122 | G114: 0.2891716838 | L114: 1
A115: Pr1_12CB_TCCP: BusSOE_TCCP | B115: 0 | C115: 0 | D115: 0 | E115: 0 | F115: 0 | G115: 0 | L115: 1
A116: Pr1_12DA_MEC(U): BusSOE_MEC(U) | B116: 7.137562312 | C116: 7.55621083 | D116: 7.53745266 | E116: 7.909432026 | F116: 7.542975999 | G116: 7.497435191 | L116: 1
A117: Pr1_12DB_Kajur: BusSOE_Kajur | B117: 4.146277316 | C117: 3.908479441 | D117: 3.562212051 | E117: 3.935614518 | F117: 4.088937923 | G117: 4.553621055 | L117: 1
A118: Pr1_12EA_MWSC: BusSOE_MWSC | B118: 0.5542168278 | C118: 0.4895452875 | D118: 0.5595426555 | E118: 0.4903503775 | F118: 0.525459018 | G118: 0.6064309548 | L118: 1
A119: : BusSOE_MEC(F) | L119: 1
A120: Pr1_12HB_AMI: BusSOE_AMI | B120: 1.368754784 | C120: 1.351419454 | D120: 1.550475993 | E120: 1.61077071 | F120: 1.841395982 | G120: 2.405133191 | L120: 1
A121: Pr1_12HC_MIPA: BusSOE_MIPA | B121: 0 | C121: 0 | D121: 0 | E121: 0 | F121: 0 | G121: 0 | L121: 1
A122: Pr1_12HC_MISC: BusSOE_MISC | B122: 0.3693295057 | C122: 0.3201030779 | D122: 0.2876847072 | E122: 0.3534287982 | F122: 0.3035036132 | G122: 0.4282315318 | L122: 1
A123: Pr1_12HD_PO: BusSOE_PO | B123: 0.09481875677 | C123: 0.09079470101 | D123: 0.0832212064 | E123: 0.1072444482 | F123: 0.1576657596 | G123: 0.2041179738 | L123: 1
A124: Pr1_12HE_MIAA: BusSOE_MIAA | B124: 0 | C124: 0 | D124: 0 | E124: 0 | F124: 0 | G124: 0 | L124: 1
A125: Pr1_12IA_MIR: BusSOE_MIR | B125: 0.8229115233 | C125: 0.7382070173 | D125: 0.9186444462 | E125: 0.9400081152 | F125: 0.9463071961 | G125: 1.092669373 | L125: 1
A126: Pr1_12JB_NTA: BusSOE_NTA | B126: 1.952455853 | C126: 1.977197102 | D126: 1.904116449 | E126: 2.148068754 | F126: 2.314795637 | G126: 2.606689754 | L126: 1
A127: Pr1_12LA_RealEst: BusSOE_Real estate | B127: 0 | C127: 0 | D127: 0 | E127: 0 | F127: 0 | G127: 0 | L127: 1
A128: Pr1_21KA_BankCom: BankCom | B128: 0.4466770547 | C128: 0.5467088337 | D128: 0.539912004 | E128: 0.4992793923 | F128: 0.5465418782 | G128: 0.5848979502 | K128: NVI
A129: Pr1_22KB_BankDev: BankDev | B129: 0.912922396 | C129: 0.8021824003 | D129: 0.9902128367 | E129: 0.9098631041 | F129: 0.6751847368 | G129: 0.7429034344 | K129: NVI
A130: Pr1_23KC_FinIns: FinOth_Insurance agents | B130: 0.2381334102 | C130: 0.2899385734 | D130: 0.2907795473 | E130: 0.2734698336 | F130: 0.2756294768 | G130: 0.3334577133 | K130: NVI
A131: Pr1_23KD_FinAux: FinOth_Financial Auxiliaries | B131: 0.4430687017 | C131: 0.4171335282 | D131: 0.5549627387 | E131: 0.4078388275 | F131: 0.2529789962 | G131: 0.6473157025 | K131: NVI
A132: Pr1_23KE_TCMI: FinOth_TCMI | B132: 0 | C132: 0 | D132: 0 | E132: 0 | F132: 0 | G132: 0 | K132: NVI
A133: Pr1_31FC_Constr: GovNat_Construction | B133: 0 | C133: 0 | D133: 0 | E133: 0 | F133: 0 | G133: 0 | L133: 1
A134: Pr1_31HF_Trans: GovNat_Transport | B134: 0 | C134: 0 | D134: 0 | E134: 0 | F134: 0 | G134: 0 | L134: 1
A135: Pr1_31OA_PubAdmin: GovNat_Public Admin | B135: 0.2061058126 | C135: 0.2832395666 | D135: 0.4137371228 | E135: 0.4946685988 | F135: 0.5404323793 | G135: 0.4447500406 | L135: 1
A136: Pr1_31PA_Ed: GovNat_Education | B136: 0 | C136: 0 | D136: 0 | E136: 0 | F136: 0 | G136: 0 | L136: 1
A137: Pr1_31QA_Health: GovNat_Health | B137: 0 | C137: 0 | D137: 0 | E137: 0 | F137: 0 | G137: 0 | L137: 1
A138: Pr1_32OA_PubAdmin: GovAgen_Public Admin | B138: 0.00527166136 | C138: 0.004271316592 | D138: 0.004169666829 | E138: 0.004504954882 | F138: 0.004099118771 | G138: 0.004821860862 | L138: 1
A139: Pr1_32EC_MAWC: GovAgen_MAWC | B139: 0 | C139: 0 | D139: 0 | E139: 0 | F139: 0 | G139: 0 | L139: 1
A140: Pr1_32MB_Prof: GovAgen_Professional | B140: 0 | C140: 0 | D140: 0 | E140: 0 | F140: 0 | G140: 0 | L140: 1
A141: Pr1_32OF_MIMRA: GovAgen_MIMRA | B141: 0 | C141: 0 | D141: 0 | E141: 0 | F141: 0 | G141: 0 | L141: 1
A142: Pr1_32PA_CMI: GovAgen_CMI | B142: 4.874848843 | C142: 5.331486225 | D142: 5.674497604 | E142: 5.525814056 | F142: 5.659751415 | G142: 6.595784187 | L142: 1
A143: Pr1_32PA_Ed: GovAgen_Education | B143: 0 | C143: 0 | D143: 0 | E143: 0 | F143: 0 | G143: 0 | L143: 1
A144: Pr1_32QA_HCRF: GovAgen_HCRF | B144: 0.380480051 | C144: 0.37976408 | D144: 0.4318630695 | E144: 0.4186267853 | F144: 0.4447350502 | G144: 0.4575958252 | L144: 1
A145: Pr1_32QA_Health: GovAgen_Health | B145: 0 | C145: 0 | D145: 0 | E145: 0 | F145: 0 | G145: 0 | L145: 1
A146: Pr1_32QA_HF: GovAgen_HF | B146: 0.6729111671 | C146: 0.6695718765 | D146: 0.6522068977 | E146: 0.63022995 | F146: 0.6446490288 | G146: 0.6632566452 | L146: 1
A147: Pr1_33OA_LocGov: GovLoc_OthLGov | B147: 0 | C147: 0 | D147: 0 | E147: 0 | F147: 0 | G147: 0 | L147: 1
A148: Pr1_33OA_KalGov: GovLoc_KalGov | B148: 0 | C148: 0 | D148: 0 | E148: 0 | F148: 0 | G148: 0 | L148: 1
A149: Pr1_33OA_MalGov: GovLoc_MalGov | B149: 0 | C149: 0 | D149: 0 | E149: 0 | F149: 0 | G149: 0 | L149: 1
A150: Pr1_34OK_MISSA: GovSSF_MISSA | B150: 0 | C150: 0 | D150: 0 | E150: 0 | F150: 0 | G150: 0 | L150: 1
A151: Pr1_41PA_Ed: Npish_Education | B151: 1.55246371 | C151: 1.444787592 | D151: 1.451262087 | E151: 1.521729946 | F151: 1.458878338 | G151: 1.566563785 | L151: 1
A152: Pr1_41PA_USP: Npish_USP | B152: 2.620255337 | C152: 2.654728863 | D152: 2.832317664 | E152: 2.674798745 | F152: 2.467850049 | G152: 2.332381524 | L152: 1
A153: Pr1_41QA_Health: Npish_Health | B153: 0 | C153: 0 | D153: 0 | E153: 0 | F153: 0 | G153: 0 | L153: 1
A154: Pr1_41SB_ServHH: Npish_Other services to HH | B154: 0 | C154: 0 | D154: 0 | E154: 0 | F154: 0 | G154: 0 | K154: NVI
A155: Pr1_51Aa_Csh_Copra: HHcash_Csh_Copra | B155: 0 | C155: 0 | D155: 0 | E155: 0 | F155: 0 | G155: 0 | L155: 1
A156: Pr1_51Af_Csh_Fish: HHcash_Csh_Fish | B156: 2.887760639 | C156: 2.929766655 | D156: 2.943907499 | E156: 2.486410141 | F156: 2.417907953 | G156: 2.718879223 | L156: 1
A157: Pr1_51CE_Csh_Man: HHcash_Csh_Man | B157: 0.9043486303 | C157: 0.8350187011 | D157: 0.8054342933 | E157: 0.965983183 | F157: 1.021686584 | G157: 0.9609381266 | L157: 1
A158: Pr1_52Aa_Sub_Ag: HHsubs_Sub_Ag | B158: 0 | C158: 0 | D158: 0 | E158: 0 | F158: 0 | G158: 0 | L158: 1
A159: Pr1_52Af_Sub_Fish: HHsubs_Sub_Fish | B159: 0 | C159: 0 | D159: 0 | E159: 0 | F159: 0 | G159: 0 | L159: 1
A160: Pr1_52FF_Sub_Cnst: HHsubs_Sub_Cnst | B160: 0 | C160: 0 | D160: 0 | E160: 0 | F160: 0 | G160: 0 | L160: 1
A161: Pr1_53LB_OwnDwell: HHdwell_OwnDwell | B161: 0 | C161: 0 | D161: 0 | E161: 0 | F161: 0 | G161: 0 | L161: 1
L162: 1
A163: Pr1_FISIM: FISIM | B163: 8.555717397 | C163: 9.976019539 | D163: 10.04332753 | E163: 9.214745286 | F163: 9.139954267 | G163: 9.54601645 | L163: 1
L164: 1
A165: Pr1_ImGd01: Imports, Goods, Food | B165: 63.5796612 | C165: 65.37083235 | D165: 72.0429016 | E165: 73.60598678 | F165: 78.32087694 | G165: 82.19399704 | L165: 1
A166: Pr1_ImGd02: Imports, Goods, Alcohol | B166: 3.132077229 | C166: -0.04934870494 | D166: 0.02911981553 | E166: 0.1916937246 | F166: 0.2460893618 | G166: 0.2168143687 | L166: 1
A167: Pr1_ImGd03: Imports, Goods, Cigarettes, and other non-alcohol stimulants | B167: 1.026962519 | C167: 2.72559166 | D167: 2.929788828 | E167: 3.269038677 | F167: 3.418541431 | G167: 3.416520834 | L167: 1
A168: Pr1_ImGd04: Imports, Goods, Medical supplies and pharmaceuticals | B168: 0.134073927 | C168: 0.1340985914 | D168: 0.1497882508 | E168: 0.1510336541 | F168: 0.1566397809 | G168: 0.1647613669 | L168: 1
A169: Pr1_ImGd05: Imports, Goods, Textbooks | B169: 0 | C169: 0 | D169: 0 | E169: 0 | F169: 0 | G169: 0 | L169: 1
A170: Pr1_ImGd06: Imports, Goods, Industrial supplies (construction) | B170: 0 | C170: 0 | D170: 0 | E170: 0 | F170: 0 | G170: 0 | L170: 1
A171: Pr1_ImGd07: Imports, Goods, Industrial supplies (non-food), other | B171: 0.09027497223 | C171: 0.09022662076 | D171: 0.09979734923 | E171: 0.101392301 | F171: 0.1071047921 | G171: 0.1125841297 | L171: 1
A172: Pr1_ImGd09: Imports, Goods, Fuels gasoline | B172: 1.257967708 | C172: 1.402759567 | D172: 1.264118729 | E172: 1.798094687 | F172: 1.288738233 | G172: 2.067385486 | L172: 1
A173: Pr1_ImGd10: Imports, Goods, Fuels -deisel | B173: 0 | C173: 0 | D173: 0 | E173: 0 | F173: 0 | G173: 0 | L173: 1
A174: Pr1_ImGd11: Imports, Goods, Fuels - aviation gas lubricants | B174: 0.05300769885 | C174: 0.07019786939 | D174: 0.05440654836 | E174: 0.02669205705 | F174: 0.04064321579 | G174: 0.06294932459 | L174: 1
A175: Pr1_ImGd12: Imports, Goods, Fuels - lubricants | B175: 0.03176572282 | C175: 0.03495438364 | D175: 0.03646084242 | E175: 0.0337975256 | F175: 0.04028667263 | G175: 0.04122692016 | L175: 1
A176: Pr1_ImGd13: Imports, Goods, Machinery and other capital equipment | B176: -0.6425319291 | C176: -0.6420292473 | D176: -0.7145088302 | E176: -0.7207744229 | F176: -0.7518749349 | G176: -0.7916067718 | L176: 1
A177: Pr1_ImGd14: Imports, Goods, Parts and accessories | B177: 0.04033051818 | C177: 0.05096210187 | D177: 0.0518117005 | E177: 0.04371029697 | F177: 0.0469385381 | G177: 0.05592326516 | L177: 1
A178: Pr1_ImGd15: Imports, Goods, Passenger motor vehicles | B178: 3.110495405 | C178: 3.108161954 | D178: 3.266862332 | E178: 3.292223012 | F178: 3.410342066 | G178: 3.712357955 | L178: 1
A179: Pr1_ImGd16: Imports, Goods, Other transport equipment, for industry | B179: 0 | C179: 0 | D179: 0 | E179: 0 | F179: 0 | G179: 0 | L179: 1
A180: Pr1_ImGd17: Imports, Goods, Other transport equipment, non-industrial | B180: 0 | C180: 0 | D180: 0 | E180: 0 | F180: 0 | G180: 0 | L180: 1
A181: Pr1_ImGd18: Imports, Goods, Parts and accessories, non-industrial | B181: 0 | C181: 0 | D181: 0 | E181: 0 | F181: 0 | G181: 0 | L181: 1
A182: Pr1_ImGd19: Imports, Goods, Consumer goods not elsewhere specified | B182: 2.82488201 | C182: 2.823553323 | D182: 3.11042672 | E182: 3.168972625 | F182: 3.366242743 | G182: 3.536181133 | L182: 1
L183: 1
A184: Pr1_ImGd20: Imports, Goods, Fuel imports, MEC | B184: 0 | C184: 0 | D184: 0 | E184: 0 | F184: 0 | G184: 0 | L184: 1
A185: Pr1_ImGd21: Imports, Goods, AMI, fuel and landing services | B185: 0 | C185: 0 | D185: 0 | E185: 0 | F185: 0 | G185: 0 | L185: 1
A186: Pr1_ImGd22: Imports, Goods, PPFish, goods at sea | B186: 0 | C186: 0 | D186: 0 | E186: 0 | F186: 0 | G186: 0 | L186: 1
A187: Pr1_ImGd23: Imports, Goods, Humanitarian assistance | B187: 0.5688916445 | C187: 0.5724497437 | D187: 0.571959734 | E187: 0.569016695 | F187: 0.5789929032 | G187: 0.5936769843 | L187: 1
A188: Pr1_ImGd24: Imports, Goods, Vessels and aircraft | B188: 0 | C188: 0 | D188: 0 | E188: 0 | F188: 0 | G188: 0 | L188: 1
A189: Pr1_ImGd25: Imports, Goods, Fish for PPFood | B189: 0 | C189: 0 | D189: 0 | E189: 0 | F189: 0 | G189: 0 | L189: 1
A190: : | L190: 1
A191: Pr1_ImSv01: Imports, Services, Maintenance and repair services: AMI | B191: 0 | C191: 0 | D191: 0 | E191: 0 | F191: 0 | G191: 0 | L191: 1
A192: Pr1_ImSv02: Imports, Services, Maintenance and repair services: PPFish | B192: 0 | C192: 0 | D192: 0 | E192: 0 | F192: 0 | G192: 0 | L192: 1
A193: Pr1_ImSv03: Imports, Services, Foreign Airlines | B193: 4.262586797 | C193: 4.115579526 | D193: 4.136281298 | E193: 1.474603347 | F193: 0.9877147943 | G193: 1.641475212 | K193: NVI
A194: : Imports, Services, Freight on Imported goods | L194: 1
A195: Pr1_ImSv05: Imports, Services, Business travel | B195: 0 | C195: 0 | D195: 0 | E195: 0 | F195: 0 | G195: 0 | L195: 1
A196: Pr1_ImSv06: Imports, Services, Personal travel | B196: 7.234344482 | C196: 7.496127129 | D196: 7.782979488 | E196: 3.93518734 | F196: 0 | G196: 3.93518734 | L196: 1
A197: Pr1_ImSv07: Imports, Services, Off Island Travel | B197: 0 | C197: 0 | D197: 0 | E197: 0 | F197: 0 | G197: 0 | L197: 1
A198: Pr1_ImSv08: Imports, Services, Off Island medical | B198: 0 | C198: 0 | D198: 0 | E198: 0 | F198: 0 | G198: 0 | L198: 1
A199: Pr1_ImSv09: Imports, Services, Construction | B199: 0 | C199: 0 | D199: 0 | E199: 0 | F199: 0 | G199: 0 | L199: 1
A200: : Imports, Services, Insurance service charge on imported goods | L200: 1
A201: Pr1_ImSv11: Imports, Services, Financial services | B201: 0.4564177104 | C201: 0.5389359554 | D201: 0.5395528397 | E201: 0.5121160584 | F201: 0.518068226 | G201: 0.6111183258 | K201: NVI
A202: Pr1_ImSv12: Imports, Services, Telecommunications, computer & information services | B202: 0 | C202: 0 | D202: 0 | E202: 0 | F202: 0 | G202: 0 | L202: 1
A203: Pr1_ImSv13: Imports, Services, International subscriptions | B203: 0 | C203: 0 | D203: 0 | E203: 0 | F203: 0 | G203: 0 | L203: 1
A204: Pr1_ImSv14: Imports, Services, Government: Embassy operations | B204: 0 | C204: 0 | D204: 0 | E204: 0 | F204: 0 | G204: 0 | L204: 1
A205: Pr1_ImSv15: Imports, Services, Government: Construction related management, architecture, engineering etc | B205: 0 | C205: 0 | D205: 0 | E205: 0 | F205: 0 | G205: 0 | L205: 1
A206: Pr1_ImSv16: Imports, Services, Government: Business services and activities | B206: 0 | C206: 0 | D206: 0 | E206: 0 | F206: 0 | G206: 0 | L206: 1
A207: Pr1_ImSv17: Imports, Services, Pan Pacific Fish, service imports | B207: 0 | C207: 0 | D207: 0 | E207: 0 | F207: 0 | G207: 0 | L207: 1
A208: Pr1_ImSv18: Imports, Services, Pan Pacific Foods, service imports | B208: 0 | C208: 0 | D208: 0 | E208: 0 | F208: 0 | G208: 0 | L208: 1
A209: Pr1_ImSv19: Imports, Services, Air Marshall Islands aircraft lease | B209: 0 | C209: 0 | D209: 0 | E209: 0 | F209: 0 | G209: 0 | L209: 1
A210: Pr1_ImSv20: Imports, Services, NTA circuit lease | B210: 0 | C210: 0 | D210: 0 | E210: 0 | F210: 0 | G210: 0 | L210: 1
A211: Pr1_ImSv21: Imports, Services, Construction related | B211: 0 | C211: 0 | D211: 0 | E211: 0 | F211: 0 | G211: 0 | L211: 1
A212: Pr1_ImSv22: Imports, Services, Personal, cultural and recreational services | B212: 0 | C212: 0 | D212: 0 | E212: 0 | F212: 0 | G212: 0 | L212: 1
A213: Pr1_ImSv23: Imports, Services, Government goods and services n.e.i., technical assistance | B213: 0 | C213: 0 | D213: 0 | E213: 0 | F213: 0 | G213: 0 | L213: 1
A216: Fuel Use | B216: Notional
... 24 more rows

Sheet TaxLaws
B3: Income Tax Act 1989 | H3: Import Duties Act 1989 | K3: Last Amendment: 2019 (see PL 2019-113)
K4: Application: Does not apply to to USAKA
C6: Tax on Wages and Salaries | I6: Exempt Goods from Import Duty
D7: Income Bracket | E7: Current Tax Rate | I7: 1 | J7: imported goods by passengers or vessel/aircraft crew:
D8: $0 - $1,560 | E8: 0 | J8: not for resale up to the value of $3000
D9: $1,561- $5,200 | E9: 8% with the first $1,560 exempted from tax if income is no more than $5,200 | J9: not more than 300 ciggarettes, 70 cigars or 8 oz. of smoking tobacco, for personal consumption and not for resale
D10: $5,201 - $10,400 | E10: 0.08 | J10: not more than 2 liters of distilled alcoholc beverages for conumption and not for resale
D11: > $10,400 | E11: 0.12 | J11: gifts not exceeding $300 in value.
I12: 2 | J12: imported goods required for the use of passengers or crews of the vessel or aircraft while on board
D13: US Contractor personnel is levied a 5 percent tax on all wages and salaries received | I13: 3 | J13: goods in any one consignment whose duties do not exceed $20
I14: 4 | J14: goods imported by churches
C15: Tax on Gross Revenue | I15: 5 | J15: unmerchantable commercial travelers samples
E16: Tax Rate | I16: 6 | J16: general aviation gas, lube oil, and products, sealants, parts, etc. used for repairing and overhauling of aircrafts, engines and propellers.
D17: Turnover < $10,000 | E17: fixed tax of $80/year | I17: 7 | J17: lube oil and fuel oil imported by, or on behalf or sold to KAJUR for generation
D18: Turnover > $10,000 | E18: 3% of the gross revenues | I18: 8 | J18: all types of fuel imported by MEC for power generation and commercial re-sale
I19: 9 | J19: fishing equipment imported to the RMI for the use on licensed fishing vessels
C20: Tax on Immovable property | I20: 10 | J20: renewable energy equipments for the purposes of power generation
D21: There is a 3 percent tax on all gross income from immovable property leased, exclusive if buildings and other improvements on land by the lessee of such property. | I21: 11 | J21: energy efficient equipment (with Energy Star label)
I22: 12 | J22: renewable energy vehicles
C23: Non-resident Income Tax
D24: 10 percent income tax on the gross income earned by every non-resident persons in respect of services provided | I24: Zero-Rated Items
D25: Persons/organizations engaged by foreign missions and embassies of the RMI and offices of MFA outside RMI are exempted | I25: 1 | J25: imported inputs for the use of local manufacturing industries
J26: Note: input supplies refer to supplies used for manufacturing of local products or value addition invluding packaging and labelling
C27: Tax Incentives | J27: local manufacturing are industries involved in manufacturing, processing or calue addition of loal productsfor domestic consumption
D28: Tax Holidays. Any new incorporated or unincorporated business, with a minimum investment of $1,000,000 and/or which provides employment and pays wages in a sum over $150,000 per annum to local Marshallese citizens, shall be exempt from GRT for 5 years at the start date of the business.
I29: Treatment of Re-exports
C30: GRT Exempt Persons and Organizations | J30: Re-exporters are entitled to a refund of the import duty paid on the goods.
D31: Government of RMI or any Department thereof;
D32: Sales of Electricity, Water, Sewer, or Telecom Services by Public Utility Companies; | I32: Goods in transit
D33: Domestic Flights and operations of any govt owned corporation providing air transport | J33: Goods in transit are not subject to import duty
D34: Tobolar
D35: Religious, charitable, non-profit educational organizations, associations or socities | I35: Notes on Import Duties
D36: Cooperative Associations organized by an act of the Nitijela | J36: Specific taxes are paid on quantity, weight or volume
J37: Ad valorem tax shall be paid on CIF. However, goods imported on aircraft will be taxed based on the FOB value
C38: Hotel Tax
D39: 8 percent tax on the daily room rate on hotel and resort facilities in the RMI | I39: Import Tax Rates
D40: Note: Local Governments can levy their own hotel tax | J40: Product | K40: Current Rate
J41: General Imports | K41: 0.08
C42: Recent Developments | J42: Food Stuffs | K42: 0.05
C43: PL 2022- 44 [Amendment to the tax law] | J43: Gasoline | K43: $0.25 per gal
D44: All references to "quarters" have been changed to "months" | J44: Jet A-1 | K44: $0.08 per gal
D45: Notwithstanding the said change, all businesses who have been filing GRT returns on time and has a current stading in making consecutive payments of tax in GR, may submit a request to the SoF for an option to retain quarterly payment status | J45: Diesel | K45: $0.08 per gal
J46: Motor Vehicles (whose value can be determined in the Kelly's Blue Book) | K46: 15% of value stated in the Kelly’s Blue Book or of accompanying invoice, whichever is higher, provided that in no case shall the duty assessed be less than $1,500.00 and the mileage shall not be more than 100,000 miles or 160934.4 km
J47: Motor Vehicles (whose value cannot be determined in the Kelly’s Blue Book | K47: New Motor Vehicles - $2,500.00 Used Motor Vehicles - $1,500.00
J48: Public Transport | K48: 0.05
C49: Complete Tax Legislation | J49: Tobacco, and Cigarettes | K49: $1.00 per pack of 20 rolls
J50: Cigars | K50: 1.51
J51: Other tobacco (Copenhagen) | K51: $2.75 per 34.2 grams or 1.2 oz
J52: Beer | K52: $0.35 cents per can or 12 oz. unit
J53: Wine | K53: $2.75 per gallon
J54: Spirits | K54: $15.00 per gallon
J55: Mixed drinks | K55: 0.26
J56: Softdrinks- carbonated beverages | K56: 0.01666 per oz
J57: Non-carbonated and artificially flavored beverages | K57: 0.1
